Workbook

Sheet AVISO LEGAL

Sheet Balance peninsular
O1: 25
M3: www.ree.es
M4: Fecha de actualización: | O4: 2014-04-10
L6: Seleccione un año
C8: Ene. | D8: Feb. | E8: Mar. | F8: Abr. | G8: May. | H8: Jun. | I8: Jul. | J8: Ago. | K8: Sep. | L8: Oct. | M8: Nov. | N8: Dic. | O8: =OFFSET(Año!B2,($O$1-1),0) -> 2014
B10: Hidráulica | C10: =OFFSET(Balance!C3,0,($O$1-1)*12) -> 3955.571 | D10: =OFFSET(Balance!D3,0,($O$1-1)*12) -> 5426.862 | E10: =OFFSET(Balance!E3,0,($O$1-1)*12) -> 4952.13 | F10: =OFFSET(Balance!F3,0,($O$1-1)*12) -> - | G10: =OFFSET(Balance!G3,0,($O$1-1)*12) -> - | H10: =OFFSET(Balance!H3,0,($O$1-1)*12) -> - | I10: =OFFSET(Balance!I3,0,($O$1-1)*12) -> - | J10: =OFFSET(Balance!J3,0,($O$1-1)*12) -> - | K10: =OFFSET(Balance!K3,0,($O$1-1)*12) -> - | L10: =OFFSET(Balance!L3,0,($O$1-1)*12) -> - | M10: =OFFSET(Balance!M3,0,($O$1-1)*12) -> - | N10: =OFFSET(Balance!N3,0,($O$1-1)*12) -> - | O10: =IF(SUM(C10:N10)=0,"-",SUM(C10:N10)) -> 14334.563
B11: Nuclear | C11: =OFFSET(Balance!C4,0,($O$1-1)*12) -> 4742.407 | D11: =OFFSET(Balance!D4,0,($O$1-1)*12) -> 4924.299 | E11: =OFFSET(Balance!E4,0,($O$1-1)*12) -> 5522.065 | F11: =OFFSET(Balance!F4,0,($O$1-1)*12) -> - | G11: =OFFSET(Balance!G4,0,($O$1-1)*12) -> - | H11: =OFFSET(Balance!H4,0,($O$1-1)*12) -> - | I11: =OFFSET(Balance!I4,0,($O$1-1)*12) -> - | J11: =OFFSET(Balance!J4,0,($O$1-1)*12) -> - | K11: =OFFSET(Balance!K4,0,($O$1-1)*12) -> - | L11: =OFFSET(Balance!L4,0,($O$1-1)*12) -> - | M11: =OFFSET(Balance!M4,0,($O$1-1)*12) -> - | N11: =OFFSET(Balance!N4,0,($O$1-1)*12) -> - | O11: =IF(SUM(C11:N11)=0,"-",SUM(C11:N11)) -> 15188.771
B12: Carbón | C12: =OFFSET(Balance!C5,0,($O$1-1)*12) -> 2278.888 | D12: =OFFSET(Balance!D5,0,($O$1-1)*12) -> 816.166 | E12: =OFFSET(Balance!E5,0,($O$1-1)*12) -> 1156.88 | F12: =OFFSET(Balance!F5,0,($O$1-1)*12) -> - | G12: =OFFSET(Balance!G5,0,($O$1-1)*12) -> - | H12: =OFFSET(Balance!H5,0,($O$1-1)*12) -> - | I12: =OFFSET(Balance!I5,0,($O$1-1)*12) -> - | J12: =OFFSET(Balance!J5,0,($O$1-1)*12) -> - | K12: =OFFSET(Balance!K5,0,($O$1-1)*12) -> - | L12: =OFFSET(Balance!L5,0,($O$1-1)*12) -> - | M12: =OFFSET(Balance!M5,0,($O$1-1)*12) -> - | N12: =OFFSET(Balance!N5,0,($O$1-1)*12) -> - | O12: 4251.934
B13: Fuel + Gas | C13: =OFFSET(Balance!C6,0,($O$1-1)*12) -> 0 | D13: =OFFSET(Balance!D6,0,($O$1-1)*12) -> 0 | E13: =OFFSET(Balance!E6,0,($O$1-1)*12) -> 0 | F13: =OFFSET(Balance!F6,0,($O$1-1)*12) -> - | G13: =OFFSET(Balance!G6,0,($O$1-1)*12) -> - | H13: =OFFSET(Balance!H6,0,($O$1-1)*12) -> - | I13: =OFFSET(Balance!I6,0,($O$1-1)*12) -> - | J13: =OFFSET(Balance!J6,0,($O$1-1)*12) -> - | K13: =OFFSET(Balance!K6,0,($O$1-1)*12) -> - | L13: =OFFSET(Balance!L6,0,($O$1-1)*12) -> - | M13: =OFFSET(Balance!M6,0,($O$1-1)*12) -> - | N13: =OFFSET(Balance!N6,0,($O$1-1)*12) -> - | O13: -
B14: Ciclo combinado (2) | C14: =OFFSET(Balance!C7,0,($O$1-1)*12) -> 1610.101 | D14: =OFFSET(Balance!D7,0,($O$1-1)*12) -> 1323.022 | E14: =OFFSET(Balance!E7,0,($O$1-1)*12) -> 1246.404 | F14: =OFFSET(Balance!F7,0,($O$1-1)*12) -> - | G14: =OFFSET(Balance!G7,0,($O$1-1)*12) -> - | H14: =OFFSET(Balance!H7,0,($O$1-1)*12) -> - | I14: =OFFSET(Balance!I7,0,($O$1-1)*12) -> - | J14: =OFFSET(Balance!J7,0,($O$1-1)*12) -> - | K14: =OFFSET(Balance!K7,0,($O$1-1)*12) -> - | L14: =OFFSET(Balance!L7,0,($O$1-1)*12) -> - | M14: =OFFSET(Balance!M7,0,($O$1-1)*12) -> - | N14: =OFFSET(Balance!N7,0,($O$1-1)*12) -> - | O14: 4179.527
B15: Régimen ordinario | C15: =OFFSET(Balance!C8,0,($O$1-1)*12) -> 0 | D15: =OFFSET(Balance!D8,0,($O$1-1)*12) -> 0 | E15: =OFFSET(Balance!E8,0,($O$1-1)*12) -> 0 | F15: =OFFSET(Balance!F8,0,($O$1-1)*12) -> 0 | G15: =OFFSET(Balance!G8,0,($O$1-1)*12) -> 0 | H15: =OFFSET(Balance!H8,0,($O$1-1)*12) -> 0 | I15: =OFFSET(Balance!I8,0,($O$1-1)*12) -> 0 | J15: =OFFSET(Balance!J8,0,($O$1-1)*12) -> 0 | K15: =OFFSET(Balance!K8,0,($O$1-1)*12) -> 0 | L15: =OFFSET(Balance!L8,0,($O$1-1)*12) -> 0 | M15: =OFFSET(Balance!M8,0,($O$1-1)*12) -> 0 | N15: =OFFSET(Balance!N8,0,($O$1-1)*12) -> 0 | O15: =SUM(O10:O14) -> 37954.795
B16: Consumos generación (3) | C16: =OFFSET(Balance!C9,0,($O$1-1)*12) -> -464.36 | D16: =OFFSET(Balance!D9,0,($O$1-1)*12) -> -367.706 | E16: =OFFSET(Balance!E9,0,($O$1-1)*12) -> -434.958 | F16: =OFFSET(Balance!F9,0,($O$1-1)*12) -> - | G16: =OFFSET(Balance!G9,0,($O$1-1)*12) -> - | H16: =OFFSET(Balance!H9,0,($O$1-1)*12) -> - | I16: =OFFSET(Balance!I9,0,($O$1-1)*12) -> - | J16: =OFFSET(Balance!J9,0,($O$1-1)*12) -> - | K16: =OFFSET(Balance!K9,0,($O$1-1)*12) -> - | L16: =OFFSET(Balance!L9,0,($O$1-1)*12) -> - | M16: =OFFSET(Balance!M9,0,($O$1-1)*12) -> - | N16: =OFFSET(Balance!N9,0,($O$1-1)*12) -> - | O16: -1267.024
B17: Resto hidráulica (4) | C17: =OFFSET(Balance!C10,0,($O$1-1)*12) -> 782.113 | D17: =OFFSET(Balance!D10,0,($O$1-1)*12) -> 753.006 | E17: =OFFSET(Balance!E10,0,($O$1-1)*12) -> 751.124 | F17: =OFFSET(Balance!F10,0,($O$1-1)*12) -> - | G17: =OFFSET(Balance!G10,0,($O$1-1)*12) -> - | H17: =OFFSET(Balance!H10,0,($O$1-1)*12) -> - | I17: =OFFSET(Balance!I10,0,($O$1-1)*12) -> - | J17: =OFFSET(Balance!J10,0,($O$1-1)*12) -> - | K17: =OFFSET(Balance!K10,0,($O$1-1)*12) -> - | L17: =OFFSET(Balance!L10,0,($O$1-1)*12) -> - | M17: =OFFSET(Balance!M10,0,($O$1-1)*12) -> - | N17: =OFFSET(Balance!N10,0,($O$1-1)*12) -> - | O17: 2286.243
B18: Eólica | C18: =OFFSET(Balance!C11,0,($O$1-1)*12) -> 6536.824 | D18: =OFFSET(Balance!D11,0,($O$1-1)*12) -> 5882.555 | E18: =OFFSET(Balance!E11,0,($O$1-1)*12) -> 5128.119 | F18: =OFFSET(Balance!F11,0,($O$1-1)*12) -> - | G18: =OFFSET(Balance!G11,0,($O$1-1)*12) -> - | H18: =OFFSET(Balance!H11,0,($O$1-1)*12) -> - | I18: =OFFSET(Balance!I11,0,($O$1-1)*12) -> - | J18: =OFFSET(Balance!J11,0,($O$1-1)*12) -> - | K18: =OFFSET(Balance!K11,0,($O$1-1)*12) -> - | L18: =OFFSET(Balance!L11,0,($O$1-1)*12) -> - | M18: =OFFSET(Balance!M11,0,($O$1-1)*12) -> - | N18: =OFFSET(Balance!N11,0,($O$1-1)*12) -> - | O18: 17547.498
B19: Solar fotovoltaica | C19: =OFFSET(Balance!C12,0,($O$1-1)*12) -> 349.99 | D19: =OFFSET(Balance!D12,0,($O$1-1)*12) -> 402.502 | E19: =OFFSET(Balance!E12,0,($O$1-1)*12) -> 699.2839 | F19: =OFFSET(Balance!F12,0,($O$1-1)*12) -> - | G19: =OFFSET(Balance!G12,0,($O$1-1)*12) -> - | H19: =OFFSET(Balance!H12,0,($O$1-1)*12) -> - | I19: =OFFSET(Balance!I12,0,($O$1-1)*12) -> - | J19: =OFFSET(Balance!J12,0,($O$1-1)*12) -> - | K19: =OFFSET(Balance!K12,0,($O$1-1)*12) -> - | L19: =OFFSET(Balance!L12,0,($O$1-1)*12) -> - | M19: =OFFSET(Balance!M12,0,($O$1-1)*12) -> - | N19: =OFFSET(Balance!N12,0,($O$1-1)*12) -> - | O19: 1451.7759
B20: Solar térmica | C20: =OFFSET(Balance!C13,0,($O$1-1)*12) -> 79.801 | D20: =OFFSET(Balance!D13,0,($O$1-1)*12) -> 103.265 | E20: =OFFSET(Balance!E13,0,($O$1-1)*12) -> 398.306 | F20: =OFFSET(Balance!F13,0,($O$1-1)*12) -> - | G20: =OFFSET(Balance!G13,0,($O$1-1)*12) -> - | H20: =OFFSET(Balance!H13,0,($O$1-1)*12) -> - | I20: =OFFSET(Balance!I13,0,($O$1-1)*12) -> - | J20: =OFFSET(Balance!J13,0,($O$1-1)*12) -> - | K20: =OFFSET(Balance!K13,0,($O$1-1)*12) -> - | L20: =OFFSET(Balance!L13,0,($O$1-1)*12) -> - | M20: =OFFSET(Balance!M13,0,($O$1-1)*12) -> - | N20: =OFFSET(Balance!N13,0,($O$1-1)*12) -> - | O20: 581.372
B21: Térmica renovable | C21: =OFFSET(Balance!C14,0,($O$1-1)*12) -> 422.987 | D21: =OFFSET(Balance!D14,0,($O$1-1)*12) -> 329.581 | E21: =OFFSET(Balance!E14,0,($O$1-1)*12) -> 343.961 | F21: =OFFSET(Balance!F14,0,($O$1-1)*12) -> - | G21: =OFFSET(Balance!G14,0,($O$1-1)*12) -> - | H21: =OFFSET(Balance!H14,0,($O$1-1)*12) -> - | I21: =OFFSET(Balance!I14,0,($O$1-1)*12) -> - | J21: =OFFSET(Balance!J14,0,($O$1-1)*12) -> - | K21: =OFFSET(Balance!K14,0,($O$1-1)*12) -> - | L21: =OFFSET(Balance!L14,0,($O$1-1)*12) -> - | M21: =OFFSET(Balance!M14,0,($O$1-1)*12) -> - | N21: =OFFSET(Balance!N14,0,($O$1-1)*12) -> - | O21: 1096.529
B22: Cogeneración y resto | C22: =OFFSET(Balance!C15,0,($O$1-1)*12) -> 2680.376 | D22: =OFFSET(Balance!D15,0,($O$1-1)*12) -> 1968.657 | E22: =OFFSET(Balance!E15,0,($O$1-1)*12) -> 1917.516 | F22: =OFFSET(Balance!F15,0,($O$1-1)*12) -> - | G22: =OFFSET(Balance!G15,0,($O$1-1)*12) -> - | H22: =OFFSET(Balance!H15,0,($O$1-1)*12) -> - | I22: =OFFSET(Balance!I15,0,($O$1-1)*12) -> - | J22: =OFFSET(Balance!J15,0,($O$1-1)*12) -> - | K22: =OFFSET(Balance!K15,0,($O$1-1)*12) -> - | L22: =OFFSET(Balance!L15,0,($O$1-1)*12) -> - | M22: =OFFSET(Balance!M15,0,($O$1-1)*12) -> - | N22: =OFFSET(Balance!N15,0,($O$1-1)*12) -> - | O22: 6566.549
B23: Régimen especial | C23: =OFFSET(Balance!C16,0,($O$1-1)*12) -> 0 | D23: =OFFSET(Balance!D16,0,($O$1-1)*12) -> 0 | E23: =OFFSET(Balance!E16,0,($O$1-1)*12) -> 0 | F23: =OFFSET(Balance!F16,0,($O$1-1)*12) -> 0 | G23: =OFFSET(Balance!G16,0,($O$1-1)*12) -> 0 | H23: =OFFSET(Balance!H16,0,($O$1-1)*12) -> 0 | I23: =OFFSET(Balance!I16,0,($O$1-1)*12) -> 0 | J23: =OFFSET(Balance!J16,0,($O$1-1)*12) -> 0 | K23: =OFFSET(Balance!K16,0,($O$1-1)*12) -> 0 | L23: =OFFSET(Balance!L16,0,($O$1-1)*12) -> 0 | M23: =OFFSET(Balance!M16,0,($O$1-1)*12) -> 0 | N23: =OFFSET(Balance!N16,0,($O$1-1)*12) -> 0 | O23: =SUM(O17:O22) -> 29529.9669
B24: Generación neta | C24: =OFFSET(Balance!C17,0,($O$1-1)*12) -> 22974.698 | D24: =OFFSET(Balance!D17,0,($O$1-1)*12) -> 21562.209 | E24: =OFFSET(Balance!E17,0,($O$1-1)*12) -> 21680.831 | F24: =OFFSET(Balance!F17,0,($O$1-1)*12) -> - | G24: =OFFSET(Balance!G17,0,($O$1-1)*12) -> - | H24: =OFFSET(Balance!H17,0,($O$1-1)*12) -> - | I24: =OFFSET(Balance!I17,0,($O$1-1)*12) -> - | J24: =OFFSET(Balance!J17,0,($O$1-1)*12) -> - | K24: =OFFSET(Balance!K17,0,($O$1-1)*12) -> - | L24: =OFFSET(Balance!L17,0,($O$1-1)*12) -> - | M24: =OFFSET(Balance!M17,0,($O$1-1)*12) -> - | N24: =OFFSET(Balance!N17,0,($O$1-1)*12) -> - | O24: =SUM(O15:O16,O23) -> 66217.7379
B25: Consumos en bombeo | C25: =OFFSET(Balance!C18,0,($O$1-1)*12) -> -858.014 | D25: =OFFSET(Balance!D18,0,($O$1-1)*12) -> -633.188 | E25: =OFFSET(Balance!E18,0,($O$1-1)*12) -> -589.976 | F25: =OFFSET(Balance!F18,0,($O$1-1)*12) -> - | G25: =OFFSET(Balance!G18,0,($O$1-1)*12) -> - | H25: =OFFSET(Balance!H18,0,($O$1-1)*12) -> - | I25: =OFFSET(Balance!I18,0,($O$1-1)*12) -> - | J25: =OFFSET(Balance!J18,0,($O$1-1)*12) -> - | K25: =OFFSET(Balance!K18,0,($O$1-1)*12) -> - | L25: =OFFSET(Balance!L18,0,($O$1-1)*12) -> - | M25: =OFFSET(Balance!M18,0,($O$1-1)*12) -> - | N25: =OFFSET(Balance!N18,0,($O$1-1)*12) -> - | O25: -2081.178
B26: Enlace Península-Baleares (5) | C26: =OFFSET(Balance!C19,0,($O$1-1)*12) -> -98.644 | D26: =OFFSET(Balance!D19,0,($O$1-1)*12) -> -86.919 | E26: =OFFSET(Balance!E19,0,($O$1-1)*12) -> -88.564 | F26: =OFFSET(Balance!F19,0,($O$1-1)*12) -> - | G26: =OFFSET(Balance!G19,0,($O$1-1)*12) -> - | H26: =OFFSET(Balance!H19,0,($O$1-1)*12) -> - | I26: =OFFSET(Balance!I19,0,($O$1-1)*12) -> - | J26: =OFFSET(Balance!J19,0,($O$1-1)*12) -> - | K26: =OFFSET(Balance!K19,0,($O$1-1)*12) -> - | L26: =OFFSET(Balance!L19,0,($O$1-1)*12) -> - | M26: =OFFSET(Balance!M19,0,($O$1-1)*12) -> - | N26: =OFFSET(Balance!N19,0,($O$1-1)*12) -> - | O26: =IF(SUM(C26:N26)=0,"-",SUM(C26:N26)) -> -274.127
B27: Saldo intercambios internacionales (6) | C27: =OFFSET(Balance!C20,0,($O$1-1)*12) -> 28.102 | D27: =OFFSET(Balance!D20,0,($O$1-1)*12) -> -490.541 | E27: =OFFSET(Balance!E20,0,($O$1-1)*12) -> -238.625 | F27: =OFFSET(Balance!F20,0,($O$1-1)*12) -> - | G27: =OFFSET(Balance!G20,0,($O$1-1)*12) -> - | H27: =OFFSET(Balance!H20,0,($O$1-1)*12) -> - | I27: =OFFSET(Balance!I20,0,($O$1-1)*12) -> - | J27: =OFFSET(Balance!J20,0,($O$1-1)*12) -> - | K27: =OFFSET(Balance!K20,0,($O$1-1)*12) -> - | L27: =OFFSET(Balance!L20,0,($O$1-1)*12) -> - | M27: =OFFSET(Balance!M20,0,($O$1-1)*12) -> - | N27: =OFFSET(Balance!N20,0,($O$1-1)*12) -> - | O27: -701.064
B28: Demanda transporte (b.c.) | C28: =OFFSET(Balance!C21,0,($O$1-1)*12) -> 22046.142 | D28: =OFFSET(Balance!D21,0,($O$1-1)*12) -> 20351.561 | E28: =OFFSET(Balance!E21,0,($O$1-1)*12) -> 20763.666 | F28: =OFFSET(Balance!F21,0,($O$1-1)*12) -> - | G28: =OFFSET(Balance!G21,0,($O$1-1)*12) -> - | H28: =OFFSET(Balance!H21,0,($O$1-1)*12) -> - | I28: =OFFSET(Balance!I21,0,($O$1-1)*12) -> - | J28: =OFFSET(Balance!J21,0,($O$1-1)*12) -> - | K28: =OFFSET(Balance!K21,0,($O$1-1)*12) -> - | L28: =OFFSET(Balance!L21,0,($O$1-1)*12) -> - | M28: =OFFSET(Balance!M21,0,($O$1-1)*12) -> - | N28: =OFFSET(Balance!N21,0,($O$1-1)*12) -> - | O28: =SUM(O24:O27) -> 63161.3689
B29: (1) Asignación de unidades de producción según combustible principal.
B30: (2) Incluye funcionamiento en ciclo abierto.
B31: (3) Consumos en generación correspondientes a la producción hidráulica, nuclear, carbón, fuel+gas y ciclo combinado.
B32: (4) Incluye todas aquellas unidades menores de 50 MW que no pertenecen a ninguna unidad de gestión hidráulica (UGH).
B33: (5) Valor positivo: entrada de energía en el sistema; valor negativo: salida de energía del sistema. Enlace funcionando al mínimo técnico de seguridad hasta el 13/08/2012.
B34: (6) Valor positivo: saldo importador; valor negativo: saldo exportador.

Sheet Balance Baleares
O1: 9
M3: www.ree.es
M4: Fecha de actualización: | O4: 2014-04-10
L6: Seleccione un año
C8: Ene. | D8: Feb. | E8: Mar. | F8: Abr. | G8: May. | H8: Jun. | I8: Jul. | J8: Ago. | K8: Sep. | L8: Oct. | M8: Nov. | N8: Dic. | O8: =OFFSET(Año!B18,($O$1-1),0) -> 2014
B10: Carbón | C10: =OFFSET(Balance!C24,0,($O$1-1)*12) -> 201469 | D10: =OFFSET(Balance!D24,0,($O$1-1)*12) -> 165889 | E10: =OFFSET(Balance!E24,0,($O$1-1)*12) -> 173138 | F10: =OFFSET(Balance!F24,0,($O$1-1)*12) -> - | G10: =OFFSET(Balance!G24,0,($O$1-1)*12) -> - | H10: =OFFSET(Balance!H24,0,($O$1-1)*12) -> - | I10: =OFFSET(Balance!I24,0,($O$1-1)*12) -> - | J10: =OFFSET(Balance!J24,0,($O$1-1)*12) -> - | K10: =OFFSET(Balance!K24,0,($O$1-1)*12) -> - | L10: =OFFSET(Balance!L24,0,($O$1-1)*12) -> - | M10: =OFFSET(Balance!M24,0,($O$1-1)*12) -> - | N10: =OFFSET(Balance!N24,0,($O$1-1)*12) -> - | O10: =IF(SUM(C10:N10)=0,"-",SUM(C10:N10)) -> 540496
B11: Motores diesel | C11: =OFFSET(Balance!C25,0,($O$1-1)*12) -> 60148 | D11: =OFFSET(Balance!D25,0,($O$1-1)*12) -> 56565 | E11: =OFFSET(Balance!E25,0,($O$1-1)*12) -> 41875 | F11: =OFFSET(Balance!F25,0,($O$1-1)*12) -> - | G11: =OFFSET(Balance!G25,0,($O$1-1)*12) -> - | H11: =OFFSET(Balance!H25,0,($O$1-1)*12) -> - | I11: =OFFSET(Balance!I25,0,($O$1-1)*12) -> - | J11: =OFFSET(Balance!J25,0,($O$1-1)*12) -> - | K11: =OFFSET(Balance!K25,0,($O$1-1)*12) -> - | L11: =OFFSET(Balance!L25,0,($O$1-1)*12) -> - | M11: =OFFSET(Balance!M25,0,($O$1-1)*12) -> - | N11: =OFFSET(Balance!N25,0,($O$1-1)*12) -> - | O11: 158588
B12: Turbina de gas | C12: =OFFSET(Balance!C26,0,($O$1-1)*12) -> 29186 | D12: =OFFSET(Balance!D26,0,($O$1-1)*12) -> 25184 | E12: =OFFSET(Balance!E26,0,($O$1-1)*12) -> 40439 | F12: =OFFSET(Balance!F26,0,($O$1-1)*12) -> - | G12: =OFFSET(Balance!G26,0,($O$1-1)*12) -> - | H12: =OFFSET(Balance!H26,0,($O$1-1)*12) -> - | I12: =OFFSET(Balance!I26,0,($O$1-1)*12) -> - | J12: =OFFSET(Balance!J26,0,($O$1-1)*12) -> - | K12: =OFFSET(Balance!K26,0,($O$1-1)*12) -> - | L12: =OFFSET(Balance!L26,0,($O$1-1)*12) -> - | M12: =OFFSET(Balance!M26,0,($O$1-1)*12) -> - | N12: =OFFSET(Balance!N26,0,($O$1-1)*12) -> - | O12: 94809
B13: Fuel + Gas | C13: =OFFSET(Balance!C27,0,($O$1-1)*12) -> 89334 | D13: =OFFSET(Balance!D27,0,($O$1-1)*12) -> 81749 | E13: =OFFSET(Balance!E27,0,($O$1-1)*12) -> 82314 | F13: =OFFSET(Balance!F27,0,($O$1-1)*12) -> - | G13: =OFFSET(Balance!G27,0,($O$1-1)*12) -> - | H13: =OFFSET(Balance!H27,0,($O$1-1)*12) -> - | I13: =OFFSET(Balance!I27,0,($O$1-1)*12) -> - | J13: =OFFSET(Balance!J27,0,($O$1-1)*12) -> - | K13: =OFFSET(Balance!K27,0,($O$1-1)*12) -> - | L13: =OFFSET(Balance!L27,0,($O$1-1)*12) -> - | M13: =OFFSET(Balance!M27,0,($O$1-1)*12) -> - | N13: =OFFSET(Balance!N27,0,($O$1-1)*12) -> - | O13: =SUM(O11:O12) -> 253397
B14: Ciclo combinado (2) | C14: =OFFSET(Balance!C28,0,($O$1-1)*12) -> 35577 | D14: =OFFSET(Balance!D28,0,($O$1-1)*12) -> 47718 | E14: =OFFSET(Balance!E28,0,($O$1-1)*12) -> 49413 | F14: =OFFSET(Balance!F28,0,($O$1-1)*12) -> - | G14: =OFFSET(Balance!G28,0,($O$1-1)*12) -> - | H14: =OFFSET(Balance!H28,0,($O$1-1)*12) -> - | I14: =OFFSET(Balance!I28,0,($O$1-1)*12) -> - | J14: =OFFSET(Balance!J28,0,($O$1-1)*12) -> - | K14: =OFFSET(Balance!K28,0,($O$1-1)*12) -> - | L14: =OFFSET(Balance!L28,0,($O$1-1)*12) -> - | M14: =OFFSET(Balance!M28,0,($O$1-1)*12) -> - | N14: =OFFSET(Balance!N28,0,($O$1-1)*12) -> - | O14: =IF(SUM(C14:N14)=0,"-",SUM(C14:N14)) -> 132708
B15: Generación auxiliar (3) | C15: =OFFSET(Balance!C29,0,($O$1-1)*12) -> 0 | D15: =OFFSET(Balance!D29,0,($O$1-1)*12) -> 0 | E15: =OFFSET(Balance!E29,0,($O$1-1)*12) -> 0 | F15: =OFFSET(Balance!F29,0,($O$1-1)*12) -> - | G15: =OFFSET(Balance!G29,0,($O$1-1)*12) -> - | H15: =OFFSET(Balance!H29,0,($O$1-1)*12) -> - | I15: =OFFSET(Balance!I29,0,($O$1-1)*12) -> - | J15: =OFFSET(Balance!J29,0,($O$1-1)*12) -> - | K15: =OFFSET(Balance!K29,0,($O$1-1)*12) -> - | L15: =OFFSET(Balance!L29,0,($O$1-1)*12) -> - | M15: =OFFSET(Balance!M29,0,($O$1-1)*12) -> - | N15: =OFFSET(Balance!N29,0,($O$1-1)*12) -> - | O15: =IF(SUM(C15:N15)=0,"-",SUM(C15:N15)) -> -
B16: Régimen ordinario | C16: =OFFSET(Balance!C30,0,($O$1-1)*12) -> 0 | D16: =OFFSET(Balance!D30,0,($O$1-1)*12) -> 0 | E16: =OFFSET(Balance!E30,0,($O$1-1)*12) -> 0 | F16: =OFFSET(Balance!F30,0,($O$1-1)*12) -> 0 | G16: =OFFSET(Balance!G30,0,($O$1-1)*12) -> 0 | H16: =OFFSET(Balance!H30,0,($O$1-1)*12) -> 0 | I16: =OFFSET(Balance!I30,0,($O$1-1)*12) -> 0 | J16: =OFFSET(Balance!J30,0,($O$1-1)*12) -> 0 | K16: =OFFSET(Balance!K30,0,($O$1-1)*12) -> 0 | L16: =OFFSET(Balance!L30,0,($O$1-1)*12) -> 0 | M16: =OFFSET(Balance!M30,0,($O$1-1)*12) -> 0 | N16: =OFFSET(Balance!N30,0,($O$1-1)*12) -> 0 | O16: =SUM(O10,O13:O15) -> 926601
B17: Consumos generación (4) | C17: =OFFSET(Balance!C31,0,($O$1-1)*12) -> -23518 | D17: =OFFSET(Balance!D31,0,($O$1-1)*12) -> -21305 | E17: =OFFSET(Balance!E31,0,($O$1-1)*12) -> -14406 | F17: =OFFSET(Balance!F31,0,($O$1-1)*12) -> - | G17: =OFFSET(Balance!G31,0,($O$1-1)*12) -> - | H17: =OFFSET(Balance!H31,0,($O$1-1)*12) -> - | I17: =OFFSET(Balance!I31,0,($O$1-1)*12) -> - | J17: =OFFSET(Balance!J31,0,($O$1-1)*12) -> - | K17: =OFFSET(Balance!K31,0,($O$1-1)*12) -> - | L17: =OFFSET(Balance!L31,0,($O$1-1)*12) -> - | M17: =OFFSET(Balance!M31,0,($O$1-1)*12) -> - | N17: =OFFSET(Balance!N31,0,($O$1-1)*12) -> - | O17: -59229
B18: Eólica | C18: =OFFSET(Balance!C32,0,($O$1-1)*12) -> 581 | D18: =OFFSET(Balance!D32,0,($O$1-1)*12) -> 629 | E18: =OFFSET(Balance!E32,0,($O$1-1)*12) -> 650 | F18: =OFFSET(Balance!F32,0,($O$1-1)*12) -> - | G18: =OFFSET(Balance!G32,0,($O$1-1)*12) -> - | H18: =OFFSET(Balance!H32,0,($O$1-1)*12) -> - | I18: =OFFSET(Balance!I32,0,($O$1-1)*12) -> - | J18: =OFFSET(Balance!J32,0,($O$1-1)*12) -> - | K18: =OFFSET(Balance!K32,0,($O$1-1)*12) -> - | L18: =OFFSET(Balance!L32,0,($O$1-1)*12) -> - | M18: =OFFSET(Balance!M32,0,($O$1-1)*12) -> - | N18: =OFFSET(Balance!N32,0,($O$1-1)*12) -> - | O18: 1860
B19: Solar fotovoltaica | C19: =OFFSET(Balance!C33,0,($O$1-1)*12) -> 5801 | D19: =OFFSET(Balance!D33,0,($O$1-1)*12) -> 8300 | E19: =OFFSET(Balance!E33,0,($O$1-1)*12) -> 10872.681 | F19: =OFFSET(Balance!F33,0,($O$1-1)*12) -> - | G19: =OFFSET(Balance!G33,0,($O$1-1)*12) -> - | H19: =OFFSET(Balance!H33,0,($O$1-1)*12) -> - | I19: =OFFSET(Balance!I33,0,($O$1-1)*12) -> - | J19: =OFFSET(Balance!J33,0,($O$1-1)*12) -> - | K19: =OFFSET(Balance!K33,0,($O$1-1)*12) -> - | L19: =OFFSET(Balance!L33,0,($O$1-1)*12) -> - | M19: =OFFSET(Balance!M33,0,($O$1-1)*12) -> - | N19: =OFFSET(Balance!N33,0,($O$1-1)*12) -> - | O19: 24973.681
B20: Térmica renovable | C20: =OFFSET(Balance!C34,0,($O$1-1)*12) -> 123 | D20: =OFFSET(Balance!D34,0,($O$1-1)*12) -> 172 | E20: =OFFSET(Balance!E34,0,($O$1-1)*12) -> 229 | F20: =OFFSET(Balance!F34,0,($O$1-1)*12) -> - | G20: =OFFSET(Balance!G34,0,($O$1-1)*12) -> - | H20: =OFFSET(Balance!H34,0,($O$1-1)*12) -> - | I20: =OFFSET(Balance!I34,0,($O$1-1)*12) -> - | J20: =OFFSET(Balance!J34,0,($O$1-1)*12) -> - | K20: =OFFSET(Balance!K34,0,($O$1-1)*12) -> - | L20: =OFFSET(Balance!L34,0,($O$1-1)*12) -> - | M20: =OFFSET(Balance!M34,0,($O$1-1)*12) -> - | N20: =OFFSET(Balance!N34,0,($O$1-1)*12) -> - | O20: 524
B21: Cogeneración y resto | C21: =OFFSET(Balance!C35,0,($O$1-1)*12) -> 17963 | D21: =OFFSET(Balance!D35,0,($O$1-1)*12) -> 14698 | E21: =OFFSET(Balance!E35,0,($O$1-1)*12) -> 19928 | F21: =OFFSET(Balance!F35,0,($O$1-1)*12) -> - | G21: =OFFSET(Balance!G35,0,($O$1-1)*12) -> - | H21: =OFFSET(Balance!H35,0,($O$1-1)*12) -> - | I21: =OFFSET(Balance!I35,0,($O$1-1)*12) -> - | J21: =OFFSET(Balance!J35,0,($O$1-1)*12) -> - | K21: =OFFSET(Balance!K35,0,($O$1-1)*12) -> - | L21: =OFFSET(Balance!L35,0,($O$1-1)*12) -> - | M21: =OFFSET(Balance!M35,0,($O$1-1)*12) -> - | N21: =OFFSET(Balance!N35,0,($O$1-1)*12) -> - | O21: 52589
B22: Régimen especial | C22: =OFFSET(Balance!C36,0,($O$1-1)*12) -> 0 | D22: =OFFSET(Balance!D36,0,($O$1-1)*12) -> 0 | E22: =OFFSET(Balance!E36,0,($O$1-1)*12) -> 0 | F22: =OFFSET(Balance!F36,0,($O$1-1)*12) -> 0 | G22: =OFFSET(Balance!G36,0,($O$1-1)*12) -> 0 | H22: =OFFSET(Balance!H36,0,($O$1-1)*12) -> 0 | I22: =OFFSET(Balance!I36,0,($O$1-1)*12) -> 0 | J22: =OFFSET(Balance!J36,0,($O$1-1)*12) -> 0 | K22: =OFFSET(Balance!K36,0,($O$1-1)*12) -> 0 | L22: =OFFSET(Balance!L36,0,($O$1-1)*12) -> 0 | M22: =OFFSET(Balance!M36,0,($O$1-1)*12) -> 0 | N22: =OFFSET(Balance!N36,0,($O$1-1)*12) -> 0 | O22: =SUM(O18:O21) -> 79946.681
B23: Generación neta | C23: =OFFSET(Balance!C37,0,($O$1-1)*12) -> 327330 | D23: =OFFSET(Balance!D37,0,($O$1-1)*12) -> 297850 | E23: =OFFSET(Balance!E37,0,($O$1-1)*12) -> 322139 | F23: =OFFSET(Balance!F37,0,($O$1-1)*12) -> - | G23: =OFFSET(Balance!G37,0,($O$1-1)*12) -> - | H23: =OFFSET(Balance!H37,0,($O$1-1)*12) -> - | I23: =OFFSET(Balance!I37,0,($O$1-1)*12) -> - | J23: =OFFSET(Balance!J37,0,($O$1-1)*12) -> - | K23: =OFFSET(Balance!K37,0,($O$1-1)*12) -> - | L23: =OFFSET(Balance!L37,0,($O$1-1)*12) -> - | M23: =OFFSET(Balance!M37,0,($O$1-1)*12) -> - | N23: =OFFSET(Balance!N37,0,($O$1-1)*12) -> - | O23: =SUM(O16:O17,O22) -> 947318.681
B24: Enlace Península-Baleares (5) | C24: =OFFSET(Balance!C38,0,($O$1-1)*12) -> 98644 | D24: =OFFSET(Balance!D38,0,($O$1-1)*12) -> 86919 | E24: =OFFSET(Balance!E38,0,($O$1-1)*12) -> 88564 | F24: =OFFSET(Balance!F38,0,($O$1-1)*12) -> - | G24: =OFFSET(Balance!G38,0,($O$1-1)*12) -> - | H24: =OFFSET(Balance!H38,0,($O$1-1)*12) -> - | I24: =OFFSET(Balance!I38,0,($O$1-1)*12) -> - | J24: =OFFSET(Balance!J38,0,($O$1-1)*12) -> - | K24: =OFFSET(Balance!K38,0,($O$1-1)*12) -> - | L24: =OFFSET(Balance!L38,0,($O$1-1)*12) -> - | M24: =OFFSET(Balance!M38,0,($O$1-1)*12) -> - | N24: =OFFSET(Balance!N38,0,($O$1-1)*12) -> - | O24: 274127
B25: Demanda transporte (b.c.) | C25: =OFFSET(Balance!C39,0,($O$1-1)*12) -> 425974 | D25: =OFFSET(Balance!D39,0,($O$1-1)*12) -> 384769 | E25: =OFFSET(Balance!E39,0,($O$1-1)*12) -> 410703 | F25: =OFFSET(Balance!F39,0,($O$1-1)*12) -> - | G25: =OFFSET(Balance!G39,0,($O$1-1)*12) -> - | H25: =OFFSET(Balance!H39,0,($O$1-1)*12) -> - | I25: =OFFSET(Balance!I39,0,($O$1-1)*12) -> - | J25: =OFFSET(Balance!J39,0,($O$1-1)*12) -> - | K25: =OFFSET(Balance!K39,0,($O$1-1)*12) -> - | L25: =OFFSET(Balance!L39,0,($O$1-1)*12) -> - | M25: =OFFSET(Balance!M39,0,($O$1-1)*12) -> - | N25: =OFFSET(Balance!N39,0,($O$1-1)*12) -> - | O25: =SUM(O23:O24) -> 1221445.681
B26: (1) Asignación de unidades de producción según combustible principal.
B27: (2) Incluye funcionamiento en ciclo abierto.
B28: (3) Grupos de emergencia que se instalan de forma transitoria en determinadas zonas para cubrir un déficit de generación.
B29: (4) Consumos en generación correspondientes a la producción con carbón, fuel+gas, ciclo combinado y generación auxiliar.
B30: (5) Valor positivo: entrada de energía en el sistema; valor negativo: salida de energía del sistema. Enlace funcionando al mínimo técnico de seguridad hasta el 13/08/2012.

Sheet Balance Canarias
O1: 9
M3: www.ree.es
M4: Fecha de actualización: | O4: 2014-04-10
L6: Seleccione un año
C8: Ene. | D8: Feb. | E8: Mar. | F8: Abr. | G8: May. | H8: Jun. | I8: Jul. | J8: Ago. | K8: Sep. | L8: Oct. | M8: Nov. | N8: Dic. | O8: =OFFSET(Año!B18,($O$1-1),0) -> 2014
B10: Hidráulica | C10: =OFFSET(Balance!C42,0,($O$1-1)*12) -> 0 | D10: =OFFSET(Balance!D42,0,($O$1-1)*12) -> 0 | E10: =OFFSET(Balance!E42,0,($O$1-1)*12) -> 0 | F10: =OFFSET(Balance!F42,0,($O$1-1)*12) -> - | G10: =OFFSET(Balance!G42,0,($O$1-1)*12) -> - | H10: =OFFSET(Balance!H42,0,($O$1-1)*12) -> - | I10: =OFFSET(Balance!I42,0,($O$1-1)*12) -> - | J10: =OFFSET(Balance!J42,0,($O$1-1)*12) -> - | K10: =OFFSET(Balance!K42,0,($O$1-1)*12) -> - | L10: =OFFSET(Balance!L42,0,($O$1-1)*12) -> - | M10: =OFFSET(Balance!M42,0,($O$1-1)*12) -> - | N10: =OFFSET(Balance!N42,0,($O$1-1)*12) -> - | O10: =IF(SUM(C10:N10)=0,"-",SUM(C10:N10)) -> -
B11: Motores diesel | C11: =OFFSET(Balance!C43,0,($O$1-1)*12) -> 192252 | D11: =OFFSET(Balance!D43,0,($O$1-1)*12) -> 175927 | E11: =OFFSET(Balance!E43,0,($O$1-1)*12) -> 196807 | F11: =OFFSET(Balance!F43,0,($O$1-1)*12) -> - | G11: =OFFSET(Balance!G43,0,($O$1-1)*12) -> - | H11: =OFFSET(Balance!H43,0,($O$1-1)*12) -> - | I11: =OFFSET(Balance!I43,0,($O$1-1)*12) -> - | J11: =OFFSET(Balance!J43,0,($O$1-1)*12) -> - | K11: =OFFSET(Balance!K43,0,($O$1-1)*12) -> - | L11: =OFFSET(Balance!L43,0,($O$1-1)*12) -> - | M11: =OFFSET(Balance!M43,0,($O$1-1)*12) -> - | N11: =OFFSET(Balance!N43,0,($O$1-1)*12) -> - | O11: =IF(SUM(C11:N11)=0,"-",SUM(C11:N11)) -> 564986
B12: Turbina de gas | C12: =OFFSET(Balance!C44,0,($O$1-1)*12) -> 27123 | D12: =OFFSET(Balance!D44,0,($O$1-1)*12) -> 34292 | E12: =OFFSET(Balance!E44,0,($O$1-1)*12) -> 16049 | F12: =OFFSET(Balance!F44,0,($O$1-1)*12) -> - | G12: =OFFSET(Balance!G44,0,($O$1-1)*12) -> - | H12: =OFFSET(Balance!H44,0,($O$1-1)*12) -> - | I12: =OFFSET(Balance!I44,0,($O$1-1)*12) -> - | J12: =OFFSET(Balance!J44,0,($O$1-1)*12) -> - | K12: =OFFSET(Balance!K44,0,($O$1-1)*12) -> - | L12: =OFFSET(Balance!L44,0,($O$1-1)*12) -> - | M12: =OFFSET(Balance!M44,0,($O$1-1)*12) -> - | N12: =OFFSET(Balance!N44,0,($O$1-1)*12) -> - | O12: 77464
B13: Turbina de vapor | C13: =OFFSET(Balance!C45,0,($O$1-1)*12) -> 237022 | D13: =OFFSET(Balance!D45,0,($O$1-1)*12) -> 194104 | E13: =OFFSET(Balance!E45,0,($O$1-1)*12) -> 150873 | F13: =OFFSET(Balance!F45,0,($O$1-1)*12) -> - | G13: =OFFSET(Balance!G45,0,($O$1-1)*12) -> - | H13: =OFFSET(Balance!H45,0,($O$1-1)*12) -> - | I13: =OFFSET(Balance!I45,0,($O$1-1)*12) -> - | J13: =OFFSET(Balance!J45,0,($O$1-1)*12) -> - | K13: =OFFSET(Balance!K45,0,($O$1-1)*12) -> - | L13: =OFFSET(Balance!L45,0,($O$1-1)*12) -> - | M13: =OFFSET(Balance!M45,0,($O$1-1)*12) -> - | N13: =OFFSET(Balance!N45,0,($O$1-1)*12) -> - | O13: 581999
B14: Fuel + Gas | C14: =OFFSET(Balance!C46,0,($O$1-1)*12) -> 456397 | D14: =OFFSET(Balance!D46,0,($O$1-1)*12) -> 404323 | E14: =OFFSET(Balance!E46,0,($O$1-1)*12) -> 363729 | F14: =OFFSET(Balance!F46,0,($O$1-1)*12) -> - | G14: =OFFSET(Balance!G46,0,($O$1-1)*12) -> - | H14: =OFFSET(Balance!H46,0,($O$1-1)*12) -> - | I14: =OFFSET(Balance!I46,0,($O$1-1)*12) -> - | J14: =OFFSET(Balance!J46,0,($O$1-1)*12) -> - | K14: =OFFSET(Balance!K46,0,($O$1-1)*12) -> - | L14: =OFFSET(Balance!L46,0,($O$1-1)*12) -> - | M14: =OFFSET(Balance!M46,0,($O$1-1)*12) -> - | N14: =OFFSET(Balance!N46,0,($O$1-1)*12) -> - | O14: =SUM(O11:O13) -> 1224449
B15: Ciclo combinado (2) | C15: =OFFSET(Balance!C47,0,($O$1-1)*12) -> 255129 | D15: =OFFSET(Balance!D47,0,($O$1-1)*12) -> 234399 | E15: =OFFSET(Balance!E47,0,($O$1-1)*12) -> 307706 | F15: =OFFSET(Balance!F47,0,($O$1-1)*12) -> - | G15: =OFFSET(Balance!G47,0,($O$1-1)*12) -> - | H15: =OFFSET(Balance!H47,0,($O$1-1)*12) -> - | I15: =OFFSET(Balance!I47,0,($O$1-1)*12) -> - | J15: =OFFSET(Balance!J47,0,($O$1-1)*12) -> - | K15: =OFFSET(Balance!K47,0,($O$1-1)*12) -> - | L15: =OFFSET(Balance!L47,0,($O$1-1)*12) -> - | M15: =OFFSET(Balance!M47,0,($O$1-1)*12) -> - | N15: =OFFSET(Balance!N47,0,($O$1-1)*12) -> - | O15: 797234
B16: Generación auxiliar (3) | C16: =OFFSET(Balance!C48,0,($O$1-1)*12) -> 0 | D16: =OFFSET(Balance!D48,0,($O$1-1)*12) -> 0 | E16: =OFFSET(Balance!E48,0,($O$1-1)*12) -> 0 | F16: =OFFSET(Balance!F48,0,($O$1-1)*12) -> - | G16: =OFFSET(Balance!G48,0,($O$1-1)*12) -> - | H16: =OFFSET(Balance!H48,0,($O$1-1)*12) -> - | I16: =OFFSET(Balance!I48,0,($O$1-1)*12) -> - | J16: =OFFSET(Balance!J48,0,($O$1-1)*12) -> - | K16: =OFFSET(Balance!K48,0,($O$1-1)*12) -> - | L16: =OFFSET(Balance!L48,0,($O$1-1)*12) -> - | M16: =OFFSET(Balance!M48,0,($O$1-1)*12) -> - | N16: =OFFSET(Balance!N48,0,($O$1-1)*12) -> - | O16: -
B17: Régimen ordinario | C17: =OFFSET(Balance!C49,0,($O$1-1)*12) -> 0 | D17: =OFFSET(Balance!D49,0,($O$1-1)*12) -> 0 | E17: =OFFSET(Balance!E49,0,($O$1-1)*12) -> 0 | F17: =OFFSET(Balance!F49,0,($O$1-1)*12) -> 0 | G17: =OFFSET(Balance!G49,0,($O$1-1)*12) -> 0 | H17: =OFFSET(Balance!H49,0,($O$1-1)*12) -> 0 | I17: =OFFSET(Balance!I49,0,($O$1-1)*12) -> 0 | J17: =OFFSET(Balance!J49,0,($O$1-1)*12) -> 0 | K17: =OFFSET(Balance!K49,0,($O$1-1)*12) -> 0 | L17: =OFFSET(Balance!L49,0,($O$1-1)*12) -> 0 | M17: =OFFSET(Balance!M49,0,($O$1-1)*12) -> 0 | N17: =OFFSET(Balance!N49,0,($O$1-1)*12) -> 0 | O17: =SUM(O14:O16) -> 2021683
B18: Consumos generación (4) | C18: =OFFSET(Balance!C50,0,($O$1-1)*12) -> -37527 | D18: =OFFSET(Balance!D50,0,($O$1-1)*12) -> -33919 | E18: =OFFSET(Balance!E50,0,($O$1-1)*12) -> -29753 | F18: =OFFSET(Balance!F50,0,($O$1-1)*12) -> - | G18: =OFFSET(Balance!G50,0,($O$1-1)*12) -> - | H18: =OFFSET(Balance!H50,0,($O$1-1)*12) -> - | I18: =OFFSET(Balance!I50,0,($O$1-1)*12) -> - | J18: =OFFSET(Balance!J50,0,($O$1-1)*12) -> - | K18: =OFFSET(Balance!K50,0,($O$1-1)*12) -> - | L18: =OFFSET(Balance!L50,0,($O$1-1)*12) -> - | M18: =OFFSET(Balance!M50,0,($O$1-1)*12) -> - | N18: =OFFSET(Balance!N50,0,($O$1-1)*12) -> - | O18: -101199
B19: Resto hidráulica | C19: =OFFSET(Balance!C51,0,($O$1-1)*12) -> 305 | D19: =OFFSET(Balance!D51,0,($O$1-1)*12) -> 276 | E19: =OFFSET(Balance!E51,0,($O$1-1)*12) -> 420 | F19: =OFFSET(Balance!F51,0,($O$1-1)*12) -> - | G19: =OFFSET(Balance!G51,0,($O$1-1)*12) -> - | H19: =OFFSET(Balance!H51,0,($O$1-1)*12) -> - | I19: =OFFSET(Balance!I51,0,($O$1-1)*12) -> - | J19: =OFFSET(Balance!J51,0,($O$1-1)*12) -> - | K19: =OFFSET(Balance!K51,0,($O$1-1)*12) -> - | L19: =OFFSET(Balance!L51,0,($O$1-1)*12) -> - | M19: =OFFSET(Balance!M51,0,($O$1-1)*12) -> - | N19: =OFFSET(Balance!N51,0,($O$1-1)*12) -> - | O19: 1001
B20: Eólica | C20: =OFFSET(Balance!C52,0,($O$1-1)*12) -> 30987 | D20: =OFFSET(Balance!D52,0,($O$1-1)*12) -> 34303 | E20: =OFFSET(Balance!E52,0,($O$1-1)*12) -> 45473 | F20: =OFFSET(Balance!F52,0,($O$1-1)*12) -> - | G20: =OFFSET(Balance!G52,0,($O$1-1)*12) -> - | H20: =OFFSET(Balance!H52,0,($O$1-1)*12) -> - | I20: =OFFSET(Balance!I52,0,($O$1-1)*12) -> - | J20: =OFFSET(Balance!J52,0,($O$1-1)*12) -> - | K20: =OFFSET(Balance!K52,0,($O$1-1)*12) -> - | L20: =OFFSET(Balance!L52,0,($O$1-1)*12) -> - | M20: =OFFSET(Balance!M52,0,($O$1-1)*12) -> - | N20: =OFFSET(Balance!N52,0,($O$1-1)*12) -> - | O20: 110763
B21: Solar fotovoltaica | C21: =OFFSET(Balance!C53,0,($O$1-1)*12) -> 18547 | D21: =OFFSET(Balance!D53,0,($O$1-1)*12) -> 19879 | E21: =OFFSET(Balance!E53,0,($O$1-1)*12) -> 26997.775 | F21: =OFFSET(Balance!F53,0,($O$1-1)*12) -> - | G21: =OFFSET(Balance!G53,0,($O$1-1)*12) -> - | H21: =OFFSET(Balance!H53,0,($O$1-1)*12) -> - | I21: =OFFSET(Balance!I53,0,($O$1-1)*12) -> - | J21: =OFFSET(Balance!J53,0,($O$1-1)*12) -> - | K21: =OFFSET(Balance!K53,0,($O$1-1)*12) -> - | L21: =OFFSET(Balance!L53,0,($O$1-1)*12) -> - | M21: =OFFSET(Balance!M53,0,($O$1-1)*12) -> - | N21: =OFFSET(Balance!N53,0,($O$1-1)*12) -> - | O21: 65423.775
B22: Térmica renovable | C22: =OFFSET(Balance!C54,0,($O$1-1)*12) -> 787 | D22: =OFFSET(Balance!D54,0,($O$1-1)*12) -> 707 | E22: =OFFSET(Balance!E54,0,($O$1-1)*12) -> 695 | F22: =OFFSET(Balance!F54,0,($O$1-1)*12) -> - | G22: =OFFSET(Balance!G54,0,($O$1-1)*12) -> - | H22: =OFFSET(Balance!H54,0,($O$1-1)*12) -> - | I22: =OFFSET(Balance!I54,0,($O$1-1)*12) -> - | J22: =OFFSET(Balance!J54,0,($O$1-1)*12) -> - | K22: =OFFSET(Balance!K54,0,($O$1-1)*12) -> - | L22: =OFFSET(Balance!L54,0,($O$1-1)*12) -> - | M22: =OFFSET(Balance!M54,0,($O$1-1)*12) -> - | N22: =OFFSET(Balance!N54,0,($O$1-1)*12) -> - | O22: 2189
B23: Cogeneración y resto | C23: =OFFSET(Balance!C55,0,($O$1-1)*12) -> 0 | D23: =OFFSET(Balance!D55,0,($O$1-1)*12) -> 0 | E23: =OFFSET(Balance!E55,0,($O$1-1)*12) -> 0 | F23: =OFFSET(Balance!F55,0,($O$1-1)*12) -> - | G23: =OFFSET(Balance!G55,0,($O$1-1)*12) -> - | H23: =OFFSET(Balance!H55,0,($O$1-1)*12) -> - | I23: =OFFSET(Balance!I55,0,($O$1-1)*12) -> - | J23: =OFFSET(Balance!J55,0,($O$1-1)*12) -> - | K23: =OFFSET(Balance!K55,0,($O$1-1)*12) -> - | L23: =OFFSET(Balance!L55,0,($O$1-1)*12) -> - | M23: =OFFSET(Balance!M55,0,($O$1-1)*12) -> - | N23: =OFFSET(Balance!N55,0,($O$1-1)*12) -> - | O23: -
B24: Régimen especial | C24: =OFFSET(Balance!C56,0,($O$1-1)*12) -> 0 | D24: =OFFSET(Balance!D56,0,($O$1-1)*12) -> 0 | E24: =OFFSET(Balance!E56,0,($O$1-1)*12) -> 0 | F24: =OFFSET(Balance!F56,0,($O$1-1)*12) -> 0 | G24: =OFFSET(Balance!G56,0,($O$1-1)*12) -> 0 | H24: =OFFSET(Balance!H56,0,($O$1-1)*12) -> 0 | I24: =OFFSET(Balance!I56,0,($O$1-1)*12) -> 0 | J24: =OFFSET(Balance!J56,0,($O$1-1)*12) -> 0 | K24: =OFFSET(Balance!K56,0,($O$1-1)*12) -> 0 | L24: =OFFSET(Balance!L56,0,($O$1-1)*12) -> 0 | M24: =OFFSET(Balance!M56,0,($O$1-1)*12) -> 0 | N24: =OFFSET(Balance!N56,0,($O$1-1)*12) -> 0 | O24: =SUM(O19:O23) -> 179376.775
B25: Generación neta | C25: =OFFSET(Balance!C57,0,($O$1-1)*12) -> 724625 | D25: =OFFSET(Balance!D57,0,($O$1-1)*12) -> 659968 | E25: =OFFSET(Balance!E57,0,($O$1-1)*12) -> 715268 | F25: =OFFSET(Balance!F57,0,($O$1-1)*12) -> - | G25: =OFFSET(Balance!G57,0,($O$1-1)*12) -> - | H25: =OFFSET(Balance!H57,0,($O$1-1)*12) -> - | I25: =OFFSET(Balance!I57,0,($O$1-1)*12) -> - | J25: =OFFSET(Balance!J57,0,($O$1-1)*12) -> - | K25: =OFFSET(Balance!K57,0,($O$1-1)*12) -> - | L25: =OFFSET(Balance!L57,0,($O$1-1)*12) -> - | M25: =OFFSET(Balance!M57,0,($O$1-1)*12) -> - | N25: =OFFSET(Balance!N57,0,($O$1-1)*12) -> - | O25: =SUM(O17:O18,O24) -> 2099860.775
B26: Demanda transporte (b.c.) | C26: =OFFSET(Balance!C58,0,($O$1-1)*12) -> 724625 | D26: =OFFSET(Balance!D58,0,($O$1-1)*12) -> 659968 | E26: =OFFSET(Balance!E58,0,($O$1-1)*12) -> 715268 | F26: =OFFSET(Balance!F58,0,($O$1-1)*12) -> - | G26: =OFFSET(Balance!G58,0,($O$1-1)*12) -> - | H26: =OFFSET(Balance!H58,0,($O$1-1)*12) -> - | I26: =OFFSET(Balance!I58,0,($O$1-1)*12) -> - | J26: =OFFSET(Balance!J58,0,($O$1-1)*12) -> - | K26: =OFFSET(Balance!K58,0,($O$1-1)*12) -> - | L26: =OFFSET(Balance!L58,0,($O$1-1)*12) -> - | M26: =OFFSET(Balance!M58,0,($O$1-1)*12) -> - | N26: =OFFSET(Balance!N58,0,($O$1-1)*12) -> - | O26: =O25 -> 2099860.775
B27: (1) Asignación de unidades de producción según combustible principal.
B28: (2) Utiliza fue y gasoil como combustible principal. Incluye funcionamiento en ciclo abierto.
B29: (3) Grupos de emergencia que se instalan de forma transitoria en determinadas zonas para cubrir un déficit de generación.
B30: (4) Consumos en generación correspondientes a la producción hidráulica, fuel+gas, ciclo combinado y generación auxiliar.

Sheet Balance Ceuta
O1: 8
M3: www.ree.es
M4: Fecha de actualización: | O4: 2014-04-10
L6: Seleccione un año
C8: Ene. | D8: Feb. | E8: Mar. | F8: Abr. | G8: May. | H8: Jun. | I8: Jul. | J8: Ago. | K8: Sep. | L8: Oct. | M8: Nov. | N8: Dic. | O8: =OFFSET(Año!B19,($O$1-1),0) -> 2014
B10: Motores diesel | C10: =OFFSET(Balance!C61,0,($O$1-1)*12) -> 20378 | D10: =OFFSET(Balance!D61,0,($O$1-1)*12) -> 18663 | E10: =OFFSET(Balance!E61,0,($O$1-1)*12) -> 19729 | F10: =OFFSET(Balance!F61,0,($O$1-1)*12) -> - | G10: =OFFSET(Balance!G61,0,($O$1-1)*12) -> - | H10: =OFFSET(Balance!H61,0,($O$1-1)*12) -> - | I10: =OFFSET(Balance!I61,0,($O$1-1)*12) -> - | J10: =OFFSET(Balance!J61,0,($O$1-1)*12) -> - | K10: =OFFSET(Balance!K61,0,($O$1-1)*12) -> - | L10: =OFFSET(Balance!L61,0,($O$1-1)*12) -> - | M10: =OFFSET(Balance!M61,0,($O$1-1)*12) -> - | N10: =OFFSET(Balance!N61,0,($O$1-1)*12) -> - | O10: =IF(SUM(C10:N10)=0,"-",SUM(C10:N10)) -> 58770
B11: Turbina de gas | C11: =OFFSET(Balance!C62,0,($O$1-1)*12) -> 3 | D11: =OFFSET(Balance!D62,0,($O$1-1)*12) -> 0 | E11: =OFFSET(Balance!E62,0,($O$1-1)*12) -> 83 | F11: =OFFSET(Balance!F62,0,($O$1-1)*12) -> - | G11: =OFFSET(Balance!G62,0,($O$1-1)*12) -> - | H11: =OFFSET(Balance!H62,0,($O$1-1)*12) -> - | I11: =OFFSET(Balance!I62,0,($O$1-1)*12) -> - | J11: =OFFSET(Balance!J62,0,($O$1-1)*12) -> - | K11: =OFFSET(Balance!K62,0,($O$1-1)*12) -> - | L11: =OFFSET(Balance!L62,0,($O$1-1)*12) -> - | M11: =OFFSET(Balance!M62,0,($O$1-1)*12) -> - | N11: =OFFSET(Balance!N62,0,($O$1-1)*12) -> - | O11: 86
B12: Fuel + Gas | C12: =OFFSET(Balance!C63,0,($O$1-1)*12) -> 20381 | D12: =OFFSET(Balance!D63,0,($O$1-1)*12) -> 18663 | E12: =OFFSET(Balance!E63,0,($O$1-1)*12) -> 19812 | F12: =OFFSET(Balance!F63,0,($O$1-1)*12) -> - | G12: =OFFSET(Balance!G63,0,($O$1-1)*12) -> - | H12: =OFFSET(Balance!H63,0,($O$1-1)*12) -> - | I12: =OFFSET(Balance!I63,0,($O$1-1)*12) -> - | J12: =OFFSET(Balance!J63,0,($O$1-1)*12) -> - | K12: =OFFSET(Balance!K63,0,($O$1-1)*12) -> - | L12: =OFFSET(Balance!L63,0,($O$1-1)*12) -> - | M12: =OFFSET(Balance!M63,0,($O$1-1)*12) -> - | N12: =OFFSET(Balance!N63,0,($O$1-1)*12) -> - | O12: =SUM(O10:O11) -> 58856
B13: Régimen ordinario | C13: =OFFSET(Balance!C64,0,($O$1-1)*12) -> 0 | D13: =OFFSET(Balance!D64,0,($O$1-1)*12) -> 0 | E13: =OFFSET(Balance!E64,0,($O$1-1)*12) -> 0 | F13: =OFFSET(Balance!F64,0,($O$1-1)*12) -> 0 | G13: =OFFSET(Balance!G64,0,($O$1-1)*12) -> 0 | H13: =OFFSET(Balance!H64,0,($O$1-1)*12) -> 0 | I13: =OFFSET(Balance!I64,0,($O$1-1)*12) -> 0 | J13: =OFFSET(Balance!J64,0,($O$1-1)*12) -> 0 | K13: =OFFSET(Balance!K64,0,($O$1-1)*12) -> 0 | L13: =OFFSET(Balance!L64,0,($O$1-1)*12) -> 0 | M13: =OFFSET(Balance!M64,0,($O$1-1)*12) -> 0 | N13: =OFFSET(Balance!N64,0,($O$1-1)*12) -> 0 | O13: =SUM(O12) -> 58856
B14: Consumos generación (2) | C14: =OFFSET(Balance!C65,0,($O$1-1)*12) -> -1575 | D14: =OFFSET(Balance!D65,0,($O$1-1)*12) -> -1447 | E14: =OFFSET(Balance!E65,0,($O$1-1)*12) -> -1171 | F14: =OFFSET(Balance!F65,0,($O$1-1)*12) -> - | G14: =OFFSET(Balance!G65,0,($O$1-1)*12) -> - | H14: =OFFSET(Balance!H65,0,($O$1-1)*12) -> - | I14: =OFFSET(Balance!I65,0,($O$1-1)*12) -> - | J14: =OFFSET(Balance!J65,0,($O$1-1)*12) -> - | K14: =OFFSET(Balance!K65,0,($O$1-1)*12) -> - | L14: =OFFSET(Balance!L65,0,($O$1-1)*12) -> - | M14: =OFFSET(Balance!M65,0,($O$1-1)*12) -> - | N14: =OFFSET(Balance!N65,0,($O$1-1)*12) -> - | O14: -4193
B15: Generación neta | C15: =OFFSET(Balance!C66,0,($O$1-1)*12) -> 18806 | D15: =OFFSET(Balance!D66,0,($O$1-1)*12) -> 17216 | E15: =OFFSET(Balance!E66,0,($O$1-1)*12) -> 18641 | F15: =OFFSET(Balance!F66,0,($O$1-1)*12) -> - | G15: =OFFSET(Balance!G66,0,($O$1-1)*12) -> - | H15: =OFFSET(Balance!H66,0,($O$1-1)*12) -> - | I15: =OFFSET(Balance!I66,0,($O$1-1)*12) -> - | J15: =OFFSET(Balance!J66,0,($O$1-1)*12) -> - | K15: =OFFSET(Balance!K66,0,($O$1-1)*12) -> - | L15: =OFFSET(Balance!L66,0,($O$1-1)*12) -> - | M15: =OFFSET(Balance!M66,0,($O$1-1)*12) -> - | N15: =OFFSET(Balance!N66,0,($O$1-1)*12) -> - | O15: =SUM(O13:O14) -> 54663
B16: Demanda transporte (b.c.) | C16: =OFFSET(Balance!C67,0,($O$1-1)*12) -> 18806 | D16: =OFFSET(Balance!D67,0,($O$1-1)*12) -> 17216 | E16: =OFFSET(Balance!E67,0,($O$1-1)*12) -> 18641 | F16: =OFFSET(Balance!F67,0,($O$1-1)*12) -> - | G16: =OFFSET(Balance!G67,0,($O$1-1)*12) -> - | H16: =OFFSET(Balance!H67,0,($O$1-1)*12) -> - | I16: =OFFSET(Balance!I67,0,($O$1-1)*12) -> - | J16: =OFFSET(Balance!J67,0,($O$1-1)*12) -> - | K16: =OFFSET(Balance!K67,0,($O$1-1)*12) -> - | L16: =OFFSET(Balance!L67,0,($O$1-1)*12) -> - | M16: =OFFSET(Balance!M67,0,($O$1-1)*12) -> - | N16: =OFFSET(Balance!N67,0,($O$1-1)*12) -> - | O16: =O15 -> 54663
B17: (1) Asignación de unidades de producción según combustible principal.
B18: (2) Consumos en generación correspondientes a la producción con carbón, fuel+gas, ciclo combinado y generación auxiliar.

Sheet Balance Melilla
O1: 8
M3: www.ree.es
M4: Fecha de actualización: | O4: 2014-04-10
L6: Seleccione un año
C8: Ene. | D8: Feb. | E8: Mar. | F8: Abr. | G8: May. | H8: Jun. | I8: Jul. | J8: Ago. | K8: Sep. | L8: Oct. | M8: Nov. | N8: Dic. | O8: =OFFSET(Año!B19,($O$1-1),0) -> 2014
B10: Motores diesel | C10: =OFFSET(Balance!C70,0,($O$1-1)*12) -> 18284 | D10: =OFFSET(Balance!D70,0,($O$1-1)*12) -> 16212 | E10: =OFFSET(Balance!E70,0,($O$1-1)*12) -> 17756 | F10: =OFFSET(Balance!F70,0,($O$1-1)*12) -> - | G10: =OFFSET(Balance!G70,0,($O$1-1)*12) -> - | H10: =OFFSET(Balance!H70,0,($O$1-1)*12) -> - | I10: =OFFSET(Balance!I70,0,($O$1-1)*12) -> - | J10: =OFFSET(Balance!J70,0,($O$1-1)*12) -> - | K10: =OFFSET(Balance!K70,0,($O$1-1)*12) -> - | L10: =OFFSET(Balance!L70,0,($O$1-1)*12) -> - | M10: =OFFSET(Balance!M70,0,($O$1-1)*12) -> - | N10: =OFFSET(Balance!N70,0,($O$1-1)*12) -> - | O10: =IF(SUM(C10:N10)=0,"-",SUM(C10:N10)) -> 52252
B11: Turbina de gas | C11: =OFFSET(Balance!C71,0,($O$1-1)*12) -> 3 | D11: =OFFSET(Balance!D71,0,($O$1-1)*12) -> 47 | E11: =OFFSET(Balance!E71,0,($O$1-1)*12) -> 5 | F11: =OFFSET(Balance!F71,0,($O$1-1)*12) -> - | G11: =OFFSET(Balance!G71,0,($O$1-1)*12) -> - | H11: =OFFSET(Balance!H71,0,($O$1-1)*12) -> - | I11: =OFFSET(Balance!I71,0,($O$1-1)*12) -> - | J11: =OFFSET(Balance!J71,0,($O$1-1)*12) -> - | K11: =OFFSET(Balance!K71,0,($O$1-1)*12) -> - | L11: =OFFSET(Balance!L71,0,($O$1-1)*12) -> - | M11: =OFFSET(Balance!M71,0,($O$1-1)*12) -> - | N11: =OFFSET(Balance!N71,0,($O$1-1)*12) -> - | O11: 55
B12: Fuel + Gas | C12: =OFFSET(Balance!C72,0,($O$1-1)*12) -> 18287 | D12: =OFFSET(Balance!D72,0,($O$1-1)*12) -> 16259 | E12: =OFFSET(Balance!E72,0,($O$1-1)*12) -> 17761 | F12: =OFFSET(Balance!F72,0,($O$1-1)*12) -> - | G12: =OFFSET(Balance!G72,0,($O$1-1)*12) -> - | H12: =OFFSET(Balance!H72,0,($O$1-1)*12) -> - | I12: =OFFSET(Balance!I72,0,($O$1-1)*12) -> - | J12: =OFFSET(Balance!J72,0,($O$1-1)*12) -> - | K12: =OFFSET(Balance!K72,0,($O$1-1)*12) -> - | L12: =OFFSET(Balance!L72,0,($O$1-1)*12) -> - | M12: =OFFSET(Balance!M72,0,($O$1-1)*12) -> - | N12: =OFFSET(Balance!N72,0,($O$1-1)*12) -> - | O12: =SUM(O10:O11) -> 52307
B13: Régimen ordinario | C13: =OFFSET(Balance!C73,0,($O$1-1)*12) -> 0 | D13: =OFFSET(Balance!D73,0,($O$1-1)*12) -> 0 | E13: =OFFSET(Balance!E73,0,($O$1-1)*12) -> 0 | F13: =OFFSET(Balance!F73,0,($O$1-1)*12) -> 0 | G13: =OFFSET(Balance!G73,0,($O$1-1)*12) -> 0 | H13: =OFFSET(Balance!H73,0,($O$1-1)*12) -> 0 | I13: =OFFSET(Balance!I73,0,($O$1-1)*12) -> 0 | J13: =OFFSET(Balance!J73,0,($O$1-1)*12) -> 0 | K13: =OFFSET(Balance!K73,0,($O$1-1)*12) -> 0 | L13: =OFFSET(Balance!L73,0,($O$1-1)*12) -> 0 | M13: =OFFSET(Balance!M73,0,($O$1-1)*12) -> 0 | N13: =OFFSET(Balance!N73,0,($O$1-1)*12) -> 0 | O13: =SUM(O12) -> 52307
B14: Consumos generación (2) | C14: =OFFSET(Balance!C74,0,($O$1-1)*12) -> -1165 | D14: =OFFSET(Balance!D74,0,($O$1-1)*12) -> -1014 | E14: =OFFSET(Balance!E74,0,($O$1-1)*12) -> -1049 | F14: =OFFSET(Balance!F74,0,($O$1-1)*12) -> - | G14: =OFFSET(Balance!G74,0,($O$1-1)*12) -> - | H14: =OFFSET(Balance!H74,0,($O$1-1)*12) -> - | I14: =OFFSET(Balance!I74,0,($O$1-1)*12) -> - | J14: =OFFSET(Balance!J74,0,($O$1-1)*12) -> - | K14: =OFFSET(Balance!K74,0,($O$1-1)*12) -> - | L14: =OFFSET(Balance!L74,0,($O$1-1)*12) -> - | M14: =OFFSET(Balance!M74,0,($O$1-1)*12) -> - | N14: =OFFSET(Balance!N74,0,($O$1-1)*12) -> - | O14: -3228
B15: Solar fotovoltaica | C15: =OFFSET(Balance!C75,0,($O$1-1)*12) -> 0 | D15: =OFFSET(Balance!D75,0,($O$1-1)*12) -> 0 | E15: =OFFSET(Balance!E75,0,($O$1-1)*12) -> 0 | F15: =OFFSET(Balance!F75,0,($O$1-1)*12) -> - | G15: =OFFSET(Balance!G75,0,($O$1-1)*12) -> - | H15: =OFFSET(Balance!H75,0,($O$1-1)*12) -> - | I15: =OFFSET(Balance!I75,0,($O$1-1)*12) -> - | J15: =OFFSET(Balance!J75,0,($O$1-1)*12) -> - | K15: =OFFSET(Balance!K75,0,($O$1-1)*12) -> - | L15: =OFFSET(Balance!L75,0,($O$1-1)*12) -> - | M15: =OFFSET(Balance!M75,0,($O$1-1)*12) -> - | N15: =OFFSET(Balance!N75,0,($O$1-1)*12) -> - | O15: -
B16: Cogeneración y resto | C16: =OFFSET(Balance!C76,0,($O$1-1)*12) -> 818 | D16: =OFFSET(Balance!D76,0,($O$1-1)*12) -> 739 | E16: =OFFSET(Balance!E76,0,($O$1-1)*12) -> 816 | F16: =OFFSET(Balance!F76,0,($O$1-1)*12) -> - | G16: =OFFSET(Balance!G76,0,($O$1-1)*12) -> - | H16: =OFFSET(Balance!H76,0,($O$1-1)*12) -> - | I16: =OFFSET(Balance!I76,0,($O$1-1)*12) -> - | J16: =OFFSET(Balance!J76,0,($O$1-1)*12) -> - | K16: =OFFSET(Balance!K76,0,($O$1-1)*12) -> - | L16: =OFFSET(Balance!L76,0,($O$1-1)*12) -> - | M16: =OFFSET(Balance!M76,0,($O$1-1)*12) -> - | N16: =OFFSET(Balance!N76,0,($O$1-1)*12) -> - | O16: 2373
B17: Régimen especial | C17: =OFFSET(Balance!C77,0,($O$1-1)*12) -> 818 | D17: =OFFSET(Balance!D77,0,($O$1-1)*12) -> 739 | E17: =OFFSET(Balance!E77,0,($O$1-1)*12) -> 816 | F17: =OFFSET(Balance!F77,0,($O$1-1)*12) -> 0 | G17: =OFFSET(Balance!G77,0,($O$1-1)*12) -> 0 | H17: =OFFSET(Balance!H77,0,($O$1-1)*12) -> 0 | I17: =OFFSET(Balance!I77,0,($O$1-1)*12) -> 0 | J17: =OFFSET(Balance!J77,0,($O$1-1)*12) -> 0 | K17: =OFFSET(Balance!K77,0,($O$1-1)*12) -> 0 | L17: =OFFSET(Balance!L77,0,($O$1-1)*12) -> 0 | M17: =OFFSET(Balance!M77,0,($O$1-1)*12) -> 0 | N17: =OFFSET(Balance!N77,0,($O$1-1)*12) -> 0 | O17: =SUM(O15:O16) -> 2373
B18: Generación neta | C18: =OFFSET(Balance!C78,0,($O$1-1)*12) -> 17940 | D18: =OFFSET(Balance!D78,0,($O$1-1)*12) -> 15984 | E18: =OFFSET(Balance!E78,0,($O$1-1)*12) -> 17528 | F18: =OFFSET(Balance!F78,0,($O$1-1)*12) -> - | G18: =OFFSET(Balance!G78,0,($O$1-1)*12) -> - | H18: =OFFSET(Balance!H78,0,($O$1-1)*12) -> - | I18: =OFFSET(Balance!I78,0,($O$1-1)*12) -> - | J18: =OFFSET(Balance!J78,0,($O$1-1)*12) -> - | K18: =OFFSET(Balance!K78,0,($O$1-1)*12) -> - | L18: =OFFSET(Balance!L78,0,($O$1-1)*12) -> - | M18: =OFFSET(Balance!M78,0,($O$1-1)*12) -> - | N18: =OFFSET(Balance!N78,0,($O$1-1)*12) -> - | O18: =SUM(O13:O14,O17) -> 51452
B19: Demanda transporte (b.c.) | C19: =OFFSET(Balance!C79,0,($O$1-1)*12) -> 17940 | D19: =OFFSET(Balance!D79,0,($O$1-1)*12) -> 15984 | E19: =OFFSET(Balance!E79,0,($O$1-1)*12) -> 17528 | F19: =OFFSET(Balance!F79,0,($O$1-1)*12) -> - | G19: =OFFSET(Balance!G79,0,($O$1-1)*12) -> - | H19: =OFFSET(Balance!H79,0,($O$1-1)*12) -> - | I19: =OFFSET(Balance!I79,0,($O$1-1)*12) -> - | J19: =OFFSET(Balance!J79,0,($O$1-1)*12) -> - | K19: =OFFSET(Balance!K79,0,($O$1-1)*12) -> - | L19: =OFFSET(Balance!L79,0,($O$1-1)*12) -> - | M19: =OFFSET(Balance!M79,0,($O$1-1)*12) -> - | N19: =OFFSET(Balance!N79,0,($O$1-1)*12) -> - | O19: =O18 -> 51452
B20: (1) Asignación de unidades de producción según combustible principal.
B21: (2) Consumos en generación correspondientes a la producción con carbón, fuel+gas, ciclo combinado y generación auxiliar.

Sheet Balance (hidden)
B2: Balance eléctrico peninsular (GWh) | C2: 1990-01-01 | D2: 1990-02-01 | E2: 1990-03-01 | F2: 1990-04-01 | G2: 1990-05-01 | H2: 1990-06-01 | I2: 1990-07-01 | J2: 1990-08-01 | K2: 1990-09-01 | L2: 1990-10-01 | M2: 1990-11-01 | N2: 1990-12-01 | O2: 1991-01-01 | P2: 1991-02-01 | Q2: 1991-03-01 | R2: 1991-04-01 | S2: 1991-05-01 | T2: 1991-06-01 | U2: 1991-07-01 | V2: 1991-08-01 | W2: 1991-09-01 | X2: 1991-10-01 | Y2: 1991-11-01 | Z2: 1991-12-01 | AA2: 1992-01-01 | AB2: 1992-02-01 | AC2: 1992-03-01 | AD2: 1992-04-01 | AE2: 1992-05-01 | AF2: 1992-06-01 | AG2: 1992-07-01 | AH2: 1992-08-01 | AI2: 1992-09-01 | AJ2: 1992-10-01 | AK2: 1992-11-01 | AL2: 1992-12-01 | AM2: 1993-01-01 | AN2: 1993-02-01 | AO2: 1993-03-01 | AP2: 1993-04-01 | AQ2: 1993-05-01 | AR2: 1993-06-01 | AS2: 1993-07-01 | AT2: 1993-08-01 | AU2: 1993-09-01 | AV2: 1993-10-01 | AW2: 1993-11-01 | AX2: 1993-12-01 | AY2: 1994-01-01 | AZ2: 1994-02-01 | BA2: 1994-03-01 | BB2: 1994-04-01 | BC2: 1994-05-01 | BD2: 1994-06-01 | BE2: 1994-07-01 | BF2: 1994-08-01 | BG2: 1994-09-01 | BH2: 1994-10-01 | BI2: 1994-11-01 | BJ2: 1994-12-01 | BK2: 1995-01-01 | BL2: 1995-02-01 | BM2: 1995-03-01 | BN2: 1995-04-01 | BO2: 1995-05-01 | BP2: 1995-06-01 | BQ2: 1995-07-01 | BR2: 1995-08-01 | BS2: 1995-09-01 | BT2: 1995-10-01 | BU2: 1995-11-01 | BV2: 1995-12-01 | BW2: 1996-01-01 | BX2: 1996-02-01 | BY2: 1996-03-01 | BZ2: 1996-04-01 | CA2: 1996-05-01 | CB2: 1996-06-01 | CC2: 1996-07-01 | CD2: 1996-08-01 | CE2: 1996-09-01 | CF2: 1996-10-01 | CG2: 1996-11-01 | CH2: 1996-12-01 | CI2: 1997-01-01 | CJ2: 1997-02-01 | CK2: 1997-03-01 | CL2: 1997-04-01 | CM2: 1997-05-01 | CN2: 1997-06-01 | CO2: 1997-07-01 | CP2: 1997-08-01 | CQ2: 1997-09-01 | CR2: 1997-10-01 | CS2: 1997-11-01 | CT2: 1997-12-01 | CU2: 1998-01-01 | CV2: 1998-02-01 | CW2: 1998-03-01 | CX2: 1998-04-01 | CY2: 1998-05-01 | CZ2: 1998-06-01 | DA2: 1998-07-01 | DB2: 1998-08-01 | DC2: 1998-09-01 | DD2: 1998-10-01 | DE2: 1998-11-01 | DF2: 1998-12-01 | DG2: 1999-01-01 | DH2: 1999-02-01 | DI2: 1999-03-01 | DJ2: 1999-04-01 | DK2: 1999-05-01 | DL2: 1999-06-01 | DM2: 1999-07-01 | DN2: 1999-08-01 | DO2: 1999-09-01 | DP2: 1999-10-01 | DQ2: 1999-11-01 | DR2: 1999-12-01 | DS2: 2000-01-01 | DT2: 2000-02-01 | DU2: 2000-03-01 | DV2: 2000-04-01 | DW2: 2000-05-01 | DX2: 2000-06-01 | DY2: 2000-07-01 | DZ2: 2000-08-01 | EA2: 2000-09-01 | EB2: 2000-10-01 | EC2: 2000-11-01 | ED2: 2000-12-01 | EE2: 2001-01-01 | EF2: 2001-02-01 | EG2: 2001-03-01 | EH2: 2001-04-01 | EI2: 2001-05-01 | EJ2: 2001-06-01 | EK2: 2001-07-01 | EL2: 2001-08-01 | EM2: 2001-09-01 | EN2: 2001-10-01 | EO2: 2001-11-01 | EP2: 2001-12-01 | EQ2: 2002-01-01 | ER2: 2002-02-01 | ES2: 2002-03-01 | ET2: 2002-04-01 | EU2: 2002-05-01 | EV2: 2002-06-01 | EW2: 2002-07-01 | EX2: 2002-08-01 | EY2: 2002-09-01 | EZ2: 2002-10-01 | FA2: 2002-11-01 | FB2: 2002-12-01 | FC2: 2003-01-01 | FD2: 2003-02-01 | FE2: 2003-03-01 | FF2: 2003-04-01 | FG2: 2003-05-01 | FH2: 2003-06-01 | FI2: 2003-07-01 | FJ2: 2003-08-01 | FK2: 2003-09-01 | FL2: 2003-10-01 | FM2: 2003-11-01 | FN2: 2003-12-01 | FO2: 2004-01-01 | FP2: 2004-02-01 | FQ2: 2004-03-01 | FR2: 2004-04-01 | FS2: 2004-05-01 | FT2: 2004-06-01 | FU2: 2004-07-01 | FV2: 2004-08-01 | FW2: 2004-09-01 | FX2: 2004-10-01 | FY2: 2004-11-01 | FZ2: 2004-12-01 | GA2: 2005-01-01 | GB2: 2005-02-01 | GC2: 2005-03-01 | GD2: 2005-04-01 | GE2: 2005-05-01 | GF2: 2005-06-01 | GG2: 2005-07-01 | GH2: 2005-08-01 | GI2: 2005-09-01 | GJ2: 2005-10-01 | GK2: 2005-11-01 | GL2: 2005-12-01 | GM2: 2006-01-01 | GN2: 2006-02-01 | GO2: 2006-03-01 | GP2: 2006-04-01 | GQ2: 2006-05-01 | GR2: 2006-06-01 | GS2: 2006-07-01 | GT2: 2006-08-01 | GU2: 2006-09-01 | GV2: 2006-10-01 | GW2: 2006-11-01 | GX2: 2006-12-01 | GY2: 2007-01-01 | GZ2: 2007-02-01 | HA2: 2007-03-01 | HB2: 2007-04-01 | HC2: 2007-05-01 | HD2: 2007-06-01 | HE2: 2007-07-01 | HF2: 2007-08-01 | HG2: 2007-09-01 | HH2: 2007-10-01 | HI2: 2007-11-01 | HJ2: 2007-12-01 | HK2: 2008-01-01 | HL2: 2008-02-01 | HM2: 2008-03-01 | HN2: 2008-04-01 | HO2: 2008-05-01 | HP2: 2008-06-01 | HQ2: 2008-07-01 | HR2: 2008-08-01 | HS2: 2008-09-01 | HT2: 2008-10-01 | HU2: 2008-11-01 | HV2: 2008-12-01 | HW2: 2009-01-01 | HX2: 2009-02-01 | HY2: 2009-03-01 | HZ2: 2009-04-01 | IA2: 2009-05-01 | IB2: 2009-06-01 | IC2: 2009-07-01 | ID2: 2009-08-01 | IE2: 2009-09-01 | IF2: 2009-10-01 | IG2: 2009-11-01 | IH2: 2009-12-01 | II2: 2010-01-01 | IJ2: 2010-02-01 | IK2: 2010-03-01 | IL2: 2010-04-01 | IM2: 2010-05-01 | IN2: 2010-06-01 | IO2: 2010-07-01 | IP2: 2010-08-01 | IQ2: 2010-09-01 | IR2: 2010-10-01 | IS2: 2010-11-01 | IT2: 2010-12-01 | IU2: 2011-01-01 | IV2: 2011-02-01 | IW2: 2011-03-01 | IX2: 2011-04-01 | IY2: 2011-05-01 | IZ2: 2011-06-01 | JA2: 2011-07-01 | JB2: 2011-08-01 | JC2: 2011-09-01 | JD2: 2011-10-01 | JE2: 2011-11-01 | JF2: 2011-12-01 | JG2: 2012-01-01 | JH2: 2012-02-01 | JI2: 2012-03-01 | JJ2: 2012-04-01 | JK2: 2012-05-01 | JL2: 2012-06-01 | JM2: 2012-07-01 | JN2: 2012-08-01 | JO2: 2012-09-01 | JP2: 2012-10-01 | JQ2: 2012-11-01 | JR2: 2012-12-01 | JS2: 2013-01-01 | JT2: 2013-02-01 | JU2: 2013-03-01 | JV2: 2013-04-01 | JW2: 2013-05-01 | JX2: 2013-06-01 | JY2: 2013-07-01 | JZ2: 2013-08-01 | KA2: 2013-09-01 | KB2: 2013-10-01 | KC2: 2013-11-01 | KD2: 2013-12-01 | KE2: 2014-01-01 | KF2: 2014-02-01 | KG2: 2014-03-01 | KH2: 2014-04-01 | KI2: 2014-05-01 | KJ2: 2014-06-01 | KK2: 2014-07-01 | KL2: 2014-08-01 | KM2: 2014-09-01 | KN2: 2014-10-01 | KO2: 2014-11-01 | KP2: 2014-12-01
B3: Hidráulica | C3: 4019.485 | D3: 3371.618 | E3: 2435.937 | F3: 1713.703 | G3: 1835.496 | H3: 1800.282 | I3: 1588.796 | J3: 1222.68 | K3: 1307.482 | L3: 1479.923 | M3: 1939.931 | N3: 1994.727 | O3: 2699.071 | P3: 2105.538 | Q3: 3797.703 | R3: 3381.118 | S3: 2757.395 | T3: 2063.867 | U3: 1690.768 | V3: 1125.643 | W3: 1146.749 | X3: 1547.753 | Y3: 2019.348 | Z3: 1883.149 | AA3: 1462.837 | AB3: 843.573 | AC3: 836.439 | AD3: 1637.47 | AE3: 1479.472 | AF3: 1614.322 | AG3: 1729.775 | AH3: 1248.606 | AI3: 1337.426 | AJ3: 1917.599 | AK3: 2170.635 | AL3: 2761.535 | AM3: 2103.829 | AN3: 1491.069 | AO3: 1444.227 | AP3: 1141.487 | AQ3: 1851.328 | AR3: 2162.863 | AS3: 1871.201 | AT3: 1299.824 | AU3: 1273.911 | AV3: 2814.289 | AW3: 3370.811 | AX3: 2577.181 | AY3: 3758.358 | AZ3: 2990.238 | BA3: 2597.659 | BB3: 2227.619 | BC3: 2456.365 | BD3: 2312.307 | BE3: 1822.723 | BF3: 1273.675 | BG3: 1285.303 | BH3: 1525.149 | BI3: 2188.096 | BJ3: 1785.14 | BK3: 2721.023 | BL3: 2526.545 | BM3: 3058.663 | BN3: 1854.288 | BO3: 1684.142 | BP3: 1721.072 | BQ3: 1635.532 | BR3: 1108.807 | BS3: 943.34 | BT3: 1012.585 | BU3: 1235.375 | BV3: 2427.821 | BW3: 5937.202 | BX3: 5379.429 | BY3: 3345.052 | BZ3: 3475.216 | CA3: 3619.721 | CB3: 2787.37 | CC3: 2197.171 | CD3: 1449.094 | CE3: 1684.998 | CF3: 1684.64 | CG3: 2094.437 | CH3: 4000.503 | CI3: 5453.783 | CJ3: 3259.655 | CK3: 2490.659 | CL3: 2181.012 | CM3: 2121.379 | CN3: 2231.924 | CO3: 1960.299 | CP3: 1710.878 | CQ3: 1612.843 | CR3: 1475.312 | CS3: 3400.522 | CT3: 5248.156 | CU3: 5704.416 | CV3: 3860.783 | CW3: 2535.211 | CX3: 3323.547 | CY3: 3865.67 | CZ3: 3281.573 | DA3: 2555.717 | DB3: 2131.217 | DC3: 1850.571 | DD3: 1932.376 | DE3: 1510.209 | DF3: 1411.363 | DG3: 1458.315 | DH3: 1339.102 | DI3: 1855.825 | DJ3: 2030.674 | DK3: 2685.288 | DL3: 2389.018 | DM3: 1933.436 | DN3: 1481.594 | DO3: 1596.436 | DP3: 1838.979 | DQ3: 2730.137 | DR3: 2790.615 | DS3: 2544.488 | DT3: 1596.335 | DU3: 1564.165 | DV3: 2192.985 | DW3: 3342.834 | DX3: 2267.802 | DY3: 1741.932 | DZ3: 1748.746 | EA3: 1879.236 | EB3: 1786.365 | EC3: 2484.878 | ED3: 4663.824 | EE3: 6277.017 | EF3: 5633.283 | EG3: 6426.956 | EH3: 4136.446 | EI3: 3152.459 | EJ3: 2436.63 | EK3: 2023.886 | EL3: 1950.769 | EM3: 1596.124 | EN3: 1853.624 | EO3: 2068.797 | EP3: 1842.277 | EQ3: 1573.554 | ER3: 1292.127 | ES3: 1912.289 | ET3: 1869.148 | EU3: 1990.059 | EV3: 2076.962 | EW3: 1658.874 | EX3: 1271.203 | EY3: 1284.493 | EZ3: 1374.397 | FA3: 2058.849 | FB3: 4238.609 | FC3: 5552.862 | FD3: 4295.185 | FE3: 4380.38 | FF3: 3588.633 | FG3: 3438.161 | FH3: 2345.573 | FI3: 2037.007 | FJ3: 1614.279 | FK3: 1790.526 | FL3: 2005.163 | FM3: 3082.526 | FN3: 4743.403 | FO3: 3522.013 | FP3: 3194.33 | FQ3: 2955.019 | FR3: 2752.433 | FS3: 3100.055 | FT3: 2681.468 | FU3: 2094.301 | FV3: 1799.512 | FW3: 1634.355 | FX3: 1821.385 | FY3: 2336.366 | FZ3: 1864.814 | GA3: 1623.336 | GB3: 1570.037 | GC3: 1792.994 | GD3: 1983.442 | GE3: 2227.728 | GF3: 1993.532 | GG3: 1570.316 | GH3: 1269.291 | GI3: 1044.721 | GJ3: 997.573 | GK3: 1369.426 | GL3: 1726.934 | GM3: 1679.196 | GN3: 1277.068 | GO3: 2748.428 | GP3: 2464.165 | GQ3: 2020.359 | GR3: 1538.418 | GS3: 1666.387 | GT3: 1158.239 | GU3: 1313.144 | GV3: 1725.796 | GW3: 3001.945 | GX3: 4737.092 | GY3: 2206.88 | GZ3: 2839.004 | HA3: 3700.214 | HB3: 2560.778 | HC3: 2620.654 | HD3: 2165.285 | HE3: 2417.949 | HF3: 1800.336 | HG3: 1453.653 | HH3: 1771.614 | HI3: 1443.687 | HJ3: 1371.831 | HK3: 1378.207 | HL3: 1042.346 | HM3: 1077.757 | HN3: 2344.817 | HO3: 2982.663 | HP3: 2846.646 | HQ3: 2020.718 | HR3: 1441.052 | HS3: 1291.477 | HT3: 1139.7 | HU3: 1512.794 | HV3: 2350.024 | HW3: 2150.03 | HX3: 3197.697 | HY3: 2492.817 | HZ3: 1926.912 | IA3: 2228.758 | IB3: 1861.903 | IC3: 1590.43 | ID3: 1362.161 | IE3: 948.491 | IF3: 1247.742 | IG3: 1864.619 | IH3: 2990.669 | II3: 4992.703 | IJ3: 3876.738 | IK3: 5462.659 | IL3: 4284.555 | IM3: 3406.193 | IN3: 3153.182 | IO3: 2701.725 | IP3: 1880.163 | IQ3: 1430.318 | IR3: 1548.35 | IS3: 2300.863 | IT3: 3615.418 | IU3: 4786.054 | IV3: 2693.631 | IW3: 3452.089 | IX3: 3185.084 | IY3: 2446.743 | IZ3: 1784.063 | JA3: 1399.58 | JB3: 1367.316 | JC3: 1142.408 | JD3: 1292.897 | JE3: 1977.487 | JF3: 2043.796 | JG3: 1634.34 | JH3: 1178.995 | JI3: 1273.613 | JJ3: 1605.516 | JK3: 2147.406 | JL3: 1888.944 | JM3: 1552.224 | JN3: 1345.637 | JO3: 1123.583 | JP3: 1422.43 | JQ3: 1874.686 | JR3: 2407.352 | JS3: 2752.086 | JT3: 3242.631 | JU3: 4281.264 | JV3: 4964.106 | JW3: 3322.179 | JX3: 2793.932 | JY3: 2388.426 | JZ3: 1926.21 | KA3: 1684.044 | KB3: 1759.959 | KC3: 2553.799 | KD3: 2301.648 | KE3: 3955.571 | KF3: 5426.862 | KG3: 4952.13 | KH3: - | KI3: - | KJ3: - | KK3: - | KL3: - | KM3: - | KN3: - | KO3: - | KP3: -
B4: Nuclear | C4: 5413.824 | D4: 4528.414 | E4: 4455.542 | F4: 4767.972 | G4: 4073.741 | H4: 3509.64 | I4: 4443.802 | J4: 5010.208 | K4: 4103.086 | L4: 3870.033 | M4: 4712.426 | N4: 5376.094 | O4: 5329.081 | P4: 4581.664 | Q4: 4257.962 | R4: 4183.247 | S4: 4758.547 | T4: 4431.809 | U4: 4652.571 | V4: 5169.923 | W4: 4478.796 | X4: 4662.114 | Y4: 4386.046 | Z4: 4686.146 | AA4: 5419.734 | AB4: 4589.251 | AC4: 4219.291 | AD4: 3619.619 | AE4: 4251.582 | AF4: 4501.191 | AG4: 4971.29 | AH4: 5164.716 | AI4: 4226.766 | AJ4: 5024.375 | AK4: 4372.051 | AL4: 5422.662 | AM4: 5417.398 | AN4: 4340.608 | AO4: 4877.182 | AP4: 4244.471 | AQ4: 4070.356 | AR4: 4381.583 | AS4: 4953.119 | AT4: 5055.401 | AU4: 4586.49 | AV4: 4697.586 | AW4: 4211.63 | AX4: 5223.601 | AY4: 5098.682 | AZ4: 4132.943 | BA4: 4075.821 | BB4: 4358.985 | BC4: 4738.485 | BD4: 4131.849 | BE4: 4786.08 | BF4: 5235.677 | BG4: 5081.155 | BH4: 4232.57 | BI4: 4153.773 | BJ4: 5287.644 | BK4: 5352.705 | BL4: 4582.765 | BM4: 4639.504 | BN4: 4316.859 | BO4: 4959.174 | BP4: 4713.177 | BQ4: 4316.634 | BR4: 4332.124 | BS4: 3987.166 | BT4: 4387.435 | BU4: 4465.825 | BV4: 5391.403 | BW4: 5401.692 | BX4: 4925.178 | BY4: 5023.436 | BZ4: 4628.547 | CA4: 5324.334 | CB4: 3941.794 | CC4: 3836.959 | CD4: 3841.279 | CE4: 4061.114 | CF4: 5051.947 | CG4: 4763.475 | CH4: 5529.333 | CI4: 5230.67 | CJ4: 4588.009 | CK4: 3842.074 | CL4: 4231.035 | CM4: 5209.887 | CN4: 4790.721 | CO4: 4943.002 | CP4: 4861.582 | CQ4: 4357.758 | CR4: 4247.775 | CS4: 4403.841 | CT4: 4591.318 | CU4: 5063.46 | CV4: 5058.581 | CW4: 4644.44 | CX4: 4396.666 | CY4: 4826.648 | CZ4: 5131.251 | DA4: 5523.249 | DB4: 5528.918 | DC4: 4731.08 | DD4: 4424.587 | DE4: 4644.479 | DF4: 5029.176 | DG4: 5395.668 | DH4: 4093.94 | DI4: 4175.665 | DJ4: 3673.965 | DK4: 5107.113 | DL4: 4722.767 | DM4: 4900.939 | DN4: 5456.199 | DO4: 4923.654 | DP4: 5303.824 | DQ4: 5494.556 | DR4: 5603.971 | DS4: 5684.824 | DT4: 5339.189 | DU4: 5177.214 | DV4: 4666.551 | DW4: 5099.009 | DX4: 5470.318 | DY4: 5611.157 | DZ4: 5243.143 | EA4: 4221.535 | EB4: 4617.464 | EC4: 5288.318 | ED4: 5787.671 | EE4: 5733.14 | EF4: 4984.056 | EG4: 4883.009 | EH4: 4766.547 | EI4: 5752.21 | EJ4: 5339.991 | EK4: 5683.676 | EL4: 5559.923 | EM4: 4918.177 | EN4: 4966.525 | EO4: 5404.618 | EP4: 5716.136 | EQ4: 5769.292 | ER4: 4998.626 | ES4: 4411.553 | ET4: 4413.466 | EU4: 4981.553 | EV4: 5281.812 | EW4: 5717.326 | EX4: 5595.498 | EY4: 4788.897 | EZ4: 5634.959 | FA4: 5604.31 | FB4: 5818.366 | FC4: 5743.961 | FD4: 5148.232 | FE4: 4876.188 | FF4: 4880.746 | FG4: 5000.782 | FH4: 4659.695 | FI4: 5652.234 | FJ4: 5556.06 | FK4: 4338.236 | FL4: 4743.074 | FM4: 5531.676 | FN4: 5744.426 | FO4: 5691.77 | FP4: 5346.575 | FQ4: 5150.541 | FR4: 5327.844 | FS4: 5039.963 | FT4: 5376.387 | FU4: 5758.75 | FV4: 5643.837 | FW4: 4917.357 | FX4: 4673.372 | FY4: 5293.971 | FZ4: 5385.891 | GA4: 5819.783 | GB4: 5102.321 | GC4: 4617.453 | GD4: 3956.233 | GE4: 3800.567 | GF4: 3971.907 | GG4: 4088.622 | GH4: 4740.741 | GI4: 5363.373 | GJ4: 4934.161 | GK4: 5419.963 | GL4: 5723.497 | GM4: 5660.539 | GN4: 5105.351 | GO4: 5304.163 | GP4: 3714.102 | GQ4: 4506.487 | GR4: 5078.102 | GS4: 5022.954 | GT4: 5420.258 | GU4: 4523.265 | GV4: 4856.568 | GW4: 5312.528 | GX4: 5621.804 | GY4: 5566.816 | GZ4: 4985.434 | HA4: 5165.542 | HB4: 4541.914 | HC4: 3650.125 | HD4: 3303.991 | HE4: 4049.712 | HF4: 4177.537 | HG4: 5113.506 | HH4: 5125.237 | HI4: 4117.476 | HJ4: 5305.18 | HK4: 5569.301 | HL4: 5355.394 | HM4: 5598.505 | HN4: 4204.499 | HO4: 4899.366 | HP4: 4791.662 | HQ4: 4759.093 | HR4: 5240.36 | HS4: 4677.403 | HT4: 4501.426 | HU4: 4217.47 | HV4: 5158.937 | HW4: 5665.327 | HX4: 4506.646 | HY4: 4089.017 | HZ4: 4231.807 | IA4: 3854.89 | IB4: 3694.728 | IC4: 4184.468 | ID4: 5506.575 | IE4: 4575.317 | IF4: 4132.185 | IG4: 4160.677 | IH4: 4159.407 | II4: 4687.887 | IJ4: 4840.287 | IK4: 5106.848 | IL4: 5105.903 | IM4: 4610.685 | IN4: 4906.546 | IO4: 5657.794 | IP4: 5683.913 | IQ4: 5318.253 | IR4: 5686.453 | IS4: 5335.828 | IT4: 5049.549 | IU4: 4938.128 | IV4: 4470.568 | IW4: 4532.515 | IX4: 4663.127 | IY4: 3796.721 | IZ4: 4932.075 | JA4: 5067.603 | JB4: 5536.645 | JC4: 5233.281 | JD4: 4727.058 | JE4: 4760.838 | JF4: 5072.804 | JG4: 5413.141 | JH4: 5388.552 | JI4: 5727.636 | JJ4: 5442.164 | JK4: 4691.911 | JL4: 3682.318 | JM4: 5352.149 | JN4: 5730.968 | JO4: 5563.294 | JP4: 5656.832 | JQ4: 4257.923 | JR4: 4563.273 | JS4: 4803.745 | JT4: 4622.238 | JU4: 5436.041 | JV4: 4654.833 | JW4: 4171.671 | JX4: 4517.174 | JY4: 5382.638 | JZ4: 5276.456 | KA4: 4974.593 | KB4: 4557.395 | KC4: 4257.376 | KD4: 4173.225 | KE4: 4742.407 | KF4: 4924.299 | KG4: 5522.065 | KH4: - | KI4: - | KJ4: - | KK4: - | KL4: - | KM4: - | KN4: - | KO4: - | KP4: -
B5: Carbón | C5: 3789.078 | D5: 2994.874 | E5: 4960.433 | F5: 4421.456 | G5: 4897.782 | H5: 5678.365 | I5: 5609.779 | J5: 4219.584 | K5: 5739.628 | L5: 5873.979 | M5: 5218.903 | N5: 5617.076 | O5: 5563.556 | P5: 5645.231 | Q5: 3738.445 | R5: 3712.408 | S5: 3910.222 | T5: 4538.025 | U5: 5304.867 | V5: 4353.283 | W5: 5539.469 | X5: 5598.321 | Y5: 5678.016 | Z5: 5858.488 | AA5: 6327.74 | AB5: 6108.342 | AC5: 6494.681 | AD5: 5525.441 | AE5: 4997.938 | AF5: 4557.319 | AG5: 5327.204 | AH5: 4327.667 | AI5: 5645.605 | AJ5: 4913.947 | AK5: 5204.959 | AL5: 4164.639 | AM5: 5682.891 | AN5: 5854.613 | AO5: 5964.692 | AP5: 5478.326 | AQ5: 5061.142 | AR5: 4476.33 | AS5: 4986.684 | AT5: 4655.672 | AU5: 5479.929 | AV5: 4277.582 | AW5: 4591.646 | AX5: 4854.846 | AY5: 4225.365 | AZ5: 4846.737 | BA5: 5056.632 | BB5: 4681.127 | BC5: 4198.266 | BD5: 5255.897 | BE5: 5784.308 | BF5: 4927.45 | BG5: 5289.708 | BH5: 5601.923 | BI5: 5269.891 | BJ5: 5424.404 | BK5: 5251.293 | BL5: 4321.269 | BM5: 4797.223 | BN5: 5029.181 | BO5: 5129.86 | BP5: 5276.274 | BQ5: 6152.806 | BR5: 6044.919 | BS5: 6290.364 | BT5: 5756.857 | BU5: 5943.048 | BV5: 4743.452 | BW5: 2510.03 | BX5: 2683.162 | BY5: 4115.993 | BZ5: 2726.12 | CA5: 2624.284 | CB5: 5087.983 | CC5: 6414.966 | CD5: 6049.686 | CE5: 5802.577 | CF5: 5620.921 | CG5: 5551.692 | CH5: 3206.235 | CI5: 3584.91 | CJ5: 3649.28 | CK5: 5583.253 | CL5: 5728.461 | CM5: 5056.772 | CN5: 5149.956 | CO5: 5847.598 | CP5: 5796.599 | CQ5: 6549.404 | CR5: 6527.644 | CS5: 4760.559 | CT5: 3863.799 | CU5: 2965.508 | CV5: 3350.503 | CW5: 5580.616 | CX5: 4490.396 | CY5: 3492.722 | CZ5: 4274.675 | DA5: 5653.469 | DB5: 4686.179 | DC5: 6141.06 | DD5: 6363.81 | DE5: 6352.491 | DF5: 6839.207 | DG5: 6701.825 | DH5: 6263.543 | DI5: 6497.26 | DJ5: 5798.074 | DK5: 4661.839 | DL5: 5593.533 | DM5: 6682.189 | DN5: 5587.421 | DO5: 6733.179 | DP5: 6191.214 | DQ5: 5572.719 | DR5: 6032.484 | DS5: 7019.259 | DT5: 6669.06 | DU5: 6818.785 | DV5: 5754.569 | DW5: 5196.469 | DX5: 6218.948 | DY5: 6910.691 | DZ5: 6620.63 | EA5: 7060.389 | EB5: 6958.597 | EC5: 6583.49 | ED5: 4563.019 | EE5: 4090.721 | EF5: 3609.795 | EG5: 3586.244 | EH5: 4018.746 | EI5: 5145.015 | EJ5: 6173.777 | EK5: 6755.295 | EL5: 6613.848 | EM5: 6958.021 | EN5: 6965.738 | EO5: 6809.678 | EP5: 7364.473 | EQ5: 7343.988 | ER5: 6758.515 | ES5: 7235.911 | ET5: 6828.009 | EU5: 6798.52 | EV5: 6408.425 | EW5: 6650.727 | EX5: 6487.032 | EY5: 6779.253 | EZ5: 6302.872 | FA5: 6382.872 | FB5: 4791.894 | FC5: 4968.86 | FD5: 5506.921 | FE5: 5539.494 | FF5: 5196.916 | FG5: 5511.695 | FH5: 6515.96 | FI5: 7036.796 | FJ5: 7022.537 | FK5: 6929.064 | FL5: 6840.435 | FM5: 5905.026 | FN5: 5275.066 | FO5: 5993.14 | FP5: 6214.66 | FQ5: 6728.195 | FR5: 5449.052 | FS5: 5628.938 | FT5: 6237.116 | FU5: 6926.919 | FV5: 6708.508 | FW5: 6611.059 | FX5: 6564.049 | FY5: 6316.496 | FZ5: 6980.272 | GA5: 7208.607 | GB5: 6450.604 | GC5: 6547.88 | GD5: 5837.593 | GE5: 6019.987 | GF5: 6112.562 | GG5: 6646.813 | GH5: 6106.738 | GI5: 6265.993 | GJ5: 6511.252 | GK5: 6709.674 | GL5: 6975.441 | GM5: 7296.477 | GN5: 6138.35 | GO5: 5071.261 | GP5: 3721.83 | GQ5: 5390.755 | GR5: 5908.75 | GS5: 6895.18 | GT5: 5618.694 | GU5: 5753.558 | GV5: 5107.804 | GW5: 4537.14 | GX5: 4566.15 | GY5: 6469.263 | GZ5: 5200.333 | HA5: 5149.483 | HB5: 6190.766 | HC5: 6361.498 | HD5: 6126.847 | HE5: 6318.592 | HF5: 6251.631 | HG5: 5834.821 | HH5: 5675.249 | HI5: 5811.254 | HJ5: 6442.794 | HK5: 5296.643 | HL5: 4883.331 | HM5: 3905.394 | HN5: 3314.479 | HO5: 2327.238 | HP5: 2203.297 | HQ5: 3917.827 | HR5: 3281.466 | HS5: 3682.743 | HT5: 4366.326 | HU5: 4361.424 | HV5: 4734.709 | HW5: 4875.129 | HX5: 3218.181 | HY5: 3169.605 | HZ5: 1939.899 | IA5: 2397.474 | IB5: 2620.445 | IC5: 3434.208 | ID5: 1924.57 | IE5: 2870.252 | IF5: 3275.492 | IG5: 2153.888 | IH5: 1982.372 | II5: 1826.579 | IJ5: 1480.079 | IK5: 920.609 | IL5: 686.38 | IM5: 886.21 | IN5: 1426.571 | IO5: 2613.064 | IP5: 3017.784 | IQ5: 3168.291 | IR5: 2132.517 | IS5: 1748.231 | IT5: 2190.922 | IU5: 2206.511 | IV5: 2650.813 | IW5: 3202.908 | IX5: 2631.994 | IY5: 3192.493 | IZ5: 2951.707 | JA5: 4486.268 | JB5: 4360.767 | JC5: 4991.311 | JD5: 4585.928 | JE5: 4160.808 | JF5: 4066.601 | JG5: 5513.152 | JH5: 5642.862 | JI5: 4763.413 | JJ5: 2713.458 | JK5: 4052.051 | JL5: 5409.381 | JM5: 4999.944 | JN5: 5153.098 | JO5: 4088.323 | JP5: 4344.713 | JQ5: 4189.824 | JR5: 3850.781 | JS5: 3072.94 | JT5: 2585.314 | JU5: 1352.106 | JV5: 982.72 | JW5: 2046.373 | JX5: 2661.986 | JY5: 5584.148 | JZ5: 4674.715 | KA5: 4856.191 | KB5: 4309.826 | KC5: 2690.147 | KD5: 4990.308 | KE5: 2278.888 | KF5: 816.166 | KG5: 1156.88 | KH5: - | KI5: - | KJ5: - | KK5: - | KL5: - | KM5: - | KN5: - | KO5: - | KP5: -
B6: Fuel + Gas | C6: 222.529 | D6: 118.258 | E6: 119.424 | F6: 88.982 | G6: 219.449 | H6: 409.104 | I6: 441.476 | J6: 166.427 | K6: 258.047 | L6: 304.984 | M6: 286.87 | N6: 447.562 | O6: 271.31 | P6: 351.845 | Q6: 138.109 | R6: 194.316 | S6: 214.564 | T6: 294.32 | U6: 721.045 | V6: 189.965 | W6: 688.084 | X6: 324.815 | Y6: 395.765 | Z6: 494.387 | AA6: 1362.153 | AB6: 1871.367 | AC6: 1499.705 | AD6: 738.079 | AE6: 646.949 | AF6: 157.176 | AG6: 442.631 | AH6: 238.659 | AI6: 550.644 | AJ6: 199.65 | AK6: 94.771 | AL6: 44.676 | AM6: 101.646 | AN6: 357.11 | AO6: 360.756 | AP6: 273.115 | AQ6: 107.209 | AR6: 127.331 | AS6: 43.242 | AT6: 94.337 | AU6: 195.887 | AV6: 57.614 | AW6: 85.917 | AX6: 81.014 | AY6: 108.285 | AZ6: 96.481 | BA6: 123.46 | BB6: 129.397 | BC6: 21.219 | BD6: 105.349 | BE6: 400.639 | BF6: 58.193 | BG6: 90.28 | BH6: 128.435 | BI6: 69.54 | BJ6: 176.808 | BK6: 163.946 | BL6: 41.526 | BM6: 154.551 | BN6: 129.619 | BO6: 117.043 | BP6: 307.759 | BQ6: 625.956 | BR6: 244.64 | BS6: 608.931 | BT6: 687.421 | BU6: 454.282 | BV6: 332.334 | BW6: 16.2 | BX6: 193.34 | BY6: 267.75 | BZ6: 143.751 | CA6: 32.92 | CB6: 171.837 | CC6: 276.93 | CD6: 147.927 | CE6: 244.82 | CF6: 103.269 | CG6: 257.271 | CH6: 293.013 | CI6: 275.093 | CJ6: 398.761 | CK6: 474.639 | CL6: 520.523 | CM6: 459.383 | CN6: 519.158 | CO6: 853.044 | CP6: 605.522 | CQ6: 767.35 | CR6: 855.935 | CS6: 564.769 | CT6: 549.568 | CU6: 76.428 | CV6: 111.499 | CW6: 170.852 | CX6: 61.127 | CY6: 38.665 | CZ6: 216.606 | DA6: 501.916 | DB6: 532.347 | DC6: 755.29 | DD6: 417.76 | DE6: 1051.843 | DF6: 1724.02 | DG6: 1578.837 | DH6: 1950.755 | DI6: 1135.238 | DJ6: 553.819 | DK6: 178.122 | DL6: 573.884 | DM6: 1199.186 | DN6: 735.457 | DO6: 644.007 | DP6: 178.346 | DQ6: 458.339 | DR6: 739.136 | DS6: 1183.795 | DT6: 533.001 | DU6: 1205.187 | DV6: 761.285 | DW6: 189.73 | DX6: 725.479 | DY6: 960.856 | DZ6: 798.696 | EA6: 1538.047 | EB6: 995.375 | EC6: 816.021 | ED6: 541.824 | EE6: 545.663 | EF6: 451.19 | EG6: 464.083 | EH6: 180.447 | EI6: 373.225 | EJ6: 1234.403 | EK6: 1444.418 | EL6: 1290.541 | EM6: 1384.777 | EN6: 1355.824 | EO6: 1406.011 | EP6: 2267.358 | EQ6: 2779.804 | ER6: 1710.919 | ES6: 1499.041 | ET6: 1468.292 | EU6: 1153.146 | EV6: 1735.992 | EW6: 2002.913 | EX6: 960.921 | EY6: 1275.038 | EZ6: 948.833 | FA6: 518.128 | FB6: 420.61 | FC6: 635.36 | FD6: 548.15 | FE6: 239.357 | FF6: 84.484 | FG6: 251.439 | FH6: 1294.767 | FI6: 1269.071 | FJ6: 1150.964 | FK6: 1011.479 | FL6: 700.713 | FM6: 391.057 | FN6: 458.145 | FO6: 473.382 | FP6: 380.265 | FQ6: 660.32 | FR6: 200.733 | FS6: 349.275 | FT6: 800.206 | FU6: 1171.593 | FV6: 772.999 | FW6: 1013.494 | FX6: 633.276 | FY6: 512.436 | FZ6: 728.753 | GA6: 978.126 | GB6: 1173.468 | GC6: 1455 | GD6: 405.688 | GE6: 573.243 | GF6: 1227.573 | GG6: 1445.61 | GH6: 445.292 | GI6: 569.803 | GJ6: 399.382 | GK6: 466.18 | GL6: 873.947 | GM6: 824.456 | GN6: 676.619 | GO6: 331.346 | GP6: 323.373 | GQ6: 248.934 | GR6: 570.777 | GS6: 1081.67 | GT6: 377.379 | GU6: 821.211 | GV6: 375.56 | GW6: 147.86 | GX6: 125.937 | GY6: 123.176 | GZ6: 251.725 | HA6: 220.935 | HB6: 133.88 | HC6: 193.945 | HD6: 97.443 | HE6: 308.202 | HF6: 241.538 | HG6: 266.751 | HH6: 147.087 | HI6: 222.276 | HJ6: 190.017 | HK6: 162.481 | HL6: 142.333 | HM6: 79.287 | HN6: 154.841 | HO6: 171.916 | HP6: 285.656 | HQ6: 180.169 | HR6: 274.741 | HS6: 215.145 | HT6: 230.345 | HU6: 260.296 | HV6: 220.792 | HW6: 151.703 | HX6: 139.859 | HY6: 222.312 | HZ6: 160.335 | IA6: 105.803 | IB6: 170.807 | IC6: 244.04 | ID6: 199.653 | IE6: 179.578 | IF6: 123.298 | IG6: 193.488 | IH6: 191.454 | II6: 177.861 | IJ6: 148.387 | IK6: 23.989 | IL6: 123.434 | IM6: 190.971 | IN6: 191.79 | IO6: 161.522 | IP6: 133.656 | IQ6: 161.911 | IR6: 146.356 | IS6: 193.815 | IT6: 171.084 | IU6: 0 | IV6: 0 | IW6: 0 | IX6: 0 | IY6: 0 | IZ6: 0 | JA6: 0 | JB6: 0 | JC6: 0 | JD6: 0 | JE6: 0 | JF6: 0 | JG6: 0 | JH6: 0 | JI6: 0 | JJ6: 0 | JK6: 0 | JL6: 0 | JM6: 0 | JN6: 0 | JO6: 0 | JP6: 0 | JQ6: 0 | JR6: 0 | JS6: 0 | JT6: 0 | JU6: 0 | JV6: 0 | JW6: 0 | JX6: 0 | JY6: 0 | JZ6: 0 | KA6: 0 | KB6: 0 | KC6: 0 | KD6: 0 | KE6: 0 | KF6: 0 | KG6: 0 | KH6: - | KI6: - | KJ6: - | KK6: - | KL6: - | KM6: - | KN6: - | KO6: - | KP6: -
B7: Ciclo combinado | C7: - | D7: - | E7: - | F7: - | G7: - | H7: - | I7: - | J7: - | K7: - | L7: - | M7: - | N7: - | O7: - | P7: - | Q7: - | R7: - | S7: - | T7: - | U7: - | V7: - | W7: - | X7: - | Y7: - | Z7: - | AA7: - | AB7: - | AC7: - | AD7: - | AE7: - | AF7: - | AG7: - | AH7: - | AI7: - | AJ7: - | AK7: - | AL7: - | AM7: - | AN7: - | AO7: - | AP7: - | AQ7: - | AR7: - | AS7: - | AT7: - | AU7: - | AV7: - | AW7: - | AX7: - | AY7: - | AZ7: - | BA7: - | BB7: - | BC7: - | BD7: - | BE7: - | BF7: - | BG7: - | BH7: - | BI7: - | BJ7: - | BK7: - | BL7: - | BM7: - | BN7: - | BO7: - | BP7: - | BQ7: - | BR7: - | BS7: - | BT7: - | BU7: - | BV7: - | BW7: - | BX7: - | BY7: - | BZ7: - | CA7: - | CB7: - | CC7: - | CD7: - | CE7: - | CF7: - | CG7: - | CH7: - | CI7: - | CJ7: - | CK7: - | CL7: - | CM7: - | CN7: - | CO7: - | CP7: - | CQ7: - | CR7: - | CS7: - | CT7: - | CU7: - | CV7: - | CW7: - | CX7: - | CY7: - | CZ7: - | DA7: - | DB7: - | DC7: - | DD7: - | DE7: - | DF7: - | DG7: - | DH7: - | DI7: - | DJ7: - | DK7: - | DL7: - | DM7: - | DN7: - | DO7: - | DP7: - | DQ7: - | DR7: - | DS7: - | DT7: - | DU7: - | DV7: - | DW7: - | DX7: - | DY7: - | DZ7: - | EA7: - | EB7: - | EC7: - | ED7: - | EE7: - | EF7: - | EG7: - | EH7: - | EI7: - | EJ7: - | EK7: - | EL7: - | EM7: - | EN7: - | EO7: - | EP7: - | EQ7: - | ER7: - | ES7: - | ET7: - | EU7: 128.823 | EV7: 312.712 | EW7: 532.251 | EX7: 778.885 | EY7: 1197.255 | EZ7: 1187.946 | FA7: 633.105 | FB7: 537.364 | FC7: 449.87 | FD7: 866.612 | FE7: 780.663 | FF7: 402.836 | FG7: 824.591 | FH7: 1829.94 | FI7: 1968.532 | FJ7: 1833.179 | FK7: 2069.146 | FL7: 1836.696 | FM7: 1241.325 | FN7: 887.187 | FO7: 1578.264 | FP7: 1984.882 | FQ7: 2321.551 | FR7: 1867.061 | FS7: 2062.762 | FT7: 2370.343 | FU7: 2782.253 | FV7: 2390.287 | FW7: 2986.622 | FX7: 2914.014 | FY7: 2827.481 | FZ7: 2888.178 | GA7: 3419.769 | GB7: 3436.309 | GC7: 3414.784 | GD7: 3310.965 | GE7: 3597.595 | GF7: 4740.145 | GG7: 5289.776 | GH7: 4519.163 | GI7: 4525.42 | GJ7: 4163.612 | GK7: 4262.794 | GL7: 4204.312 | GM7: 5662.88 | GN7: 5591.57 | GO7: 4811.491 | GP7: 4754.948 | GQ7: 5040.215 | GR7: 5590.857 | GS7: 6809.154 | GT7: 4943.385 | GU7: 6459.255 | GV7: 5167.008 | GW7: 4357.419 | GX7: 4317.351 | GY7: 6170.412 | GZ7: 3902.968 | HA7: 3919.511 | HB7: 4146.908 | HC7: 4438.622 | HD7: 6301.051 | HE7: 6732.645 | HF7: 5275.477 | HG7: 5770.195 | HH7: 6240.312 | HI7: 7792.539 | HJ7: 7448.758 | HK7: 8184.819 | HL7: 8180.884 | HM7: 6943.981 | HN7: 7073.836 | HO7: 7369.903 | HP7: 7776.174 | HQ7: 9071.589 | HR7: 8486.474 | HS7: 7995.742 | HT7: 7376.885 | HU7: 6986.155 | HV7: 5839.595 | HW7: 6121.922 | HX7: 4563.257 | HY7: 5149.819 | HZ7: 5567.91 | IA7: 5740.609 | IB7: 7824.921 | IC7: 8699.6 | ID7: 8371.571 | IE7: 7566.64 | IF7: 6717.373 | IG7: 5665.416 | IH7: 6289.691 | II7: 5445.526 | IJ7: 4875.705 | IK7: 4201.993 | IL7: 4471.981 | IM7: 4658.145 | IN7: 5628.578 | IO7: 6959.639 | IP7: 5882.922 | IQ7: 6390.824 | IR7: 5422.712 | IS7: 5678.601 | IT7: 4987.672 | IU7: 5159.52 | IV7: 4746.364 | IW7: 4047.608 | IX7: 2861.36 | IY7: 4252.308 | IZ7: 4955.277 | JA7: 4626.293 | JB7: 4797.328 | JC7: 4590.044 | JD7: 3812.106 | JE7: 3445.704 | JF7: 3440.036 | JG7: 4348.983 | JH7: 3969.048 | JI7: 3160.929 | JJ7: 2291.681 | JK7: 2463.994 | JL7: 3177.533 | JM7: 3438.106 | JN7: 3561.907 | JO7: 2955.989 | JP7: 3306.245 | JQ7: 3033.422 | JR7: 2885.339 | JS7: 2683.277 | JT7: 2016.958 | JU7: 1537.5 | JV7: 1166.104 | JW7: 1683.162 | JX7: 1419.38 | JY7: 2277.082 | JZ7: 2427.988 | KA7: 2294.447 | KB7: 2616.702 | KC7: 2103.58 | KD7: 2853.575 | KE7: 1610.101 | KF7: 1323.022 | KG7: 1246.404 | KH7: - | KI7: - | KJ7: - | KK7: - | KL7: - | KM7: - | KN7: - | KO7: - | KP7: -
B8: Régimen ordinario | C8: =SUM(C3:C7) -> 13444.916 | D8: =SUM(D3:D7) -> 11013.164 | E8: 11971.336 | F8: 10992.113 | G8: 11026.468 | H8: 11397.391 | I8: 12083.853 | J8: 10618.899 | K8: 11408.243 | L8: 11528.919 | M8: 12158.13 | N8: 13435.459 | O8: 13863.018 | P8: 12684.278 | Q8: 11932.219 | R8: 11471.089 | S8: 11640.728 | T8: 11328.021 | U8: 12369.251 | V8: 10838.814 | W8: 11853.098 | X8: 12133.003 | Y8: 12479.175 | Z8: 12922.17 | AA8: 14572.464 | AB8: 13412.533 | AC8: 13050.116 | AD8: 11520.609 | AE8: 11375.941 | AF8: 10830.008 | AG8: 12470.9 | AH8: 10979.648 | AI8: 11760.441 | AJ8: 12055.571 | AK8: 11842.416 | AL8: 12393.512 | AM8: 13305.764 | AN8: 12043.4 | AO8: 12646.857 | AP8: 11137.399 | AQ8: 11090.035 | AR8: 11148.107 | AS8: 11854.246 | AT8: 11105.234 | AU8: 11536.217 | AV8: 11847.071 | AW8: 12260.004 | AX8: 12736.642 | AY8: 13190.69 | AZ8: 12066.399 | BA8: 11853.572 | BB8: 11397.128 | BC8: 11414.335 | BD8: 11805.402 | BE8: 12793.75 | BF8: 11494.995 | BG8: 11746.446 | BH8: 11488.077 | BI8: 11681.3 | BJ8: 12673.996 | BK8: 13488.967 | BL8: 11472.105 | BM8: 12649.941 | BN8: 11329.947 | BO8: 11890.219 | BP8: =SUM(BP3:BP7) -> 12018.282 | BQ8: 12730.928 | BR8: 11730.49 | BS8: 11829.801 | BT8: 11844.298 | BU8: 12098.53 | BV8: 12895.01 | BW8: 13865.124 | BX8: 13181.109 | BY8: 12752.231 | BZ8: 10973.634 | CA8: 11601.259 | CB8: 11988.984 | CC8: 12726.026 | CD8: 11487.986 | CE8: 11793.509 | CF8: 12460.777 | CG8: 12666.875 | CH8: 13029.084 | CI8: 14544.456 | CJ8: 11895.705 | CK8: 12390.625 | CL8: 12661.031 | CM8: 12847.421 | CN8: 12691.759 | CO8: 13603.943 | CP8: 12974.581 | CQ8: 13287.355 | CR8: 13106.666 | CS8: 13129.691 | CT8: 14252.841 | CU8: 13809.812 | CV8: 12381.366 | CW8: 12931.119 | CX8: 12271.736 | CY8: 12223.705 | CZ8: 12904.105 | DA8: 14234.351 | DB8: 12878.661 | DC8: 13478.001 | DD8: 13138.533 | DE8: 13559.022 | DF8: 15003.766 | DG8: 15134.645 | DH8: 13647.34 | DI8: 13663.988 | DJ8: 12056.532 | DK8: 12632.362 | DL8: 13279.202 | DM8: 14715.75 | DN8: 13260.671 | DO8: 13897.276 | DP8: 13512.363 | DQ8: 14255.751 | DR8: 15166.206 | DS8: 16432.366 | DT8: 14137.585 | DU8: 14765.351 | DV8: 13375.39 | DW8: 13828.042 | DX8: 14682.547 | DY8: 15224.636 | DZ8: 14411.215 | EA8: 14699.207 | EB8: =SUM(EB3:EB7) -> 14357.801 | EC8: 15172.707 | ED8: 15556.338 | EE8: 16646.541 | EF8: 14678.324 | EG8: 15360.292 | EH8: 13102.186 | EI8: 14422.909 | EJ8: 15184.801 | EK8: 15907.275 | EL8: 15415.081 | EM8: 14857.099 | EN8: 15141.711 | EO8: 15689.104 | EP8: 17190.244 | EQ8: 17466.638 | ER8: 14760.187 | ES8: 15058.794 | ET8: 14578.915 | EU8: 15052.101 | EV8: 15815.903 | EW8: 16562.091 | EX8: 15093.539 | EY8: 15324.936 | EZ8: 15449.007 | FA8: 15197.264 | FB8: 15806.843 | FC8: 17350.913 | FD8: 16365.1 | FE8: 15816.082 | FF8: 14153.615 | FG8: 15026.668 | FH8: 16645.935 | FI8: 17963.64 | FJ8: 17177.019 | FK8: 16138.451 | FL8: 16126.081 | FM8: 16151.61 | FN8: 17108.227 | FO8: 17258.569 | FP8: 17120.712 | FQ8: 17815.626 | FR8: 15597.123 | FS8: 16180.993 | FT8: 17465.52 | FU8: 18733.816 | FV8: 17315.143 | FW8: 17162.887 | FX8: 16606.096 | FY8: 17286.75 | FZ8: 17847.908 | GA8: 19049.621 | GB8: 17732.739 | GC8: 17828.111 | GD8: 15493.921 | GE8: 16219.12 | GF8: 18045.719 | GG8: 19041.137 | GH8: 17081.225 | GI8: 17769.31 | GJ8: 17005.98 | GK8: 18228.037 | GL8: 19504.131 | GM8: 21123.548 | GN8: =SUM(GN3:GN7) -> 18788.958 | GO8: 18266.689 | GP8: 14978.418 | GQ8: 17206.75 | GR8: 18686.904 | GS8: 21475.345 | GT8: 17517.955 | GU8: 18870.433 | GV8: 17232.736 | GW8: 17356.892 | GX8: 19368.334 | GY8: 20536.547 | GZ8: 17179.464 | HA8: 18155.685 | HB8: 17574.246 | HC8: 17264.844 | HD8: 17994.617 | HE8: 19827.1 | HF8: 17746.519 | HG8: 18438.926 | HH8: 18959.499 | HI8: 19387.232 | HJ8: 20758.58 | HK8: 20591.451 | HL8: 19604.288 | HM8: 17604.924 | HN8: 17092.472 | HO8: 17751.086 | HP8: 17903.435 | HQ8: 19949.396 | HR8: 18724.093 | HS8: 17862.51 | HT8: 17614.682 | HU8: 17338.139 | HV8: 18304.057 | HW8: 18964.111 | HX8: 15625.64 | HY8: 15123.57 | HZ8: 13826.863 | IA8: 14327.534 | IB8: 16172.804 | IC8: 18152.746 | ID8: 17364.53 | IE8: 16140.278 | IF8: 15496.09 | IG8: 14038.088 | IH8: 15613.593 | II8: 17130.556 | IJ8: 15221.196 | IK8: 15716.098 | IL8: 14672.253 | IM8: 13752.204 | IN8: 15306.667 | IO8: 18093.744 | IP8: 16598.438 | IQ8: 16469.597 | IR8: 14936.388 | IS8: 15257.338 | IT8: 16014.645 | IU8: 17090.213 | IV8: 14561.376 | IW8: 15235.12 | IX8: 13341.565 | IY8: 13688.265 | IZ8: =SUM(IZ3:IZ7) -> 14623.122 | JA8: 15579.744 | JB8: 16062.056 | JC8: 15957.044 | JD8: 14417.989 | JE8: 14344.837 | JF8: 14623.237 | JG8: 16909.616 | JH8: 16179.457 | JI8: 14925.591 | JJ8: 12052.819 | JK8: 13355.362 | JL8: 14158.176 | JM8: 15342.423 | JN8: 15791.61 | JO8: 13731.189 | JP8: 14730.22 | JQ8: 13355.855 | JR8: 13706.745 | JS8: =SUM(JS3:JS7) -> 13312.048 | JT8: 12467.141 | JU8: 12606.911 | JV8: 11767.763 | JW8: 11223.385 | JX8: 11392.472 | JY8: 15632.294 | JZ8: 14305.369 | KA8: 13809.275 | KB8: 13243.882 | KC8: 11604.902 | KD8: 14318.756
B9: Consumos generación | C9: -518.559 | D9: -431.599 | E9: -555.261 | F9: -534.932 | G9: -565.432 | H9: -601.243 | I9: -622.649 | J9: -525.491 | K9: -567.747 | L9: -560.455 | M9: -568.264 | N9: -648.586 | O9: -623.638 | P9: -600.659 | Q9: -506.823 | R9: -490.366 | S9: -510.097 | T9: -564.749 | U9: -602.777 | V9: -525.123 | W9: -586.586 | X9: -584.359 | Y9: -572.624 | Z9: -607.824 | AA9: -700.961 | AB9: -675.938 | AC9: -668.236 | AD9: -558.794 | AE9: -573.018 | AF9: -544.994 | AG9: -604.412 | AH9: -524.049 | AI9: -582.205 | AJ9: -573.317 | AK9: -565.289 | AL9: -533.047 | AM9: -600.387 | AN9: -573.973 | AO9: -605.503 | AP9: -531.879 | AQ9: -531.297 | AR9: -538.71 | AS9: -548.294 | AT9: -508.582 | AU9: -559.939 | AV9: -521.619 | AW9: -512.959 | AX9: -548.305 | AY9: -505.047 | AZ9: -484.254 | BA9: -495.109 | BB9: -476.324 | BC9: -469.765 | BD9: -493.774 | BE9: -571.195 | BF9: -521.842 | BG9: -536.075 | BH9: -507.518 | BI9: -483.235 | BJ9: -528.817 | BK9: -535.341 | BL9: -453.546 | BM9: -490.097 | BN9: -476.077 | BO9: -515.816 | BP9: -526.924 | BQ9: -589.55 | BR9: -546.006 | BS9: -549.107 | BT9: -524.295 | BU9: -520.435 | BV9: -521.055 | BW9: -394.387 | BX9: -381.896 | BY9: -437.084 | BZ9: -372.357 | CA9: -388.976 | CB9: -480.173 | CC9: -540.359 | CD9: -520.527 | CE9: -522.216 | CF9: -526.008 | CG9: -515.282 | CH9: -431.998 | CI9: -460.878 | CJ9: -423.735 | CK9: -512.206 | CL9: -532.101 | CM9: -543.232 | CN9: -542.84 | CO9: -594.706 | CP9: -579.954 | CQ9: -593.484 | CR9: -584.036 | CS9: -493.079 | CT9: -491.249 | CU9: -439.896 | CV9: -412.341 | CW9: -512.068 | CX9: -437.275 | CY9: -396.116 | CZ9: -461.574 | DA9: -592.494 | DB9: -552.009 | DC9: -603.905 | DD9: -595.483 | DE9: -624.62 | DF9: -682.53 | DG9: -676.238 | DH9: -597.433 | DI9: -585.523 | DJ9: -517.652 | DK9: -516.801 | DL9: -577.078 | DM9: -672.819 | DN9: -618.644 | DO9: -642.088 | DP9: -607.961 | DQ9: -581.753 | DR9: -629.755 | DS9: -696.057 | DT9: -640.075 | DU9: -685.9 | DV9: -578.173 | DW9: -577.371 | DX9: -650.057 | DY9: -721.289 | DZ9: -680.55 | EA9: -682.237 | EB9: -661.175 | EC9: -677.142 | ED9: -576.714 | EE9: -557.535 | EF9: -484.893 | EG9: -496.623 | EH9: -456.541 | EI9: -592.402 | EJ9: -688.587 | EK9: -739.578 | EL9: -717.289 | EM9: -684.809 | EN9: -703.897 | EO9: -699.184 | EP9: -764.031 | EQ9: -773.634 | ER9: -688.583 | ES9: -686.528 | ET9: -667.39 | EU9: -664.06 | EV9: -718.618 | EW9: -761.289 | EX9: -711.06 | EY9: -703.907 | EZ9: -725.693 | FA9: -689.745 | FB9: -634.668 | FC9: -642.484 | FD9: -638.632 | FE9: -636.771 | FF9: -561.283 | FG9: -611.124 | FH9: -733.831 | FI9: -792.442 | FJ9: -770.017 | FK9: -726.354 | FL9: -699.189 | FM9: -684.987 | FN9: -672.686 | FO9: -690.443 | FP9: -671.665 | FQ9: -716.692 | FR9: -591.101 | FS9: -651.088 | FT9: -757.969 | FU9: -805.83 | FV9: -774.058 | FW9: -748.314 | FX9: -746.471 | FY9: -735.193 | FZ9: -760.404 | GA9: -806.25 | GB9: -759.153 | GC9: -783.299 | GD9: -656.414 | GE9: -695.245 | GF9: -731.985 | GG9: -803.651 | GH9: -707.535 | GI9: -762.887 | GJ9: -744.509 | GK9: -794.681 | GL9: -835.936 | GM9: -861.014 | GN9: -778.166 | GO9: -725.02 | GP9: -584.654 | GQ9: -671.091 | GR9: -775.928 | GS9: -881.297 | GT9: -763.54 | GU9: -784.967 | GV9: -710.967 | GW9: -674.806 | GX9: -693.003 | GY9: -785.169 | GZ9: -655.505 | HA9: -648.63 | HB9: -685.442 | HC9: -685.641 | HD9: -661.064 | HE9: -787.171 | HF9: -751.235 | HG9: -768.745 | HH9: -752.906 | HI9: -738.487 | HJ9: -832.877 | HK9: -791.078 | HL9: -748.861 | HM9: -687.135 | HN9: -597.12 | HO9: -641.508 | HP9: -643.207 | HQ9: -728.397 | HR9: -769.756 | HS9: -668.066 | HT9: -673.497 | HU9: -659.974 | HV9: -729.089 | HW9: -743.488 | HX9: -584.68 | HY9: -553.892 | HZ9: -522.608 | IA9: -532.164 | IB9: -603.781 | IC9: -669.9 | ID9: -603.131 | IE9: -594.867 | IF9: -597.427 | IG9: -539.641 | IH9: -571.152 | II9: -548.662 | IJ9: -493.46 | IK9: -471.786 | IL9: -436.094 | IM9: -423.115 | IN9: -541.926 | IO9: -745.809 | IP9: -634.724 | IQ9: -645.109 | IR9: -591.938 | IS9: -570.168 | IT9: -570.429 | IU9: -570.415 | IV9: -535.916 | IW9: -570.984 | IX9: -510.63 | IY9: -524.639 | IZ9: -599.338 | JA9: -652.52 | JB9: -683.852 | JC9: -710.468 | JD9: -651.401 | JE9: -617.921 | JF9: -619.302 | JG9: -731.227 | JH9: -680.031 | JI9: -675.978 | JJ9: -669.814 | JK9: -576.665 | JL9: -633.388 | JM9: -705.055 | JN9: -717.758 | JO9: -633.542 | JP9: -718.341 | JQ9: -569.624 | JR9: -577.19 | JS9: -516.102 | JT9: -460.243 | JU9: -411.938 | JV9: -420.826 | JW9: -408.093 | JX9: -455.314 | JY9: -688.152 | JZ9: -637.49 | KA9: -641.849 | KB9: -595.63 | KC9: -465.932 | KD9: -635.768 | KE9: -464.36 | KF9: -367.706 | KG9: -434.958 | KH9: - | KI9: - | KJ9: - | KK9: - | KL9: - | KM9: - | KN9: - | KO9: - | KP9: -
B10: Resto hidráulica | C10: 105.992 | D10: 92.30599999 | E10: 64.72999999 | F10: 90.82900001 | G10: 84.02299996 | H10: 91.299 | I10: 55.459 | J10: 57.63200001 | K10: 34.01199999 | L10: 69.63399999 | M10: 110.01 | N10: 126.706 | O10: 179.138 | P10: 122.811 | Q10: 215.011 | R10: 190.109 | S10: 195.073 | T10: 144.594 | U10: 99.561 | V10: 80.389 | W10: 78.209 | X10: 93.88 | Y10: 141.988 | Z10: 164.018 | AA10: 125.135 | AB10: 89.669 | AC10: 114.311 | AD10: 191.757 | AE10: 193.59 | AF10: 203.803 | AG10: 181.002 | AH10: 118.066 | AI10: 117.869 | AJ10: 215.527 | AK10: 233.875 | AL10: 297.169 | AM10: 208.395 | AN10: 120.724 | AO10: 171.353 | AP10: 192.554 | AQ10: 247.309 | AR10: 207.114 | AS10: 151.58 | AT10: 102.715 | AU10: 108.434 | AV10: 243.801 | AW10: 228.351 | AX10: 251.898 | AY10: 342.685 | AZ10: 275.549 | BA10: 261.048 | BB10: 218.693 | BC10: 253.366 | BD10: 170.896 | BE10: 113.035 | BF10: 101.443 | BG10: 106.75 | BH10: 171.698 | BI10: 238.982 | BJ10: 221.123 | BK10: 329.748 | BL10: 321.577 | BM10: 299.329 | BN10: 168.033 | BO10: 176.271 | BP10: 142.427 | BQ10: 114.445 | BR10: 86.067 | BS10: 110.54 | BT10: 88.179 | BU10: 129.774 | BV10: 256.484 | BW10: 431.994 | BX10: 394.019 | BY10: 364.698 | BZ10: 371.68 | CA10: 349.161 | CB10: 242.652 | CC10: 197.031 | CD10: 174.123 | CE10: 161.743 | CF10: 181.576 | CG10: 235.112 | CH10: 440.058 | CI10: 440.792 | CJ10: 368.973 | CK10: 267.722 | CL10: 216.182 | CM10: 261.68 | CN10: 278.391 | CO10: 254.605 | CP10: 204.188 | CQ10: 190.687 | CR10: 154.25 | CS10: 310.862 | CT10: 480.663 | CU10: 492.716819 | CV10: 339.410518 | CW10: 327.064365 | CX10: 403.458525 | CY10: 412.076272 | CZ10: 315.956945 | DA10: 207.934447 | DB10: 197.432695 | DC10: 167.836814 | DD10: 248.31533 | DE10: 203.701928 | DF10: 262.569259 | DG10: 323.522396 | DH10: 292.899812 | DI10: 373.902231 | DJ10: 348.717189 | DK10: 443.138313 | DL10: 296.523594 | DM10: 224.706943 | DN10: 189.845427 | DO10: 210.825293 | DP10: 274.411798 | DQ10: 366.447977 | DR10: 395.381639 | DS10: 330.40558 | DT10: 282.436739 | DU10: 249.446216 | DV10: 435.783218 | DW10: 494.627909 | DX10: 357.927451 | DY10: 254.292919 | DZ10: 199.410305 | EA10: 158.612187 | EB10: 230.155185 | EC10: 367.537209 | ED10: 475.465015 | EE10: 558.920303 | EF10: 485.996064 | EG10: 596.948281 | EH10: 489.463965 | EI10: 476.68399 | EJ10: 352.760995 | EK10: 300.49063 | EL10: 227.071678 | EM10: 181.600837 | EN10: 202.508315 | EO10: 222.42957 | EP10: 192.648005 | EQ10: 255.920349 | ER10: 271.46624 | ES10: 345.515552 | ET10: 361.372052 | EU10: 420.062442 | EV10: 357.790122 | EW10: 235.872343 | EX10: 210.054023 | EY10: 204.411097 | EZ10: 280.620946 | FA10: 390.817645 | FB10: 565.549528 | FC10: 581.193939 | FD10: 453.43334 | FE10: 562.61659 | FF10: 532.278526 | FG10: 529.630674 | FH10: 359.335678 | FI10: 277.913169 | FJ10: 209.447635 | FK10: 208.9305 | FL10: 309.717496 | FM10: 485.77286 | FN10: 578.373638 | FO10: 587.995369 | FP10: 427.628958 | FQ10: 507.792138 | FR10: 547.04273 | FS10: 572.541482 | FT10: 412.623003 | FU10: 336.467575 | FV10: 259.270925 | FW10: 199.838133 | FX10: 245.598881 | FY10: 329.701046 | FZ10: 323.078145 | GA10: 350.78451 | GB10: 292.229427 | GC10: 386.56585 | GD10: 465.508544 | GE10: 438.710303 | GF10: 297.453519 | GG10: 244.468044 | GH10: 191.049618 | GI10: 151.162091 | GJ10: 217.906843 | GK10: 377.399041 | GL10: 404.345149 | GM10: 400.558873 | GN10: 320.878335 | GO10: 567.05897 | GP10: 506.039156 | GQ10: 360.074545 | GR10: 248.514 | GS10: 226.349 | GT10: 177.815 | GU10: 164.14 | GV10: 312.404 | GW10: 381.881 | GX10: 482.851 | GY10: 345.489 | GZ10: 478.796 | HA10: 516.028 | HB10: 529.759 | HC10: 509.19 | HD10: 412.917 | HE10: 302.212 | HF10: 256.501 | HG10: 186.134 | HH10: 186.888 | HI10: 189.873 | HJ10: 211.538 | HK10: 340.206 | HL10: 233.218 | HM10: 301.234 | HN10: 581.111 | HO10: 613.279 | HP10: 581.555 | HQ10: 380.409 | HR10: 264.581 | HS10: 212.28 | HT10: 190.523 | HU10: 400.121 | HV10: 539.626 | HW10: 521.055 | HX10: 629.452 | HY10: 559.845 | HZ10: 501.442 | IA10: 577.142 | IB10: 468.387 | IC10: 365.353 | ID10: 282.65 | IE10: 242.869 | IF10: 230.81 | IG10: 466.05 | IH10: 608.618 | II10: 764.37 | IJ10: 616.578 | IK10: 784.76 | IL10: 690.196 | IM10: 688.343 | IN10: 608.948 | IO10: 459.603 | IP10: 341.748 | IQ10: 281.05 | IR10: 318.889 | IS10: 567.66 | IT10: 702.175 | IU10: 663.648 | IV10: 506.22 | IW10: 655.863 | IX10: 588.128 | IY10: 489.538 | IZ10: 405.258 | JA10: 384.186 | JB10: 304.794 | JC10: 235.563 | JD10: 189.002 | JE10: 423.492 | JF10: 448.623 | JG10: 336.823 | JH10: 331.681 | JI10: 324.862 | JJ10: 468.281 | JK10: 642.145 | JL10: 438.456 | JM10: 337.726 | JN10: 264.852 | JO10: 198.808 | JP10: 269.484 | JQ10: 410.351 | JR10: 619.955 | JS10: 667.289 | JT10: 687.923 | JU10: 842.281 | JV10: 845.357 | JW10: 779.531 | JX10: 658.621 | JY10: 534.735 | JZ10: 402.643 | KA10: 302.374 | KB10: 342.614 | KC10: 522.106 | KD10: 511.069 | KE10: 782.113 | KF10: 753.006 | KG10: 751.124 | KH10: - | KI10: - | KJ10: - | KK10: - | KL10: - | KM10: - | KN10: - | KO10: - | KP10: -
B11: Eólica | C11: 0.115 | D11: 0.19899999 | E11: 0.18 | F11: 0.189 | G11: 0.174 | H11: 0.12 | I11: 0.26 | J11: 0.186 | K11: 0.131 | L11: 0.17 | M11: 0.207 | N11: 0.25599999 | O11: 0.192 | P11: 0.143 | Q11: 0.212 | R11: 0.562 | S11: 0.322 | T11: 0.2 | U11: 0.184 | V11: 0.212 | W11: 0.144 | X11: 0.242 | Y11: 0.271 | Z11: 0.181 | AA11: 0.262 | AB11: 0.225 | AC11: 0.313 | AD11: 0.207 | AE11: 0.195 | AF11: 0.163 | AG11: 0.195 | AH11: 0.666 | AI11: 1.295 | AJ11: 2.137 | AK11: 2.507 | AL11: 9.196 | AM11: 7.115 | AN11: 11.386 | AO11: 7.326 | AP11: 6.164 | AQ11: 5.271 | AR11: 7.974 | AS11: 7.391 | AT11: 6.981 | AU11: 5.631 | AV11: 7.198 | AW11: 6.728 | AX11: 5.603 | AY11: 6.899 | AZ11: 4.814 | BA11: 8.769 | BB11: 6.859 | BC11: 4.97 | BD11: 6.462 | BE11: 3.859 | BF11: 5.393 | BG11: 5.047 | BH11: 6.336 | BI11: 7.78 | BJ11: 5.672 | BK11: 7.87 | BL11: 7.675 | BM11: 8.496 | BN11: 11.902 | BO11: 9.211 | BP11: 8.898 | BQ11: 14.465 | BR11: 17.63 | BS11: 14.853 | BT11: 27.623 | BU11: 13.795 | BV11: 17.439 | BW11: 18.83 | BX11: 22.031 | BY11: 24.646 | BZ11: 26.102 | CA11: 23.157 | CB11: 27.099 | CC11: 25.434 | CD11: 15.643 | CE11: 22.706 | CF11: 30.321 | CG11: 31.616 | CH11: 36.544 | CI11: 39.627 | CJ11: 32.179 | CK11: 46.04 | CL11: 56.365 | CM11: 39.41 | CN11: 43.759 | CO11: 57.268 | CP11: 41.053 | CQ11: 45.835 | CR11: 69.47 | CS11: 72.794 | CT11: 76.085 | CU11: 85.726279 | CV11: 73.041771 | CW11: 100.156674 | CX11: 97.154275 | CY11: 87.936697 | CZ11: 72.687051 | DA11: 112.788958 | DB11: 131.013278 | DC11: 104.747635 | DD11: 104.146754 | DE11: 128.518917 | DF11: 138.738417 | DG11: 159.911065 | DH11: 214.375135 | DI11: 206.772797 | DJ11: 190.999426 | DK11: 173.148566 | DL11: 212.214153 | DM11: 177.000959 | DN11: 139.302129 | DO11: 172.17858 | DP11: 199.350315 | DQ11: 312.980648 | DR11: 315.799525 | DS11: 305.024786 | DT11: 295.1137 | DU11: 338.149516 | DV11: 416.021442 | DW11: 226.957358 | DX11: 365.846115 | DY11: 360.052448 | DZ11: 315.707212 | EA11: 276.366005 | EB11: 409.721173 | EC11: 544.093822 | ED11: 609.442473 | EE11: 594.731676 | EF11: 573.654778 | EG11: 654.248611 | EH11: 650.224566 | EI11: 424.361087 | EJ11: 408.907282 | EK11: 400.205723 | EL11: 374.720812 | EM11: 611.542894 | EN11: 574.769948 | EO11: 768.828981 | EP11: 557.951755 | EQ11: 657.009295 | ER11: 782.540758 | ES11: 795.79278 | ET11: 618.787308 | EU11: 820.586332 | EV11: 646.365366 | EW11: 693.582831 | EX11: 598.43409 | EY11: 505.371396 | EZ11: 869.000019 | FA11: 1056.957505 | FB11: 1214.869007 | FC11: 1395.171019 | FD11: 997.62485 | FE11: 837.860626 | FF11: 1138.000866 | FG11: 901.866016 | FH11: 703.483064 | FI11: 727.405981 | FJ11: 543.970839 | FK11: 781.2453 | FL11: 1086.955352 | FM11: 1172.985179 | FN11: 1433.677041 | FO11: 1685.344923 | FP11: 1074.447704 | FQ11: 1281.279462 | FR11: 1519.372767 | FS11: 1019.357853 | FT11: 1048.332716 | FU11: 970.026109 | FV11: 1114.316325 | FW11: 1147.637898 | FX11: 1635.269143 | FY11: 1511.245273 | FZ11: 1747.487596 | GA11: 1879.193348 | GB11: 1745.313957 | GC11: 1763.513597 | GD11: 1926.458081 | GE11: 1492.0682 | GF11: 1261.460764 | GG11: 1611.02847 | GH11: 1640.440853 | GI11: 1271.494533 | GJ11: 1902.724597 | GK11: 1958.532153 | GL11: 2405.437406 | GM11: 1563.700931 | GN11: 1924.867031 | GO11: 2788.267198 | GP11: 1955.917235 | GQ11: 1670.51768 | GR11: 1364.448 | GS11: 1171.791 | GT11: 2177.821 | GU11: 1465.816 | GV11: 2334.802 | GW11: 2279.523 | GX11: 2183.385 | GY11: 2149.807 | GZ11: 2871.919 | HA11: 3086.247 | HB11: 1356.316 | HC11: 2605.873 | HD11: 1786.288 | HE11: 1888.609 | HF11: 2419.819 | HG11: 2028.855 | HH11: 1907.625 | HI11: 2752.312 | HJ11: 2395.485 | HK11: 2651.468 | HL11: 2018.948 | HM11: 4092.55 | HN11: 3352.686 | HO11: 1737.161 | HP11: 2085.509 | HQ11: 2124.237 | HR11: 1972.523 | HS11: 2129.885 | HT11: 2482.013 | HU11: 3462.688 | HV11: 3648.182 | HW11: 3503.799 | HX11: 3226.32 | HY11: 3100.516 | HZ11: 3059.658 | IA11: 2698.004 | IB11: 2332.395 | IC11: 2426.129 | ID11: 2235.837 | IE11: 2466.731 | IF11: 3125.33 | IG11: 4792.63 | IH11: 4921.228 | II11: 4292.092 | IJ11: 4622.435 | IK11: 4546.547 | IL11: 2634.819 | IM11: 3619.334 | IN11: 2576.197 | IO11: 2798.133 | IP11: 2894.744 | IQ11: 2301.323 | IR11: 3952.831 | IS11: 4348.059 | IT11: 4621.882 | IU11: 4018.65 | IV11: 4028.246 | IW11: 4690.99 | IX11: 3399.409 | IY11: 3165.622 | IZ11: 2937.197 | JA11: 3254.705 | JB11: 2729.481 | JC11: 2322.956 | JD11: 3149.473 | JE11: 3819.852 | JF11: 4588.726 | JG11: 3645.515 | JH11: 5014.665 | JI11: 3805.554 | JJ11: 5306.39 | JK11: 3707.879 | JL11: 3422.076 | JM11: 2980.203 | JN11: 3124.576 | JO11: 3937.412 | JP11: 3129.821 | JQ11: 4604.842 | JR11: 5449.978 | JS11: 6291.574 | JT11: 5340.996 | JU11: 5749.103 | JV11: 4396.423 | JW11: 3930.258 | JX11: 3827.049 | JY11: 2843.633 | JZ11: 3410.516 | KA11: 3213.764 | KB11: 3963.449 | KC11: 6423.973 | KD11: 4942.918 | KE11: 6536.824 | KF11: 5882.555 | KG11: 5128.119 | KH11: - | KI11: - | KJ11: - | KK11: - | KL11: - | KM11: - | KN11: - | KO11: - | KP11: -
B12: Solar fotovoltaica | C12: 0 | D12: 0 | E12: 0 | F12: 0 | G12: 0 | H12: 0 | I12: 0 | J12: 0 | K12: 0 | L12: 0 | M12: 0 | N12: 0 | O12: 0 | P12: 0 | Q12: 0 | R12: 0 | S12: 0 | T12: 0 | U12: 0 | V12: 0 | W12: 0 | X12: 0 | Y12: 0 | Z12: 0 | AA12: 1.01 | AB12: 0.772 | AC12: 0.572 | AD12: 1.289 | AE12: 1.113 | AF12: 1.164 | AG12: 1.307 | AH12: 1.155 | AI12: 1.223 | AJ12: 0.944 | AK12: 0.57 | AL12: 0.937 | AM12: 0.538 | AN12: 0.533 | AO12: 1.252 | AP12: 1.303 | AQ12: 1.05 | AR12: 1.069 | AS12: 1.273 | AT12: 1.193 | AU12: 0.88 | AV12: 0.72 | AW12: 1.263 | AX12: 0.926 | AY12: 0.978 | AZ12: 1.242 | BA12: 1.065 | BB12: 1.208 | BC12: 1.742 | BD12: 1.484 | BE12: 1.635 | BF12: 1.668 | BG12: 1.69 | BH12: 1.521 | BI12: 1.004 | BJ12: 1.126 | BK12: 0.804 | BL12: 1.412 | BM12: 1.84 | BN12: 1.854 | BO12: 1.931 | BP12: 1.866 | BQ12: 1.745 | BR12: 1.795 | BS12: 1.812 | BT12: 1.635 | BU12: 1.834 | BV12: 1.679 | BW12: 1.81 | BX12: 1.513 | BY12: 1.899 | BZ12: 1.765 | CA12: 1.421 | CB12: 1.788 | CC12: 1.889 | CD12: 1.748 | CE12: 1.673 | CF12: 1.745 | CG12: 1.774 | CH12: 1.738 | CI12: 1.684 | CJ12: 1.714 | CK12: 2.044 | CL12: 1.719 | CM12: 1.339 | CN12: 1.284 | CO12: 1.733 | CP12: 1.975 | CQ12: 1.901 | CR12: 1.716 | CS12: 1.793 | CT12: 1.916 | CU12: 1.951689 | CV12: 1.788536 | CW12: 1.425942 | CX12: 1.873996 | CY12: 1.884227 | CZ12: 1.793625 | DA12: 1.91802 | DB12: 1.781137 | DC12: 1.858388 | DD12: 1.855271 | DE12: 1.816025 | DF12: 1.739763 | DG12: 1.946628 | DH12: 1.574211 | DI12: 2.029084 | DJ12: 1.889765 | DK12: 1.74451 | DL12: 1.287548 | DM12: 1.861371 | DN12: 1.985432 | DO12: 1.898779 | DP12: 1.920468 | DQ12: 1.576874 | DR12: 1.934561 | DS12: 1.888697 | DT12: 1.904599 | DU12: 1.959623 | DV12: 1.887758 | DW12: 1.714456 | DX12: 1.894068 | DY12: 1.884149 | DZ12: 2.10953 | EA12: 1.799961 | EB12: 1.943646 | EC12: 1.711958 | ED12: 1.82343 | EE12: 1.990993 | EF12: 1.752698 | EG12: 2.031274 | EH12: 1.845371 | EI12: 2.060721 | EJ12: 2.044068 | EK12: 1.954216 | EL12: 2.057688 | EM12: 1.868215 | EN12: 1.694714 | EO12: 1.868259 | EP12: 2.004572 | EQ12: 0.126051 | ER12: 0.229529 | ES12: 0.274106 | ET12: 0.396381 | EU12: 0.478436 | EV12: 0.479391 | EW12: 0.538064 | EX12: 0.533652 | EY12: 0.489809 | EZ12: 0.419306 | FA12: 0.317988 | FB12: 0.278739 | FC12: 0.331772 | FD12: 0.405857 | FE12: 0.562187 | FF12: 0.715348 | FG12: 0.856797 | FH12: 0.976934 | FI12: 1.140896 | FJ12: 1.017998 | FK12: 0.915326 | FL12: 0.809065 | FM12: 0.531804 | FN12: 0.666121 | FO12: 0.575979 | FP12: 0.833369 | FQ12: 1.127006 | FR12: 1.376597 | FS12: 1.638065 | FT12: 1.936569 | FU12: 2.015126 | FV12: 2.030072 | FW12: 1.850632 | FX12: 1.706128 | FY12: 1.375854 | FZ12: 1.328614 | GA12: 1.310038 | GB12: 1.59649 | GC12: 2.752105 | GD12: 2.916883 | GE12: 3.637065 | GF12: 4.270227 | GG12: 4.396409 | GH12: 4.542723 | GI12: 4.291025 | GJ12: 3.943208 | GK12: 3.248179 | GL12: 3.183997 | GM12: 2.56564 | GN12: 4.341388 | GO12: 5.163743 | GP12: 7.314716 | GQ12: 8.774512 | GR12: 10.192 | GS12: 11.021 | GT12: 13.52 | GU12: 11.63 | GV12: 9.949 | GW12: 8.077 | GX12: 9.826 | GY12: 9.686 | GZ12: 12.005 | HA12: 20.551 | HB12: 24.491 | HC12: 34.18 | HD12: 38.843 | HE12: 49.655 | HF12: 53.862 | HG12: 58.231 | HH12: 55.535 | HI12: 52.622 | HJ12: 52.916 | HK12: 57.421 | HL12: 70.549 | HM12: 104.433 | HN12: 126.235 | HO12: 131.754 | HP12: 189.707 | HQ12: 232.234 | HR12: 288.112 | HS12: 317.111 | HT12: 320.166 | HU12: 324.321 | HV12: 244.027 | HW12: 248.703 | HX12: 380.174 | HY12: 508.662 | HZ12: 546.455 | IA12: 647.317 | IB12: 618.528 | IC12: 690.862 | ID12: 637.125 | IE12: 492.289 | IF12: 482.285 | IG12: 345.4 | IH12: 231.205 | II12: 248.575 | IJ12: 289.95 | IK12: 458.217 | IL12: 565.84 | IM12: 683.248 | IN12: 656.766 | IO12: 752.89 | IP12: 691.532 | IQ12: 605.388 | IR12: 525.855 | IS12: 364.052 | IT12: 297.469 | IU12: 335.968 | IV12: 481.247 | IW12: 508.384 | IX12: 631.454 | IY12: 716.118 | IZ12: 776.898 | JA12: 821.81 | JB12: 766.368 | JC12: 702.334 | JD12: 601.935 | JE12: 344.356 | JF12: 404.816 | JG12: 482.68 | JH12: 635.514 | JI12: 736.945 | JJ12: 627.604 | JK12: 826.187 | JL12: 839.134 | JM12: 902.62 | JN12: 826.452 | JO12: 658.334 | JP12: 566.62 | JQ12: 350.382 | JR12: 377.386 | JS12: 418.753 | JT12: 500.807 | JU12: 531.456 | JV12: 725.227 | JW12: 831.59 | JX12: 884.679 | JY12: 927.46 | JZ12: 855.68 | KA12: 723.58 | KB12: 602.259 | KC12: 485.013 | KD12: 413.049 | KE12: 349.99 | KF12: 402.502 | KG12: 699.2839 | KH12: - | KI12: - | KJ12: - | KK12: - | KL12: - | KM12: - | KN12: - | KO12: - | KP12: -
B13: Solar térmica | C13: - | D13: - | E13: - | F13: - | G13: - | H13: - | I13: - | J13: - | K13: - | L13: - | M13: - | N13: - | O13: - | P13: - | Q13: - | R13: - | S13: - | T13: - | U13: - | V13: - | W13: - | X13: - | Y13: - | Z13: - | AA13: - | AB13: - | AC13: - | AD13: - | AE13: - | AF13: - | AG13: - | AH13: - | AI13: - | AJ13: - | AK13: - | AL13: - | AM13: - | AN13: - | AO13: - | AP13: - | AQ13: - | AR13: - | AS13: - | AT13: - | AU13: - | AV13: - | AW13: - | AX13: - | AY13: - | AZ13: - | BA13: - | BB13: - | BC13: - | BD13: - | BE13: - | BF13: - | BG13: - | BH13: - | BI13: - | BJ13: - | BK13: - | BL13: - | BM13: - | BN13: - | BO13: - | BP13: - | BQ13: - | BR13: - | BS13: - | BT13: - | BU13: - | BV13: - | BW13: - | BX13: - | BY13: - | BZ13: - | CA13: - | CB13: - | CC13: - | CD13: - | CE13: - | CF13: - | CG13: - | CH13: - | CI13: - | CJ13: - | CK13: - | CL13: - | CM13: - | CN13: - | CO13: - | CP13: - | CQ13: - | CR13: - | CS13: - | CT13: - | CU13: - | CV13: - | CW13: - | CX13: - | CY13: - | CZ13: - | DA13: - | DB13: - | DC13: - | DD13: - | DE13: - | DF13: - | DG13: - | DH13: - | DI13: - | DJ13: - | DK13: - | DL13: - | DM13: - | DN13: - | DO13: - | DP13: - | DQ13: - | DR13: - | DS13: - | DT13: - | DU13: - | DV13: - | DW13: - | DX13: - | DY13: - | DZ13: - | EA13: - | EB13: - | EC13: - | ED13: - | EE13: - | EF13: - | EG13: - | EH13: - | EI13: - | EJ13: - | EK13: - | EL13: - | EM13: - | EN13: - | EO13: - | EP13: - | EQ13: - | ER13: - | ES13: - | ET13: - | EU13: - | EV13: - | EW13: - | EX13: - | EY13: - | EZ13: - | FA13: - | FB13: - | FC13: - | FD13: - | FE13: - | FF13: - | FG13: - | FH13: - | FI13: - | FJ13: - | FK13: - | FL13: - | FM13: - | FN13: - | FO13: - | FP13: - | FQ13: - | FR13: - | FS13: - | FT13: - | FU13: - | FV13: - | FW13: - | FX13: - | FY13: - | FZ13: - | GA13: - | GB13: - | GC13: - | GD13: - | GE13: - | GF13: - | GG13: - | GH13: - | GI13: - | GJ13: - | GK13: - | GL13: - | GM13: 0 | GN13: 0 | GO13: 0 | GP13: 0 | GQ13: 0 | GR13: 0 | GS13: 0 | GT13: 0 | GU13: 0 | GV13: 0 | GW13: 0 | GX13: 0 | GY13: 0 | GZ13: 0 | HA13: 0.431 | HB13: 0.342 | HC13: 0.558 | HD13: 0.883 | HE13: 1.256 | HF13: 1.116 | HG13: 0.639 | HH13: 1.214 | HI13: 0.997 | HJ13: 0.191 | HK13: 1.084 | HL13: 0.797 | HM13: 1.461 | HN13: 0.958 | HO13: 0.942 | HP13: 1.963 | HQ13: 2.038 | HR13: 1.98 | HS13: 0.859 | HT13: 0.866 | HU13: 1.27 | HV13: 1.16 | HW13: 0.69 | HX13: 1.236 | HY13: 2.323 | HZ13: 7.204 | IA13: 7.658 | IB13: 6.752 | IC13: 12.414 | ID13: 23.868 | IE13: 17.539 | IF13: 23.446 | IG13: 16.183 | IH13: 10.51 | II13: 13.152 | IJ13: 11.682 | IK13: 23.732 | IL13: 36.92 | IM13: 69.084 | IN13: 72.532 | IO13: 104.59 | IP13: 121.9 | IQ13: 100.917 | IR13: 71.745 | IS13: 31.619 | IT13: 33.747 | IU13: 34.25 | IV13: 88.657 | IW13: 98.457 | IX13: 137.833 | IY13: 154.073 | IZ13: 232.484 | JA13: 284.208 | JB13: 235.329 | JC13: 228.558 | JD13: 172.912 | JE13: 80.437 | JF13: 85.159 | JG13: 117.342 | JH13: 200.342 | JI13: 235.113 | JJ13: 177.777 | JK13: 348.382 | JL13: 414.749 | JM13: 541.317 | JN13: 485.127 | JO13: 368.643 | JP13: 285.795 | JQ13: 133.962 | JR13: 135.585 | JS13: 113.494 | JT13: 204.009 | JU13: 125.37 | JV13: 300.894 | JW13: 499.268 | JX13: 647.33 | JY13: 758.523 | JZ13: 661.856 | KA13: 478.955 | KB13: 294.234 | KC13: 199.224 | KD13: 158.362 | KE13: 79.801 | KF13: 103.265 | KG13: 398.306 | KH13: - | KI13: - | KJ13: - | KK13: - | KL13: - | KM13: - | KN13: - | KO13: - | KP13: -
B14: Térmica renovable | C14: - | D14: - | E14: - | F14: - | G14: - | H14: - | I14: - | J14: - | K14: - | L14: - | M14: - | N14: - | O14: - | P14: - | Q14: - | R14: - | S14: - | T14: - | U14: - | V14: - | W14: - | X14: 0.479 | Y14: 0.195 | Z14: 0.18 | AA14: 0.226 | AB14: 0.185 | AC14: 0.209 | AD14: 0.186 | AE14: 0.219 | AF14: 2.491 | AG14: 0.855 | AH14: 1.652 | AI14: 2.195 | AJ14: 3.186 | AK14: 2.852 | AL14: 2.293 | AM14: 2.747 | AN14: 4.291 | AO14: 5.55 | AP14: 5.08 | AQ14: 5.191 | AR14: 4.069 | AS14: 4.405 | AT14: 5.055 | AU14: 4.77 | AV14: 5.999 | AW14: 6.529 | AX14: 5.136 | AY14: 6.182 | AZ14: 4.201 | BA14: 7.788 | BB14: 12.483 | BC14: 22.434 | BD14: 14.593 | BE14: 25.895 | BF14: 34.064 | BG14: 35.963 | BH14: 40.081 | BI14: 55.065 | BJ14: 63.701 | BK14: 52.516 | BL14: 54.169 | BM14: 59.649 | BN14: 59.275 | BO14: 60.63 | BP14: 38.39 | BQ14: 56.09 | BR14: 56.16 | BS14: 55.471 | BT14: 65.761 | BU14: 51.017 | BV14: 62.141 | BW14: 61.97 | BX14: 55.767 | BY14: 73.194 | BZ14: 69.39 | CA14: 67.607 | CB14: 74.481 | CC14: 76.311 | CD14: 76.089 | CE14: 74.905 | CF14: 70.728 | CG14: 57.923 | CH14: 56.715 | CI14: 56.474 | CJ14: 46.637 | CK14: 55.156 | CL14: 57.041 | CM14: 57.334 | CN14: 33.856 | CO14: 57.003 | CP14: 53.272 | CQ14: 57.104 | CR14: 61.066 | CS14: 58.17 | CT14: 55.262 | CU14: 29.002801 | CV14: 53.305843 | CW14: 61.549511 | CX14: 62.649003 | CY14: 69.878224 | CZ14: 68.57453 | DA14: 70.406914 | DB14: 67.345651 | DC14: 60.385234 | DD14: 67.235012 | DE14: 69.010129 | DF14: 69.403475 | DG14: 71.806642 | DH14: 67.740664 | DI14: 76.241169 | DJ14: 70.556648 | DK14: 71.228353 | DL14: 64.031022 | DM14: 80.270443 | DN14: 79.088938 | DO14: 85.153421 | DP14: 84.480839 | DQ14: 82.713458 | DR14: 74.942079 | DS14: 77.705164 | DT14: 72.094493 | DU14: 81.5787 | DV14: 75.639545 | DW14: 57.155141 | DX14: 64.878718 | DY14: 80.062335 | DZ14: 78.219893 | EA14: 86.225769 | EB14: 91.935601 | EC14: 96.959691 | ED14: 98.655336 | EE14: 114.03217 | EF14: 103.259727 | EG14: 115.38466 | EH14: 106.780576 | EI14: 116.226635 | EJ14: 163.253433 | EK14: 164.156034 | EL14: 142.644941 | EM14: 174.912517 | EN14: 184.368091 | EO14: 170.800963 | EP14: 182.638681 | EQ14: 102.326662 | ER14: 103.972908 | ES14: 114.937767 | ET14: 113.405046 | EU14: 116.821017 | EV14: 106.527145 | EW14: 125.927582 | EX14: 138.275534 | EY14: 128.415374 | EZ14: 130.569012 | FA14: 128.796967 | FB14: 143.040272 | FC14: 125.499869 | FD14: 125.666718 | FE14: 141.367661 | FF14: 136.225564 | FG14: 148.434649 | FH14: 135.674954 | FI14: 145.85112 | FJ14: 152.329642 | FK14: 154.938327 | FL14: 162.073384 | FM14: 144.46359 | FN14: 164.51626 | FO14: 165.781692 | FP14: 141.425287 | FQ14: 163.310002 | FR14: 158.001119 | FS14: 158.154288 | FT14: 141.570139 | FU14: 142.667679 | FV14: 139.216976 | FW14: 148.774135 | FX14: 152.856929 | FY14: 147.726873 | FZ14: 158.608513 | GA14: 174.85461 | GB14: 150.827771 | GC14: 176.756115 | GD14: 159.635672 | GE14: 172.117306 | GF14: 162.540982 | GG14: 167.519914 | GH14: 173.003408 | GI14: 160.254506 | GJ14: 152.959924 | GK14: 165.982026 | GL14: 171.405836 | GM14: 172.08672 | GN14: 164.504679 | GO14: 179.217148 | GP14: 172.157263 | GQ14: 184.666872 | GR14: 201.174 | GS14: 194.67 | GT14: 180.725 | GU14: 181.291 | GV14: 197.311 | GW14: 176.127 | GX14: 178.676 | GY14: 195.417 | GZ14: 170.868 | HA14: 196.962 | HB14: 184.118 | HC14: 197.114 | HD14: 193.247 | HE14: 203.052 | HF14: 202.649 | HG14: 191.273 | HH14: 224.429 | HI14: 204.157 | HJ14: 212.399 | HK14: 218.304 | HL14: 215.698 | HM14: 223.7 | HN14: 221.483 | HO14: 218.887 | HP14: 220.451 | HQ14: 223.504 | HR14: 218.31 | HS14: 211.555 | HT14: 229.725 | HU14: 225.656 | HV14: 224.216 | HW14: 243.686 | HX14: 231.253 | HY14: 252.346 | HZ14: 275.297 | IA14: 250.078 | IB14: 229.126 | IC14: 236.274 | ID14: 235.859 | IE14: 264.076 | IF14: 325.339 | IG14: 249.01 | IH14: 251.943 | II14: 250.94 | IJ14: 226.424 | IK14: 245.998 | IL14: 252.761 | IM14: 274.925 | IN14: 268.961 | IO14: 268.03 | IP14: 278.804 | IQ14: 262.937 | IR14: 279.287 | IS14: 269.121 | IT14: 293.611 | IU14: 357.051 | IV14: 328.661 | IW14: 349.277 | IX14: 351.055 | IY14: 328.804 | IZ14: 335.645 | JA14: 357.9 | JB14: 355.299 | JC14: 375.1 | JD14: 383.14 | JE14: 375.338 | JF14: 387.571 | JG14: 393.7 | JH14: 372.92 | JI14: 398.179 | JJ14: 371.93 | JK14: 360.835 | JL14: 406.082 | JM14: 421.354 | JN14: 400.507 | JO14: 373.05 | JP14: 413.074 | JQ14: 400.883 | JR14: 433.635 | JS14: 435.821 | JT14: 414.997 | JU14: 452.924 | JV14: 420.363 | JW14: 437.968 | JX14: 392.453 | JY14: 428.526 | JZ14: 417.392 | KA14: 397.641 | KB14: 404.195 | KC14: 413.154 | KD14: 443.715 | KE14: 422.987 | KF14: 329.581 | KG14: 343.961 | KH14: - | KI14: - | KJ14: - | KK14: - | KL14: - | KM14: - | KN14: - | KO14: - | KP14: -
B15: Cogeneración y resto | C15: 35.68500001 | D15: 38.35100002 | E15: 45.94500001 | F15: 29.54299999 | G15: 39.72400004 | H15: 36.554 | I15: 59.266 | J15: 54.41599999 | K15: 70.54800001 | L15: 79.42600001 | M15: 86.14999999 | N15: 79.24899999 | O15: 95.989 | P15: 93.531 | Q15: 115.056 | R15: 116.111 | S15: 113.29 | T15: 97.624 | U15: 119.55 | V15: 109.126 | W15: 134.507 | X15: 150.722 | Y15: 140.301 | Z15: 150.177 | AA15: 158.544 | AB15: 156.649 | AC15: 153.353 | AD15: 133.677 | AE15: 150.357 | AF15: 147.037 | AG15: 147.135 | AH15: 155.598 | AI15: 159.136 | AJ15: 169.633 | AK15: 179.527 | AL15: 192.236 | AM15: 216.233 | AN15: 207.395 | AO15: 238.976 | AP15: 228.409 | AQ15: 230.781 | AR15: 243.422 | AS15: 273.033 | AT15: 222.175 | AU15: 290.868 | AV15: 356.511 | AW15: 393.027 | AX15: 406.674 | AY15: 424.012 | AZ15: 397.51 | BA15: 428.83 | BB15: 427.683 | BC15: 448.762 | BD15: 440.017 | BE15: 418.092 | BF15: 419.04 | BG15: 459.931 | BH15: 463.43 | BI15: 473.756 | BJ15: 509.861 | BK15: 487.315 | BL15: 460.6 | BM15: 536.874 | BN15: 512.537 | BO15: 529.816 | BP15: 521.282 | BQ15: 523.277 | BR15: 508.965 | BS15: 558.123 | BT15: 603.7 | BU15: 623.613 | BV15: 655.506 | BW15: 647.528 | BX15: 672.755 | BY15: 691.911 | BZ15: 719.591 | CA15: 705.592 | CB15: 706.626 | CC15: 762.261 | CD15: 719.438 | CE15: 744.749 | CF15: 826.294 | CG15: 869.506 | CH15: 905.697 | CI15: 905.787 | CJ15: 825.312 | CK15: 927.093 | CL15: 909.443 | CM15: 931.093 | CN15: 900.919 | CO15: 982.445 | CP15: 908.521 | CQ15: 945.769 | CR15: 1076.894 | CS15: 1049.293 | CT15: 1080.356 | CU15: 1130.561412 | CV15: 1053.608332 | CW15: 1178.169508 | CX15: 1138.700201 | CY15: 1141.59358 | CZ15: 1070.268849 | DA15: 1167.739661 | DB15: 1088.836239 | DC15: 1174.696929 | DD15: 1305.191633 | DE15: 1293.768001 | DF15: 1404.630086 | DG15: 1377.982269 | DH15: 1317.095178 | DI15: 1434.180719 | DJ15: 1382.954972 | DK15: 1423.710258 | DL15: 1389.789683 | DM15: 1433.142284 | DN15: 1348.475074 | DO15: 1394.143927 | DP15: 1535.57158 | DQ15: 1508.656043 | DR15: 1571.262196 | DS15: 1566.100773 | DT15: 1436.060469 | DU15: 1553.760945 | DV15: 1467.718037 | DW15: 1467.518136 | DX15: 1425.027648 | DY15: 1438.062149 | DZ15: 1346.53506 | EA15: 1375.063078 | EB15: 1449.896395 | EC15: 1350.16632 | ED15: 1482.393746 | EE15: 1508.045858 | EF15: 1419.318733 | EG15: 1478.409174 | EH15: 1390.302522 | EI15: 1476.997567 | EJ15: 1416.251222 | EK15: 1479.748397 | EL15: 1313.185881 | EM15: 1434.335537 | EN15: 1553.113932 | EO15: 1585.864227 | EP15: 1579.581987 | EQ15: 1753.946643 | ER15: 1624.383565 | ES15: 1752.277795 | ET15: 1751.529213 | EU15: 1747.522773 | EV15: 1607.281976 | EW15: 1731.76718 | EX15: 1586.239701 | EY15: 1675.706324 | EZ15: 1903.924717 | FA15: 1846.961895 | FB15: 1850.110454 | FC15: 1949.896401 | FD15: 1795.454235 | FE15: 1917.128936 | FF15: 1863.546696 | FG15: 1892.492864 | FH15: 1805.79937 | FI15: 1913.795834 | FJ15: 1744.961886 | FK15: 1903.913547 | FL15: 2075.884703 | FM15: 1958.696567 | FN15: 2023.77594 | FO15: 2046.926037 | FP15: 1962.114682 | FQ15: 2107.656392 | FR15: 1979.842787 | FS15: 1934.491312 | FT15: 1817.996573 | FU15: 1921.340511 | FV15: 1769.469702 | FW15: 1826.677202 | FX15: 1981.941919 | FY15: 2074.231954 | FZ15: 2106.015132 | GA15: 2043.023494 | GB15: 1951.798355 | GC15: 2095.811333 | GD15: 2039.99882 | GE15: 2040.297126 | GF15: 1919.581508 | GG15: 1935.739163 | GH15: 1786.162398 | GI15: 1917.189845 | GJ15: 1838.219428 | GK15: 1867.242601 | GL15: 1828.639612 | GM15: 1998.073836 | GN15: 1940.378567 | GO15: 2060.451941 | GP15: 1910.70463 | GQ15: 1907.436391 | GR15: 1747.218 | GS15: 1731.357 | GT15: 1635.847 | GU15: 1728.153 | GV15: 1850.389 | GW15: 1883.634 | GX15: 1925.296 | GY15: 1984.567 | GZ15: 1757.03 | HA15: 1865.888 | HB15: 1831.562 | HC15: 1829.89 | HD15: 1893.941 | HE15: 1990.347 | HF15: 1868.579 | HG15: 1956.135 | HH15: 2102.763 | HI15: 2100.066 | HJ15: 2146.989 | HK15: 2251.917 | HL15: 2226.859 | HM15: 2271.986 | HN15: 2229.342 | HO15: 2106.663 | HP15: 2078.812 | HQ15: 2217.977 | HR15: 2016.659 | HS15: 2177.9 | HT15: 2358.957 | HU15: 2314.276 | HV15: 2324.628 | HW15: 2421.963 | HX15: 2242.406 | HY15: 2406.646 | HZ15: 2338.367 | IA15: 2351.126 | IB15: 2309.733 | IC15: 2396.594 | ID15: 2034.392 | IE15: 2337.3 | IF15: 2464.42 | IG15: 2571.26 | IH15: 2591.727 | II15: 2661.214 | IJ15: 2477.021 | IK15: 2616.777 | IL15: 2550.354 | IM15: 2581.357 | IN15: 2541.783 | IO15: 2613.673 | IP15: 2153.408 | IQ15: 2523.764 | IR15: 2647.117 | IS15: 2659.682 | IT15: 2762.902 | IU15: 2780.759 | IV15: 2596.086 | IW15: 2880.479 | IX15: 2687.991 | IY15: 2721.65 | IZ15: 2576.579 | JA15: 2636.97 | JB15: 2201.011 | JC15: 2634.476 | JD15: 2759.121 | JE15: 2749.167 | JF15: 2826.723 | JG15: 2930.724 | JH15: 2780.595 | JI15: 2916.443 | JJ15: 2814.673 | JK15: 2849.515 | JL15: 2685.403 | JM15: 2782.808 | JN15: 2350.113 | JO15: 2741.203 | JP15: 2903.628 | JQ15: 2845.644 | JR15: 2899.367 | JS15: 3001.223 | JT15: 2689.526 | JU15: 2882.224 | JV15: 2782.887 | JW15: 2816.031 | JX15: 2650.518 | JY15: 2662.455 | JZ15: 2095.707 | KA15: 2532.776 | KB15: 2609.69 | KC15: 2602.792 | KD15: 2666.867 | KE15: 2680.376 | KF15: 1968.657 | KG15: 1917.516 | KH15: - | KI15: - | KJ15: - | KK15: - | KL15: - | KM15: - | KN15: - | KO15: - | KP15: -
B16: Régimen especial | C16: 141.792 | D16: 130.856 | E16: 110.855 | F16: 120.561 | G16: 123.921 | H16: 127.973 | I16: 114.985 | J16: 112.234 | K16: 104.691 | L16: 149.23 | M16: 196.367 | N16: 206.211 | O16: 275.319 | P16: 216.485 | Q16: 330.279 | R16: 306.782 | S16: 308.685 | T16: 242.418 | U16: 219.295 | V16: 189.727 | W16: 212.86 | X16: 245.323 | Y16: 282.755 | Z16: 314.556 | AA16: 285.177 | AB16: 247.5 | AC16: 268.758 | AD16: 327.116 | AE16: 345.474 | AF16: 354.658 | AG16: 330.494 | AH16: 277.137 | AI16: 281.718 | AJ16: 391.427 | AK16: 419.331 | AL16: 501.831 | AM16: 435.028 | AN16: 344.329 | AO16: 424.457 | AP16: 433.51 | AQ16: 489.602 | AR16: 463.648 | AS16: 437.682 | AT16: 338.119 | AU16: 410.583 | AV16: 614.229 | AW16: 635.898 | AX16: 670.237 | AY16: 780.756 | AZ16: 683.316 | BA16: 707.5 | BB16: 666.926 | BC16: 731.274 | BD16: 633.452 | BE16: 562.516 | BF16: 561.608 | BG16: 609.381 | BH16: 683.066 | BI16: 776.587 | BJ16: 801.483 | BK16: 878.253 | BL16: 845.433 | BM16: 906.188 | BN16: 753.601 | BO16: 777.859 | BP16: 712.863 | BQ16: 710.022 | BR16: 670.617 | BS16: 740.799 | BT16: 786.898 | BU16: 820.033 | BV16: 993.249 | BW16: 1162.132 | BX16: 1146.085 | BY16: 1156.348 | BZ16: 1188.528 | CA16: 1146.938 | CB16: 1052.646 | CC16: 1062.926 | CD16: 987.041 | CE16: 1005.776 | CF16: 1110.664 | CG16: 1195.931 | CH16: 1440.752 | CI16: 1444.364 | CJ16: 1274.815 | CK16: 1298.055 | CL16: 1240.75 | CM16: 1290.856 | CN16: 1258.209 | CO16: 1353.054 | CP16: 1209.009 | CQ16: 1241.296 | CR16: 1363.396 | CS16: 1492.912 | CT16: 1694.282 | CU16: 1739.959 | CV16: 1521.155 | CW16: 1668.366 | CX16: 1703.836 | CY16: 1713.369 | CZ16: 1529.281 | DA16: 1560.788 | DB16: 1486.409 | DC16: 1509.525 | DD16: 1726.744 | DE16: 1696.815 | DF16: 1877.081 | DG16: 1935.169 | DH16: 1893.685 | DI16: 2093.126 | DJ16: 1995.118 | DK16: 2112.97 | DL16: 1963.846 | DM16: 1916.982 | DN16: 1758.697 | DO16: 1864.2 | DP16: 2095.735 | DQ16: 2272.375 | DR16: 2359.32 | DS16: 2281.125 | DT16: 2087.61 | DU16: 2224.895 | DV16: 2397.05 | DW16: 2247.973 | DX16: 2215.574 | DY16: 2134.354 | DZ16: 1941.982 | EA16: 1898.067 | EB16: 2183.652 | EC16: 2360.469 | ED16: 2667.78 | EE16: 2777.721 | EF16: 2583.982 | EG16: 2847.022 | EH16: 2638.617 | EI16: 2496.33 | EJ16: 2343.217 | EK16: 2346.555 | EL16: 2059.681 | EM16: 2404.26 | EN16: 2516.455 | EO16: 2749.792 | EP16: 2514.825 | EQ16: 2769.329 | ER16: 2782.593 | ES16: 3008.798 | ET16: 2845.49 | EU16: 3105.471 | EV16: 2718.444 | EW16: 2787.688 | EX16: 2533.537 | EY16: 2514.394 | EZ16: 3184.534 | FA16: 3423.852 | FB16: 3773.848 | FC16: 4052.093 | FD16: 3372.585 | FE16: 3459.536 | FF16: 3670.767 | FG16: 3473.281 | FH16: 3005.27 | FI16: 3066.107 | FJ16: 2651.728 | FK16: 3049.943 | FL16: 3635.44 | FM16: 3762.45 | FN16: 4201.009 | FO16: 4486.624 | FP16: 3606.45 | FQ16: 4061.165 | FR16: 4205.636 | FS16: 3686.183 | FT16: 3422.459 | FU16: 3372.517 | FV16: 3284.304 | FW16: 3324.778 | FX16: 4017.373 | FY16: 4064.281 | FZ16: 4336.518 | GA16: 4449.166 | GB16: 4141.766 | GC16: 4425.399 | GD16: 4594.518 | GE16: 4146.83 | GF16: 3645.307 | GG16: 3963.152 | GH16: 3795.199 | GI16: 3504.392 | GJ16: 4115.754 | GK16: 4372.404 | GL16: 4813.012 | GM16: 4136.986 | GN16: 4354.97 | GO16: 5600.159 | GP16: 4552.133 | GQ16: 4131.47 | GR16: 3571.546 | GS16: 3335.188 | GT16: 4185.728 | GU16: 3551.03 | GV16: 4704.855 | GW16: 4729.242 | GX16: 4780.034 | GY16: 4684.966 | GZ16: 5290.618 | HA16: 5686.107 | HB16: 3926.588 | HC16: 5176.805 | HD16: 4326.119 | HE16: 4435.131 | HF16: 4802.526 | HG16: 4421.267 | HH16: 4478.454 | HI16: 5300.027 | HJ16: 5019.518 | HK16: 5520.4 | HL16: 4766.069 | HM16: 6995.364 | HN16: 6511.815 | HO16: 4808.686 | HP16: 5157.997 | HQ16: 5180.399 | HR16: 4762.165 | HS16: 5049.59 | HT16: 5582.25 | HU16: 6728.332 | HV16: 6981.839 | HW16: 6939.896 | HX16: 6710.841 | HY16: 6830.338 | HZ16: 6728.423 | IA16: 6531.325 | IB16: 5964.921 | IC16: 6127.626 | ID16: 5449.731 | IE16: 5820.804 | IF16: 6651.63 | IG16: 8440.533 | IH16: 8615.231 | II16: 8230.343 | IJ16: 8244.09 | IK16: 8676.031 | IL16: 6730.89 | IM16: 7916.291 | IN16: 6725.187 | IO16: 6996.919 | IP16: 6482.136 | IQ16: 6075.379 | IR16: 7795.724 | IS16: 8240.193 | IT16: 8711.786 | IU16: 8190.326 | IV16: 8029.117 | IW16: 9183.45 | IX16: 7795.87 | IY16: 7575.805 | IZ16: 7264.061 | JA16: 7739.779 | JB16: 6592.282 | JC16: 6498.987 | JD16: 7255.583 | JE16: 7792.642 | JF16: 8741.618 | JG16: 7906.784 | JH16: 9335.717 | JI16: 8417.096 | JJ16: 9766.655 | JK16: 8734.943 | JL16: 8205.9 | JM16: 7966.028 | JN16: 7451.627 | JO16: 8277.45 | JP16: 7568.422 | JQ16: 8746.064 | JR16: 9915.906 | JS16: 10928.154 | JT16: 9838.258 | JU16: 10583.358 | JV16: 9471.151 | JW16: 9294.646 | JX16: 9060.65 | JY16: 8155.332 | JZ16: 7843.794 | KA16: 7649.09 | KB16: 8216.441 | KC16: 10646.262 | KD16: 9135.98
B17: Generación neta | C17: =SUM(C8:C9,C16) -> 13068.149 | D17: =SUM(D8:D9,D16) -> 10712.421 | E17: 11526.93 | F17: 10577.742 | G17: 10584.957 | H17: 10924.121 | I17: 11576.189 | J17: 10205.642 | K17: 10945.187 | L17: 11117.694 | M17: 11786.233 | N17: 12993.084 | O17: 13514.699 | P17: 12300.104 | Q17: 11755.675 | R17: 11287.505 | S17: 11439.316 | T17: 11005.69 | U17: 11985.769 | V17: 10503.418 | W17: 11479.372 | X17: 11793.967 | Y17: 12189.306 | Z17: 12628.902 | AA17: 14156.68 | AB17: 12984.095 | AC17: 12650.638 | AD17: 11288.931 | AE17: 11148.397 | AF17: 10639.672 | AG17: 12196.982 | AH17: 10732.736 | AI17: 11459.954 | AJ17: 11873.681 | AK17: 11696.458 | AL17: 12362.296 | AM17: 13140.405 | AN17: 11813.756 | AO17: 12465.811 | AP17: 11039.03 | AQ17: 11048.34 | AR17: 11073.045 | AS17: 11743.634 | AT17: 10934.771 | AU17: 11386.861 | AV17: 11939.681 | AW17: 12382.943 | AX17: 12858.574 | AY17: 13466.399 | AZ17: 12265.461 | BA17: 12065.963 | BB17: 11587.73 | BC17: 11675.844 | BD17: 11945.08 | BE17: 12785.071 | BF17: 11534.761 | BG17: 11819.752 | BH17: 11663.625 | BI17: 11974.652 | BJ17: 12946.662 | BK17: 13831.879 | BL17: 11863.992 | BM17: 13066.032 | BN17: 11607.471 | BO17: 12152.262 | BP17: =SUM(BP8:BP9,BP16) -> 12204.221 | BQ17: 12851.4 | BR17: 11855.101 | BS17: 12021.493 | BT17: 12106.901 | BU17: 12398.128 | BV17: 13367.204 | BW17: 14632.869 | BX17: 13945.298 | BY17: 13471.495 | BZ17: 11789.805 | CA17: 12359.221 | CB17: 12561.457 | CC17: 13248.593 | CD17: 11954.5 | CE17: 12277.069 | CF17: 13045.433 | CG17: 13347.524 | CH17: 14037.838 | CI17: 15527.942 | CJ17: 12746.785 | CK17: 13176.474 | CL17: 13369.68 | CM17: 13595.045 | CN17: 13407.128 | CO17: 14362.291 | CP17: 13603.636 | CQ17: 13935.167 | CR17: 13886.026 | CS17: 14129.524 | CT17: 15455.874 | CU17: 15109.875 | CV17: 13490.18 | CW17: 14087.417 | CX17: 13538.297 | CY17: 13540.958 | CZ17: 13971.812 | DA17: 15202.645 | DB17: 13813.061 | DC17: 14383.621 | DD17: 14269.794 | DE17: 14631.217 | DF17: 16198.317 | DG17: 16393.576 | DH17: 14943.592 | DI17: 15171.591 | DJ17: 13533.998 | DK17: 14228.531 | DL17: 14665.97 | DM17: 15959.913 | DN17: 14400.724 | DO17: 15119.388 | DP17: 15000.137 | DQ17: 15946.373 | DR17: 16895.771 | DS17: 18017.434 | DT17: 15585.12 | DU17: 16304.346 | DV17: 15194.267 | DW17: 15498.644 | DX17: 16248.064 | DY17: 16637.701 | DZ17: 15672.647 | EA17: 15915.037 | EB17: =SUM(EB8:EB9,EB16) -> 15880.278 | EC17: 16856.034 | ED17: 17647.404 | EE17: 18866.727 | EF17: 16777.413 | EG17: 17710.691 | EH17: 15284.262 | EI17: 16326.837 | EJ17: 16839.431 | EK17: 17514.252 | EL17: 16757.473 | EM17: 16576.55 | EN17: 16954.269 | EO17: 17739.712 | EP17: 18941.038 | EQ17: 19462.333 | ER17: 16854.197 | ES17: 17381.064 | ET17: 16757.015 | EU17: 17493.512 | EV17: 17815.729 | EW17: 18588.49 | EX17: 16916.016 | EY17: 17135.423 | EZ17: 17907.848 | FA17: 17931.371 | FB17: 18946.023 | FC17: 20760.522 | FD17: 19099.053 | FE17: 18638.847 | FF17: 17263.099 | FG17: 17888.825 | FH17: 18917.374 | FI17: 20237.305 | FJ17: 19058.73 | FK17: 18462.04 | FL17: 19062.332 | FM17: 19229.073 | FN17: 20636.55 | FO17: 21054.75 | FP17: 20055.497 | FQ17: 21160.099 | FR17: 19211.658 | FS17: 19216.088 | FT17: 20130.01 | FU17: 21300.503 | FV17: 19825.389 | FW17: 19739.351 | FX17: 19876.998 | FY17: 20615.838 | FZ17: 21424.022 | GA17: 22692.537 | GB17: 21115.352 | GC17: 21470.211 | GD17: 19432.025 | GE17: 19670.705 | GF17: 20959.041 | GG17: 22200.638 | GH17: 20168.889 | GI17: 20510.815 | GJ17: 20377.225 | GK17: 21805.76 | GL17: 23481.207 | GM17: 24399.52 | GN17: =SUM(GN8:GN9,GN16) -> 22365.762 | GO17: 23141.828 | GP17: 18945.897 | GQ17: 20667.129 | GR17: 21482.522 | GS17: 23929.236 | GT17: 20940.143 | GU17: 21636.496 | GV17: 21226.624 | GW17: 21411.328 | GX17: 23455.365 | GY17: 24436.344 | GZ17: 21814.577 | HA17: 23193.162 | HB17: 20815.392 | HC17: 21756.008 | HD17: 21659.672 | HE17: 23475.06 | HF17: 21797.81 | HG17: 22091.448 | HH17: 22685.047 | HI17: 23948.772 | HJ17: 24945.221 | HK17: 25320.773 | HL17: 23621.496 | HM17: 23913.153 | HN17: 23007.167 | HO17: 21918.264 | HP17: 22418.225 | HQ17: 24401.398 | HR17: 22716.502 | HS17: 22244.034 | HT17: 22523.435 | HU17: 23406.497 | HV17: 24556.807 | HW17: 25160.519 | HX17: 21751.801 | HY17: 21400.016 | HZ17: 20032.678 | IA17: 20326.695 | IB17: 21533.944 | IC17: 23610.472 | ID17: 22211.13 | IE17: 21366.215 | IF17: 21550.293 | IG17: 21938.98 | IH17: 23657.672 | II17: 24812.237 | IJ17: 22971.826 | IK17: 23920.343 | IL17: 20967.049 | IM17: 21245.38 | IN17: 21489.928 | IO17: 24344.854 | IP17: 22445.85 | IQ17: 21899.867 | IR17: 22140.174 | IS17: 22927.363 | IT17: 24156.002 | IU17: 24710.124 | IV17: 22054.577 | IW17: 23847.586 | IX17: 20626.805 | IY17: 20739.431 | IZ17: =SUM(IZ8:IZ9,IZ16) -> 21287.845 | JA17: 22667.003 | JB17: 21970.486 | JC17: 21745.563 | JD17: 21022.171 | JE17: 21519.558 | JF17: 22745.553 | JG17: 24085.173 | JH17: 24835.143 | JI17: 22666.709 | JJ17: 21149.66 | JK17: 21513.64 | JL17: 21730.688 | JM17: 22603.396 | JN17: 22525.479 | JO17: 21375.097 | JP17: 21580.301 | JQ17: 21532.295 | JR17: 23045.461 | JS17: 23724.1 | JT17: 21845.156 | JU17: 22778.331 | JV17: 20818.088 | JW17: 20109.938 | JX17: 19997.808 | JY17: 23099.474 | JZ17: 21511.673 | KA17: 20816.516 | KB17: 20864.693 | KC17: 21785.232 | KD17: 22818.968 | KE17: 22974.698 | KF17: 21562.209 | KG17: 21680.831 | KH17: - | KI17: - | KJ17: - | KK17: - | KL17: - | KM17: - | KN17: - | KO17: - | KP17: -
B18: Consumos en bombeo | C18: -230.679 | D18: -122.288 | E18: -14.289 | F18: -28.145 | G18: -43.486 | H18: -13.114 | I18: -22.104 | J18: -49.978 | K18: -160.713 | L18: -155.501 | M18: -44.507 | N18: -154.468 | O18: -268.908 | P18: -218.383 | Q18: -171.686 | R18: -12.201 | S18: -15.629 | T18: -41.384 | U18: -57.712 | V18: -72.09 | W18: -112.773 | X18: -80.879 | Y18: -188.527 | Z18: -192.561 | AA18: -261.992 | AB18: -144.315 | AC18: -170.44 | AD18: -297.593 | AE18: -198.615 | AF18: -246.854 | AG18: -277.393 | AH18: -274.778 | AI18: -274.414 | AJ18: -292.157 | AK18: -181.749 | AL18: -170.405 | AM18: -138.741 | AN18: -112.689 | AO18: -188.994 | AP18: -202.544 | AQ18: -227.069 | AR18: -134.422 | AS18: -139.846 | AT18: -190.283 | AU18: -202.364 | AV18: -190.647 | AW18: -85.039 | AX18: -74.921 | AY18: -304.076 | AZ18: -125.633 | BA18: -16.009 | BB18: -34.589 | BC18: -53.005 | BD18: -40 | BE18: -112.842 | BF18: -29.006 | BG18: -168.634 | BH18: -188.043 | BI18: -112.602 | BJ18: -160.95 | BK18: -229.933 | BL18: -151.828 | BM18: -149.914 | BN18: -139.099 | BO18: -126.803 | BP18: -126.251 | BQ18: -163.945 | BR18: -157.261 | BS18: -174.299 | BT18: -178.249 | BU18: -166.69 | BV18: -317.454 | BW18: -761.345 | BX18: -190.414 | BY18: -30.027 | BZ18: -33.853 | CA18: -44.028 | CB18: -72.871 | CC18: -66.354 | CD18: -12.074 | CE18: -23.203 | CF18: -39.189 | CG18: -69.679 | CH18: -179.581 | CI18: -252.936 | CJ18: -37.278 | CK18: -12.262 | CL18: -21.497 | CM18: -81.886 | CN18: -85.457 | CO18: -118.164 | CP18: -176.339 | CQ18: -190.051 | CR18: -144.696 | CS18: -266.061 | CT18: -374.262 | CU18: -277.155 | CV18: -134.838 | CW18: -111.211 | CX18: -214.861 | CY18: -181.761 | CZ18: -114.558 | DA18: -203.373 | DB18: -319.925 | DC18: -193.376 | DD18: -171.723 | DE18: -213.786 | DF18: -451.187 | DG18: -468.772 | DH18: -342.761 | DI18: -234.381 | DJ18: -215.759 | DK18: -219.826 | DL18: -177.636 | DM18: -214.518 | DN18: -260.838 | DO18: -340.931 | DP18: -489.764 | DQ18: -316.026 | DR18: -385.168 | DS18: -368.592 | DT18: -313.254 | DU18: -345.672 | DV18: -513.572 | DW18: -617.926 | DX18: -330.215 | DY18: -323.442 | DZ18: -246.341 | EA18: -256.832 | EB18: -362.529 | EC18: -451.677 | ED18: -776.834 | EE18: -539.073 | EF18: -307.359 | EG18: -387.497 | EH18: -200.959 | EI18: -214.621 | EJ18: -258.663 | EK18: -303.011 | EL18: -291.532 | EM18: -368.749 | EN18: -364.099 | EO18: -336.146 | EP18: -559.555 | EQ18: -652.852 | ER18: -506.242 | ES18: -466.289 | ET18: -443.393 | EU18: -559.457 | EV18: -628.458 | EW18: -699.813 | EX18: -572.272 | EY18: -597.974 | EZ18: -575.567 | FA18: -570.422 | FB18: -683.943 | FC18: -587.335 | FD18: -379.733 | FE18: -368.65 | FF18: -218.7 | FG18: -265.991 | FH18: -415.715 | FI18: -419.844 | FJ18: -472.319 | FK18: -437.025 | FL18: -390.301 | FM18: -322.124 | FN18: -400.397 | FO18: -404.817 | FP18: -276.12 | FQ18: -339.003 | FR18: -328.995 | FS18: -393.378 | FT18: -425.607 | FU18: -408.312 | FV18: -386.442 | FW18: -387.786 | FX18: -411.484 | FY18: -358.575 | FZ18: -484.188 | GA18: -553.09 | GB18: -432.938 | GC18: -492.587 | GD18: -450.62 | GE18: -643.068 | GF18: -634.527 | GG18: -693.313 | GH18: -446.08 | GI18: -519.718 | GJ18: -482.776 | GK18: -454.591 | GL18: -553.639 | GM18: -586.441 | GN18: -529.919 | GO18: -374.921 | GP18: -305.801 | GQ18: -313.703 | GR18: -370.081 | GS18: -513.356 | GT18: -400.354 | GU18: -486.573 | GV18: -541.523 | GW18: -541.572 | GX18: -384.129 | GY18: -371.776 | GZ18: -395.879 | HA18: -384.168 | HB18: -293.397 | HC18: -397.622 | HD18: -356.254 | HE18: -333.521 | HF18: -371.382 | HG18: -345.925 | HH18: -317.001 | HI18: -384.155 | HJ18: -481.207 | HK18: -430.836 | HL18: -419.305 | HM18: -401.794 | HN18: -219.058 | HO18: -206.073 | HP18: -285.255 | HQ18: -253.782 | HR18: -190.802 | HS18: -226.556 | HT18: -297.145 | HU18: -411.256 | HV18: -460.64 | HW18: -492.227 | HX18: -392.035 | HY18: -281.472 | HZ18: -255.759 | IA18: -247.498 | IB18: -224.594 | IC18: -241.018 | ID18: -245.006 | IE18: -254.493 | IF18: -284.123 | IG18: -397.501 | IH18: -478.463 | II18: -756.586 | IJ18: -554.722 | IK18: -544.665 | IL18: -303.16 | IM18: -279.949 | IN18: -230.155 | IO18: -199.167 | IP18: -231.144 | IQ18: -233.695 | IR18: -346.116 | IS18: -322.224 | IT18: -456.198 | IU18: -430.919 | IV18: -280.664 | IW18: -347.705 | IX18: -297.01 | IY18: -158.925 | IZ18: -139.951 | JA18: -173.535 | JB18: -181.065 | JC18: -176.065 | JD18: -301.627 | JE18: -325.481 | JF18: -402.015 | JG18: -448.91 | JH18: -444.123 | JI18: -429.066 | JJ18: -565.842 | JK18: -360.204 | JL18: -322.063 | JM18: -285.671 | JN18: -365.726 | JO18: -454.579 | JP18: -397.036 | JQ18: -403.312 | JR18: -546.017 | JS18: -697.638 | JT18: -562.657 | JU18: -1052.424 | JV18: -872.862 | JW18: -452.793 | JX18: -384.581 | JY18: -256.579 | JZ18: -231.782 | KA18: -211.57 | KB18: -305.596 | KC18: -348.255 | KD18: -581.109 | KE18: -858.014 | KF18: -633.188 | KG18: -589.976 | KH18: - | KI18: - | KJ18: - | KK18: - | KL18: - | KM18: - | KN18: - | KO18: - | KP18: -
B19: Enlace Península-Baleares | C19: - | D19: - | E19: - | F19: - | G19: - | H19: - | I19: - | J19: - | K19: - | L19: - | M19: - | N19: - | O19: - | P19: - | Q19: - | R19: - | S19: - | T19: - | U19: - | V19: - | W19: - | X19: - | Y19: - | Z19: - | AA19: - | AB19: - | AC19: - | AD19: - | AE19: - | AF19: - | AG19: - | AH19: - | AI19: - | AJ19: - | AK19: - | AL19: - | AM19: - | AN19: - | AO19: - | AP19: - | AQ19: - | AR19: - | AS19: - | AT19: - | AU19: - | AV19: - | AW19: - | AX19: - | AY19: - | AZ19: - | BA19: - | BB19: - | BC19: - | BD19: - | BE19: - | BF19: - | BG19: - | BH19: - | BI19: - | BJ19: - | BK19: - | BL19: - | BM19: - | BN19: - | BO19: - | BP19: - | BQ19: - | BR19: - | BS19: - | BT19: - | BU19: - | BV19: - | BW19: - | BX19: - | BY19: - | BZ19: - | CA19: - | CB19: - | CC19: - | CD19: - | CE19: - | CF19: - | CG19: - | CH19: - | CI19: - | CJ19: - | CK19: - | CL19: - | CM19: - | CN19: - | CO19: - | CP19: - | CQ19: - | CR19: - | CS19: - | CT19: - | CU19: - | CV19: - | CW19: - | CX19: - | CY19: - | CZ19: - | DA19: - | DB19: - | DC19: - | DD19: - | DE19: - | DF19: - | DG19: - | DH19: - | DI19: - | DJ19: - | DK19: - | DL19: - | DM19: - | DN19: - | DO19: - | DP19: - | DQ19: - | DR19: - | DS19: - | DT19: - | DU19: - | DV19: - | DW19: - | DX19: - | DY19: - | DZ19: - | EA19: - | EB19: - | EC19: - | ED19: - | EE19: - | EF19: - | EG19: - | EH19: - | EI19: - | EJ19: - | EK19: - | EL19: - | EM19: - | EN19: - | EO19: - | EP19: - | EQ19: - | ER19: - | ES19: - | ET19: - | EU19: - | EV19: - | EW19: - | EX19: - | EY19: - | EZ19: - | FA19: - | FB19: - | FC19: - | FD19: - | FE19: - | FF19: - | FG19: - | FH19: - | FI19: - | FJ19: - | FK19: - | FL19: - | FM19: - | FN19: - | FO19: - | FP19: - | FQ19: - | FR19: - | FS19: - | FT19: - | FU19: - | FV19: - | FW19: - | FX19: - | FY19: - | FZ19: - | GA19: - | GB19: - | GC19: - | GD19: - | GE19: - | GF19: - | GG19: - | GH19: - | GI19: - | GJ19: - | GK19: - | GL19: - | GM19: - | GN19: - | GO19: - | GP19: - | GQ19: - | GR19: - | GS19: - | GT19: - | GU19: - | GV19: - | GW19: - | GX19: - | GY19: - | GZ19: - | HA19: - | HB19: - | HC19: - | HD19: - | HE19: - | HF19: - | HG19: - | HH19: - | HI19: - | HJ19: - | HK19: - | HL19: - | HM19: - | HN19: - | HO19: - | HP19: - | HQ19: - | HR19: - | HS19: - | HT19: - | HU19: - | HV19: - | HW19: - | HX19: - | HY19: - | HZ19: - | IA19: - | IB19: - | IC19: - | ID19: - | IE19: - | IF19: - | IG19: - | IH19: - | II19: - | IJ19: - | IK19: - | IL19: - | IM19: - | IN19: - | IO19: - | IP19: - | IQ19: - | IR19: - | IS19: - | IT19: - | IU19: - | IV19: - | IW19: - | IX19: - | IY19: - | IZ19: - | JA19: - | JB19: - | JC19: - | JD19: - | JE19: 0.043891 | JF19: -0.5203 | JG19: -2.681 | JH19: -25.376 | JI19: -36.695 | JJ19: -35.113 | JK19: -27.255 | JL19: -35.803 | JM19: -36.379 | JN19: -68.014 | JO19: -74.016 | JP19: -70.231 | JQ19: -67.437 | JR19: -91.247 | JS19: -108.823 | JT19: -90.838 | JU19: -84.297 | JV19: -88.234 | JW19: -83.694 | JX19: -112.811 | JY19: -145.596 | JZ19: -157.388 | KA19: -113.879 | KB19: -108.857 | KC19: -86.136 | KD19: -87.955 | KE19: -98.644 | KF19: -86.919 | KG19: -88.564 | KH19: - | KI19: - | KJ19: - | KK19: - | KL19: - | KM19: - | KN19: - | KO19: - | KP19: -
B20: Saldo intercambios internacionales | C20: -269.297 | D20: 16.551 | E20: -11.987 | F20: -20.997 | G20: 159.398 | H20: 0.442 | I20: -28.161 | J20: -32.036 | K20: 14.863 | L20: -21.733 | M20: -139.47 | N20: -87.152 | O20: -24.533 | P20: 22.889 | Q20: -122.07 | R20: -226.919 | S20: -191.566 | T20: -45.839 | U20: -92.112 | V20: 27.849 | W20: -99.836 | X20: -14.272 | Y20: 56.174 | Z20: 33.649 | AA20: -96.052 | AB20: -312.209 | AC20: -213.216 | AD20: 188.663 | AE20: 271.98 | AF20: 371.259 | AG20: 87.992 | AH20: 216.896 | AI20: 131.307 | AJ20: -16.239 | AK20: 8.023 | AL20: 2.72 | AM20: 95.905 | AN20: 222.438 | AO20: 184.267 | AP20: 48.24 | AQ20: 224.115 | AR20: 217.795 | AS20: 282.58 | AT20: 18.098 | AU20: -4.785 | AV20: -0.854 | AW20: -0.365 | AX20: -20.362 | AY20: -20.455 | AZ20: 19.067 | BA20: 44.103 | BB20: 42.116 | BC20: 71.338 | BD20: 56.383 | BE20: 128.051 | BF20: 134.206 | BG20: 271.501 | BH20: 383.184 | BI20: 371.482 | BJ20: 354.129 | BK20: 382.278 | BL20: 376.395 | BM20: 379.125 | BN20: 353.886 | BO20: 378.616 | BP20: 369.635 | BQ20: 406.479 | BR20: 389.687 | BS20: 389.569 | BT20: 434.896 | BU20: 380.024 | BV20: 248.455 | BW20: -23.15 | BX20: -228.839 | BY20: 95.809 | BZ20: 234.45 | CA20: 175.223 | CB20: 297.359 | CC20: 337.605 | CD20: 288.542 | CE20: 53.531 | CF20: -123.297 | CG20: -16.169 | CH20: -31.698 | CI20: -483.959 | CJ20: -204.565 | CK20: -220.011 | CL20: -410.142 | CM20: -439.194 | CN20: -268.21 | CO20: -397.761 | CP20: -455.005 | CQ20: -103.389 | CR20: 13.219 | CS20: 65.416 | CT20: -169.271 | CU20: 339.841 | CV20: 345.961 | CW20: 404.92 | CX20: 388.819 | CY20: 355.114 | CZ20: 244.862 | DA20: 284.57 | DB20: 320.095 | DC20: -25.49 | DD20: 206.148 | DE20: 283.522 | DF20: 253.502 | DG20: 244.117 | DH20: 366.794 | DI20: 462.856 | DJ20: 712.678 | DK20: 628.458 | DL20: 570.858 | DM20: 515.622 | DN20: 504.84 | DO20: 210.995 | DP20: 438.75 | DQ20: 625.315 | DR20: 437.962 | DS20: 196.386 | DT20: 415.9 | DU20: 422.249 | DV20: 519.17 | DW20: 683.538 | DX20: 173.875 | DY20: 258.827 | DZ20: 208.528 | EA20: 340.728 | EB20: 443.806 | EC20: 516.198 | ED20: 261.39 | EE20: -38.209 | EF20: 21.673 | EG20: -83.964 | EH20: 447.062 | EI20: 578.603 | EJ20: 504.504 | EK20: 431.037 | EL20: 282.045 | EM20: 283.086 | EN20: 139.702 | EO20: 402.852 | EP20: 489.569 | EQ20: 532.016 | ER20: 648.786 | ES20: 721.604 | ET20: 705.349 | EU20: 259.038 | EV20: 187.01 | EW20: 575.936 | EX20: 236.118 | EY20: 428.063 | EZ20: 298.139 | FA20: 490.714 | FB20: 245.995 | FC20: 26.416 | FD20: 50.988 | FE20: 247.018 | FF20: -36.927 | FG20: 134.057 | FH20: 409.345 | FI20: 237.348 | FJ20: 123.487 | FK20: 160.179 | FL20: 55.116 | FM20: -24.058 | FN20: -119.067 | FO20: -318.326 | FP20: -299.787 | FQ20: -234.032 | FR20: -621.22 | FS20: -303.664 | FT20: -321.336 | FU20: -241.462 | FV20: -454.689 | FW20: -53.952 | FX20: -330.99 | FY20: -45.66 | FZ20: 198.1 | GA20: 295.549 | GB20: 299.658 | GC20: 51.223 | GD20: 68.78 | GE20: 176.042 | GF20: 176.29 | GG20: 31.582 | GH20: -174.634 | GI20: -495.369 | GJ20: -662.588 | GK20: -689.605 | GL20: -420.322 | GM20: -365.174 | GN20: -583.775 | GO20: -799.06 | GP20: 41.878 | GQ20: 18.828 | GR20: -262.107 | GS20: -377.879 | GT20: 63.245 | GU20: -310.535 | GV20: -236.933 | GW20: -285.297 | GX20: -175.709 | GY20: 94.565 | GZ20: -235.492 | HA20: -243.362 | HB20: -261.054 | HC20: -494.788 | HD20: -223.463 | HE20: -289.778 | HF20: -314.014 | HG20: -846.576 | HH20: -1153.772 | HI20: -1052.93 | HJ20: -729.801 | HK20: -456.804 | HL20: -655.587 | HM20: -1199.348 | HN20: -1291.615 | HO20: -761.275 | HP20: -1052.342 | HQ20: -907.813 | HR20: -796.073 | HS20: -935.81 | HT20: -1102.016 | HU20: -948.447 | HV20: -932.456 | HW20: -897.628 | HX20: -474.277 | HY20: -192.952 | HZ20: -548.934 | IA20: -437.376 | IB20: -769.161 | IC20: -944.909 | ID20: -817.417 | IE20: -711.168 | IF20: -941.365 | IG20: -897.212 | IH20: -454.015 | II20: -304.713 | IJ20: -506.196 | IK20: -560.116 | IL20: -729.095 | IM20: -542.815 | IN20: -821.228 | IO20: -1000.653 | IP20: -758.599 | IQ20: -964.257 | IR20: -1295.51 | IS20: -593.21 | IT20: -256.287 | IU20: -611.335805 | IV20: -358.842359 | IW20: -762.636009 | IX20: -1074.811317 | IY20: -233.6238 | IZ20: -404.767187 | JA20: -470.93457 | JB20: -197.100881 | JC20: -548.756858 | JD20: -381.584261 | JE20: -579.516633 | JF20: -466.216654 | JG20: -525.289 | JH20: -1375.791 | JI20: -869.971 | JJ20: -1211.918 | JK20: -939.843 | JL20: -625.329 | JM20: -629.524 | JN20: -646.21 | JO20: -1047.304 | JP20: -1457.208 | JQ20: -791.407 | JR20: -1080.156 | JS20: -364.452 | JT20: -642.396 | JU20: -430.419 | JV20: -411.181 | JW20: -132.055 | JX20: -358.694 | JY20: -1060.433 | JZ20: -517.678 | KA20: -821.875 | KB20: -679.12 | KC20: -892.911 | KD20: -420.928 | KE20: 28.102 | KF20: -490.541 | KG20: -238.625 | KH20: - | KI20: - | KJ20: - | KK20: - | KL20: - | KM20: - | KN20: - | KO20: - | KP20: -
B21: Demanda transporte (b.c.) | C21: =SUM(C17:C20) -> 12568.173 | D21: =SUM(D17:D20) -> 10606.684 | E21: 11500.654 | F21: 10528.6 | G21: 10700.869 | H21: 10911.449 | I21: 11525.924 | J21: 10123.628 | K21: 10799.337 | L21: 10940.46 | M21: 11602.256 | N21: 12751.464 | O21: 13221.258 | P21: 12104.61 | Q21: 11461.919 | R21: 11048.385 | S21: 11232.121 | T21: 10918.467 | U21: 11835.945 | V21: 10459.177 | W21: 11266.763 | X21: 11698.816 | Y21: 12056.953 | Z21: 12469.99 | AA21: 13798.636 | AB21: 12527.571 | AC21: 12266.982 | AD21: 11180.001 | AE21: 11221.762 | AF21: 10764.077 | AG21: 12007.581 | AH21: 10674.854 | AI21: 11316.847 | AJ21: 11565.285 | AK21: 11522.732 | AL21: 12194.611 | AM21: 13097.569 | AN21: 11923.505 | AO21: 12461.084 | AP21: 10884.726 | AQ21: 11045.386 | AR21: 11156.418 | AS21: 11886.368 | AT21: 10762.586 | AU21: 11179.712 | AV21: 11748.18 | AW21: 12297.539 | AX21: 12763.291 | AY21: 13141.868 | AZ21: 12158.895 | BA21: 12094.057 | BB21: 11595.257 | BC21: 11694.177 | BD21: 11961.463 | BE21: 12800.28 | BF21: 11639.961 | BG21: 11922.619 | BH21: 11858.766 | BI21: 12233.532 | BJ21: 13139.841 | BK21: 13984.224 | BL21: 12088.559 | BM21: 13295.243 | BN21: 11822.258 | BO21: 12404.075 | BP21: =SUM(BP17:BP20) -> 12447.605 | BQ21: 13093.934 | BR21: 12087.527 | BS21: 12236.763 | BT21: 12363.548 | BU21: 12611.462 | BV21: 13298.205 | BW21: 13848.374 | BX21: 13526.045 | BY21: 13537.277 | BZ21: 11990.402 | CA21: 12490.416 | CB21: 12785.945 | CC21: 13519.844 | CD21: 12230.968 | CE21: 12307.397 | CF21: 12882.947 | CG21: 13261.676 | CH21: 13826.559 | CI21: 14791.047 | CJ21: 12504.942 | CK21: 12944.201 | CL21: 12938.041 | CM21: 13073.965 | CN21: 13053.461 | CO21: 13846.366 | CP21: 12972.292 | CQ21: 13641.727 | CR21: 13754.549 | CS21: 13928.879 | CT21: 14912.341 | CU21: 15172.561 | CV21: 13701.303 | CW21: 14381.126 | CX21: 13712.255 | CY21: 13714.311 | CZ21: 14102.116 | DA21: 15283.842 | DB21: 13813.231 | DC21: 14164.755 | DD21: 14304.219 | DE21: 14700.953 | DF21: 16000.632 | DG21: 16168.921 | DH21: 14967.625 | DI21: 15400.066 | DJ21: 14030.917 | DK21: 14637.163 | DL21: 15059.192 | DM21: 16261.017 | DN21: 14644.726 | DO21: 14989.452 | DP21: 14949.123 | DQ21: 16255.662 | DR21: 16948.565 | DS21: 17845.228 | DT21: 15687.766 | DU21: 16380.923 | DV21: 15199.865 | DW21: 15564.256 | DX21: 16091.724 | DY21: 16573.086 | DZ21: 15634.834 | EA21: 15998.933 | EB21: =SUM(EB17:EB20) -> 15961.555 | EC21: 16920.555 | ED21: 17131.96 | EE21: 18289.445 | EF21: 16491.727 | EG21: 17239.23 | EH21: 15530.365 | EI21: 16690.819 | EJ21: 17085.272 | EK21: 17642.278 | EL21: 16747.986 | EM21: 16490.887 | EN21: 16729.872 | EO21: 17806.418 | EP21: 18871.052 | EQ21: 19341.497 | ER21: 16996.741 | ES21: 17636.379 | ET21: 17018.971 | EU21: 17193.093 | EV21: 17374.281 | EW21: 18464.613 | EX21: 16579.862 | EY21: 16965.512 | EZ21: 17630.42 | FA21: 17851.663 | FB21: 18508.075 | FC21: 20199.603 | FD21: 18770.308 | FE21: 18517.215 | FF21: 17007.472 | FG21: 17756.891 | FH21: 18911.004 | FI21: 20054.809 | FJ21: 18709.898 | FK21: 18185.194 | FL21: 18727.147 | FM21: 18882.891 | FN21: 20117.086 | FO21: 20331.607 | FP21: 19479.59 | FQ21: 20587.064 | FR21: 18261.443 | FS21: 18519.046 | FT21: 19383.067 | FU21: 20650.729 | FV21: 18984.258 | FW21: 19297.613 | FX21: 19134.524 | FY21: 20211.603 | FZ21: 21137.934 | GA21: 22434.996 | GB21: 20982.072 | GC21: 21028.847 | GD21: 19050.185 | GE21: 19203.679 | GF21: 20500.804 | GG21: 21538.907 | GH21: 19548.175 | GI21: 19495.728 | GJ21: 19231.861 | GK21: 20661.564 | GL21: 22507.246 | GM21: 23447.905 | GN21: =SUM(GN17:GN20) -> 21252.068 | GO21: 21967.847 | GP21: 18681.974 | GQ21: 20372.254 | GR21: 20850.334 | GS21: 23038.001 | GT21: 20603.034 | GU21: 20839.388 | GV21: 20448.168 | GW21: 20584.459 | GX21: 22895.527 | GY21: 24159.133 | GZ21: 21183.206 | HA21: 22565.632 | HB21: 20260.941 | HC21: 20863.598 | HD21: 21079.955 | HE21: 22851.761 | HF21: 21112.414 | HG21: 20898.947 | HH21: 21214.274 | HI21: 22511.687 | HJ21: 23734.213 | HK21: 24433.133 | HL21: 22546.604 | HM21: 22312.011 | HN21: 21496.494 | HO21: 20950.916 | HP21: 21080.628 | HQ21: 23239.803 | HR21: 21729.627 | HS21: 21081.668 | HT21: 21124.274 | HU21: 22046.794 | HV21: 23163.711 | HW21: 23770.664 | HX21: 20885.489 | HY21: 20925.592 | HZ21: 19227.985 | IA21: 19641.821 | IB21: 20540.189 | IC21: 22424.545 | ID21: 21148.707 | IE21: 20400.554 | IF21: 20324.805 | IG21: 20644.267 | IH21: 22725.194 | II21: 23750.938 | IJ21: 21910.908 | IK21: 22815.562 | IL21: 19934.794 | IM21: 20422.616 | IN21: 20438.545 | IO21: 23145.034 | IP21: 21456.107 | IQ21: 20701.915 | IR21: 20498.548 | IS21: 22011.929 | IT21: 23443.517 | IU21: 23667.8692 | IV21: 21415.07064 | IW21: 22737.24499 | IX21: 19254.98368 | IY21: 20346.8822 | IZ21: =SUM(IZ17:IZ20) -> 20743.12681 | JA21: 22022.53343 | JB21: 21592.32012 | JC21: 21020.74114 | JD21: 20338.95974 | JE21: 20614.60426 | JF21: 21876.80105 | JG21: 23108.293 | JH21: 22989.853 | JI21: 21330.977 | JJ21: 19336.787 | JK21: 20186.338 | JL21: 20747.493 | JM21: 21651.822 | JN21: 21445.529 | JO21: 19799.198 | JP21: 19655.826 | JQ21: 20270.139 | JR21: 21328.041 | JS21: 22553.187 | JT21: 20549.265 | JU21: 21211.191 | JV21: 19445.811 | JW21: 19441.396 | JX21: 19141.722 | JY21: 21636.866 | JZ21: 20604.825 | KA21: 19669.192 | KB21: 19771.12 | KC21: 20457.93 | KD21: 21728.976 | KE21: 22046.142 | KF21: 20351.561 | KG21: 20763.666 | KH21: - | KI21: - | KJ21: - | KK21: - | KL21: - | KM21: - | KN21: - | KO21: - | KP21: -
B23: Balance eléctrico Islas Baleares (MWh) | C23: 2006-01-01 | D23: 2006-02-01 | E23: 2006-03-01 | F23: 2006-04-01 | G23: 2006-05-01 | H23: 2006-06-01 | I23: 2006-07-01 | J23: 2006-08-01 | K23: 2006-09-01 | L23: 2006-10-01 | M23: 2006-11-01 | N23: 2006-12-01 | O23: 2007-01-01 | P23: 2007-02-01 | Q23: 2007-03-01 | R23: 2007-04-01 | S23: 2007-05-01 | T23: 2007-06-01 | U23: 2007-07-01 | V23: 2007-08-01 | W23: 2007-09-01 | X23: 2007-10-01 | Y23: 2007-11-01 | Z23: 2007-12-01 | AA23: 2008-01-01 | AB23: 2008-02-01 | AC23: 2008-03-01 | AD23: 2008-04-01 | AE23: 2008-05-01 | AF23: 2008-06-01 | AG23: 2008-07-01 | AH23: 2008-08-01 | AI23: 2008-09-01 | AJ23: 2008-10-01 | AK23: 2008-11-01 | AL23: 2008-12-01 | AM23: 2009-01-01 | AN23: 2009-02-01 | AO23: 2009-03-01 | AP23: 2009-04-01 | AQ23: 2009-05-01 | AR23: 2009-06-01 | AS23: 2009-07-01 | AT23: 2009-08-01 | AU23: 2009-09-01 | AV23: 2009-10-01 | AW23: 2009-11-01 | AX23: 2009-12-01 | AY23: 2010-01-01 | AZ23: 2010-02-01 | BA23: 2010-03-01 | BB23: 2010-04-01 | BC23: 2010-05-01 | BD23: 2010-06-01 | BE23: 2010-07-01 | BF23: 2010-08-01 | BG23: 2010-09-01 | BH23: 2010-10-01 | BI23: 2010-11-01 | BJ23: 2010-12-01 | BK23: 2011-01-01 | BL23: 2011-02-01 | BM23: 2011-03-01 | BN23: 2011-04-01 | BO23: 2011-05-01 | BP23: 2011-06-01 | BQ23: 2011-07-01 | BR23: 2011-08-01 | BS23: 2011-09-01 | BT23: 2011-10-01 | BU23: 2011-11-01 | BV23: 2011-12-01 | BW23: 2012-01-01 | BX23: 2012-02-01 | BY23: 2012-03-01 | BZ23: 2012-04-01 | CA23: 2012-05-01 | CB23: 2012-06-01 | CC23: 2012-07-01 | CD23: 2012-08-01 | CE23: 2012-09-01 | CF23: 2012-10-01 | CG23: 2012-11-01 | CH23: 2012-12-01 | CI23: 2013-01-01 | CJ23: 2013-02-01 | CK23: 2013-03-01 | CL23: 2013-04-01 | CM23: 2013-05-01 | CN23: 2013-06-01 | CO23: 2013-07-01 | CP23: 2013-08-01 | CQ23: 2013-09-01 | CR23: 2013-10-01 | CS23: 2013-11-01 | CT23: 2013-12-01 | CU23: 2014-01-01 | CV23: 2014-02-01 | CW23: 2014-03-01 | CX23: 2014-04-01 | CY23: 2014-05-01 | CZ23: 2014-06-01 | DA23: 2014-07-01 | DB23: 2014-08-01 | DC23: 2014-09-01 | DD23: 2014-10-01 | DE23: 2014-11-01 | DF23: 2014-12-01
B24: Carbón | C24: 304170 | D24: 265621 | E24: 302322 | F24: 260126 | G24: 294046 | H24: 309852 | I24: 317446 | J24: 305396 | K24: 276517 | L24: 193097 | M24: 218341 | N24: 286674 | O24: 274668 | P24: 246941 | Q24: 238817 | R24: 285416 | S24: 247338 | T24: 241663 | U24: 303113 | V24: 317574 | W24: 286207 | X24: 249081 | Y24: 219363 | Z24: 285139 | AA24: 311287 | AB24: 292521 | AC24: 288962 | AD24: 235587 | AE24: 268479 | AF24: 303289 | AG24: 321018 | AH24: 328762 | AI24: 312014 | AJ24: 266842 | AK24: 236929 | AL24: 206264 | AM24: 204598 | AN24: 289346 | AO24: 250808 | AP24: 263553 | AQ24: 294358 | AR24: 315447 | AS24: 324723 | AT24: 334483 | AU24: 283636 | AV24: 306646 | AW24: 276793 | AX24: 305337 | AY24: 313962 | AZ24: 275371 | BA24: 308833 | BB24: 294283 | BC24: 250111 | BD24: 303418 | BE24: 318538 | BF24: 313415 | BG24: 311467 | BH24: 237934 | BI24: 210121 | BJ24: 243320 | BK24: 295133 | BL24: 243006 | BM24: 146476 | BN24: 212658 | BO24: 262439 | BP24: 278463 | BQ24: 319251 | BR24: 316333 | BS24: 296310 | BT24: 219322 | BU24: 183758 | BV24: 257355 | BW24: 288414 | BX24: 239146 | BY24: 245341 | BZ24: 223999 | CA24: 249690 | CB24: 265848 | CC24: 297967 | CD24: 297787 | CE24: 258095 | CF24: 204181 | CG24: 177616 | CH24: 192516 | CI24: 201410 | CJ24: 190182 | CK24: 205466 | CL24: 193764 | CM24: 206845 | CN24: 221057 | CO24: 271118 | CP24: 273187 | CQ24: 252989 | CR24: 187760 | CS24: 185858 | CT24: 201378 | CU24: 201469 | CV24: 165889 | CW24: 173138 | CX24: - | CY24: - | CZ24: - | DA24: - | DB24: - | DC24: - | DD24: - | DE24: - | DF24: -
B25: Motores diesel | C25: 80652 | D25: 69572 | E25: 72169 | F25: 66716 | G25: 81076 | H25: 86707 | I25: 105960 | J25: 103175 | K25: 95127 | L25: 81332 | M25: 64984 | N25: 76464 | O25: 81416 | P25: 68906 | Q25: 77837 | R25: 74651 | S25: 87692 | T25: 95983 | U25: 106601 | V25: 109134 | W25: 100465 | X25: 82705 | Y25: 77259 | Z25: 83865 | AA25: 84032 | AB25: 74080 | AC25: 78904 | AD25: 75715 | AE25: 89564 | AF25: 99409 | AG25: 119539 | AH25: 121890 | AI25: 101460 | AJ25: 81122 | AK25: 75374 | AL25: 83828 | AM25: 87876 | AN25: 70154 | AO25: 73703 | AP25: 76893 | AQ25: 78501 | AR25: 94380 | AS25: 108752 | AT25: 109671 | AU25: 88816 | AV25: 72989 | AW25: 64294 | AX25: 76981 | AY25: 82990 | AZ25: 73176 | BA25: 80482 | BB25: 72546 | BC25: 85890 | BD25: 97218 | BE25: 116313 | BF25: 117282 | BG25: 101071 | BH25: 79481 | BI25: 68774 | BJ25: 84362 | BK25: 85063 | BL25: 67683 | BM25: 80469 | BN25: 74893 | BO25: 86911 | BP25: 93147 | BQ25: 100047 | BR25: 102235 | BS25: 85216 | BT25: 58367 | BU25: 52463 | BV25: 77686 | BW25: 83609 | BX25: 77777 | BY25: 77033 | BZ25: 75908 | CA25: 87525 | CB25: 96927 | CC25: 107147 | CD25: 106393 | CE25: 83589 | CF25: 63612 | CG25: 49286 | CH25: 57068 | CI25: 61053 | CJ25: 54895 | CK25: 54263 | CL25: 56787 | CM25: 69545 | CN25: 72253 | CO25: 92567 | CP25: 88846 | CQ25: 68023 | CR25: 51819 | CS25: 39767 | CT25: 56975 | CU25: 60148 | CV25: 56565 | CW25: 41875 | CX25: - | CY25: - | CZ25: - | DA25: - | DB25: - | DC25: - | DD25: - | DE25: - | DF25: -
B26: Turbina de gas | C26: 7146 | D26: 11165.435 | E26: 23813.139 | F26: 13822 | G26: 15746 | H26: 29484 | I26: 56825 | J26: 41478 | K26: 33885 | L26: 30210.952 | M26: 19245 | N26: 17641.22 | O26: 24481 | P26: 21283 | Q26: 21348 | R26: 17654 | S26: 38054 | T26: 33629 | U26: 42039 | V26: 39049 | W26: 21742 | X26: 21535 | Y26: 21137 | Z26: 18279 | AA26: 17810 | AB26: 20254 | AC26: 20278 | AD26: 12832 | AE26: 13605 | AF26: 23077 | AG26: 35033 | AH26: 38909 | AI26: 31960 | AJ26: 21457 | AK26: 19739 | AL26: 22425 | AM26: 19469 | AN26: 21040 | AO26: 20429 | AP26: 12593 | AQ26: 24996 | AR26: 34520 | AS26: 53809 | AT26: 53503 | AU26: 37806 | AV26: 25052 | AW26: 21492 | AX26: 21306 | AY26: 23742 | AZ26: 25973 | BA26: 22804 | BB26: 17103 | BC26: 16002 | BD26: 20565 | BE26: 41860 | BF26: 42522 | BG26: 27318 | BH26: 22834 | BI26: 21905 | BJ26: 22193 | BK26: 17282 | BL26: 21177 | BM26: 17980 | BN26: 13464 | BO26: 17421 | BP26: 28649 | BQ26: 50739 | BR26: 60383 | BS26: 48464 | BT26: 39771 | BU26: 31757 | BV26: 10368 | BW26: 12997 | BX26: 25034 | BY26: 14838 | BZ26: 8200 | CA26: 12998 | CB26: 30318 | CC26: 43759 | CD26: 62529 | CE26: 39879 | CF26: 34866 | CG26: 29778 | CH26: 32551 | CI26: 31761 | CJ26: 34154 | CK26: 33144 | CL26: 26130 | CM26: 33162 | CN26: 40610 | CO26: 63037 | CP26: 69949 | CQ26: 59021 | CR26: 52285 | CS26: 43557 | CT26: 39056 | CU26: 29186 | CV26: 25184 | CW26: 40439 | CX26: - | CY26: - | CZ26: - | DA26: - | DB26: - | DC26: - | DD26: - | DE26: - | DF26: -
B27: Fuel + Gas | C27: =SUM(C25:C26) -> 87798 | D27: =SUM(D25:D26) -> 80737.435 | E27: 95982.139 | F27: 80538 | G27: 96822 | H27: 116191 | I27: 162785 | J27: 144653 | K27: 129012 | L27: 111542.952 | M27: 84229 | N27: 94105.22 | O27: 105897 | P27: 90189 | Q27: 99185 | R27: 92305 | S27: 125746 | T27: 129612 | U27: 148640 | V27: 148183 | W27: 122207 | X27: 104240 | Y27: 98396 | Z27: 102144 | AA27: 101842 | AB27: 94334 | AC27: 99182 | AD27: 88547 | AE27: 103169 | AF27: 122486 | AG27: 154572 | AH27: 160799 | AI27: 133420 | AJ27: 102579 | AK27: 95113 | AL27: 106253 | AM27: 107345 | AN27: 91194 | AO27: 94132 | AP27: 89486 | AQ27: 103497 | AR27: 128900 | AS27: 162561 | AT27: 163174 | AU27: 126622 | AV27: 98041 | AW27: 85786 | AX27: 98287 | AY27: 106732 | AZ27: 99149 | BA27: 103286 | BB27: 89649 | BC27: 101892 | BD27: 117783 | BE27: 158173 | BF27: 159804 | BG27: 128389 | BH27: 102315 | BI27: 90679 | BJ27: 106555 | BK27: 102345 | BL27: 88860 | BM27: 98449 | BN27: 88357 | BO27: 104332 | BP27: =SUM(BP25:BP26) -> 121796 | BQ27: 150786 | BR27: 162618 | BS27: 133680 | BT27: 98138 | BU27: 84220 | BV27: 88054 | BW27: 96606 | BX27: 102811 | BY27: 91871 | BZ27: 84108 | CA27: 100523 | CB27: 127245 | CC27: 150906 | CD27: 168922 | CE27: 123468 | CF27: 98478 | CG27: 79064 | CH27: 89619 | CI27: 92814 | CJ27: 89049 | CK27: 87407 | CL27: 82917 | CM27: 102707 | CN27: 112863 | CO27: 155604 | CP27: 158795 | CQ27: 127044 | CR27: 104104 | CS27: 83324 | CT27: 96031 | CU27: 89334 | CV27: 81749 | CW27: 82314 | CX27: - | CY27: - | CZ27: - | DA27: - | DB27: - | DC27: - | DD27: - | DE27: - | DF27: -
B28: Ciclo combinado | C28: 118748 | D28: 116359 | E28: 74603 | F28: 60750 | G28: 82747 | H28: 111505 | I28: 179224 | J28: 173356 | K28: 137161 | L28: 168823 | M28: 83354 | N28: 81754 | O28: 113095 | P28: 100458 | Q28: 137421 | R28: 69351 | S28: 117087 | T28: 180352 | U28: 193963 | V28: 176738 | W28: 147002 | X28: 149700 | Y28: 140244 | Z28: 117667 | AA28: 96315 | AB28: 95089 | AC28: 101246 | AD28: 125308 | AE28: 119289 | AF28: 110998 | AG28: 185138 | AH28: 184514 | AI28: 126004 | AJ28: 116212 | AK28: 115850 | AL28: 205373 | AM28: 213206 | AN28: 85237 | AO28: 138631 | AP28: 94121 | AQ28: 73626 | AR28: 101925 | AS28: 181815 | AT28: 172825 | AU28: 125884 | AV28: 60214 | AW28: 31977 | AX28: 68764 | AY28: 87576 | AZ28: 94357 | BA28: 73922 | BB28: 39133 | BC28: 94041 | BD28: 66276 | BE28: 167022 | BF28: 153809 | BG28: 79224 | BH28: 112120 | BI28: 103405 | BJ28: 125400 | BK28: 91273 | BL28: 105846 | BM28: 211900 | BN28: 92199 | BO28: 94448 | BP28: 99449 | BQ28: 124116 | BR28: 158687 | BS28: 120561 | BT28: 124248 | BU28: 100679 | BV28: 66424 | BW28: 73375 | BX28: 139993 | BY28: 57673 | BZ28: 55578 | CA28: 60484 | CB28: 99861 | CC28: 116315 | CD28: 129949 | CE28: 51329 | CF28: 75558 | CG28: 45265 | CH28: 38215 | CI28: 40847 | CJ28: 54550 | CK28: 41943 | CL28: 27800 | CM28: 41954 | CN28: 17493 | CO28: 39022 | CP28: 32741 | CQ28: 4934 | CR28: 57383 | CS28: 38087 | CT28: 50182 | CU28: 35577 | CV28: 47718 | CW28: 49413 | CX28: - | CY28: - | CZ28: - | DA28: - | DB28: - | DC28: - | DD28: - | DE28: - | DF28: -
B29: Generación auxiliar | C29: 0 | D29: 0 | E29: 0 | F29: 0 | G29: 0 | H29: 0 | I29: 354 | J29: 4848 | K29: 2473 | L29: 1 | M29: 0 | N29: 0 | O29: 0 | P29: 0 | Q29: 0 | R29: 0 | S29: 0 | T29: 0 | U29: 2834 | V29: 8621 | W29: 1575 | X29: 0 | Y29: 0 | Z29: 0 | AA29: 0 | AB29: 0 | AC29: 0 | AD29: 0 | AE29: 0 | AF29: 0 | AG29: 2053 | AH29: 2602 | AI29: 1289 | AJ29: 0 | AK29: 0 | AL29: 0 | AM29: 0 | AN29: 0 | AO29: 0 | AP29: 0 | AQ29: 0 | AR29: 0 | AS29: 1489 | AT29: 3044 | AU29: 1045 | AV29: 0 | AW29: 0 | AX29: 0 | AY29: 0 | AZ29: 0 | BA29: 0 | BB29: 0 | BC29: 0 | BD29: 46 | BE29: 2622 | BF29: 2930 | BG29: 1108 | BH29: 0 | BI29: 0 | BJ29: 0 | BK29: 0 | BL29: 0 | BM29: 0 | BN29: 0 | BO29: 0 | BP29: 1083 | BQ29: 2490 | BR29: 3647 | BS29: 1537 | BT29: 0 | BU29: 0 | BV29: 0 | BW29: 0 | BX29: 0 | BY29: 0 | BZ29: 0 | CA29: 0 | CB29: 984 | CC29: 2564 | CD29: 3950 | CE29: 1310 | CF29: 1 | CG29: 0 | CH29: 0 | CI29: 0 | CJ29: 0 | CK29: 0 | CL29: 0 | CM29: 1 | CN29: 625 | CO29: 2313 | CP29: 3045 | CQ29: 917 | CR29: 0 | CS29: 0 | CT29: 0 | CU29: 0 | CV29: 0 | CW29: 0 | CX29: - | CY29: - | CZ29: - | DA29: - | DB29: - | DC29: - | DD29: - | DE29: - | DF29: -
B30: Régimen ordinario | C30: =SUM(C24,C27:C29) -> 510716 | D30: =SUM(D24,D27:D29) -> 462717.435 | E30: 472907.139 | F30: 401414 | G30: 473615 | H30: 537548 | I30: 659809 | J30: 628253 | K30: 545163 | L30: 473463.952 | M30: 385924 | N30: 462533.22 | O30: 493660 | P30: 437588 | Q30: 475423 | R30: 447072 | S30: 490171 | T30: 551627 | U30: 648550 | V30: 651116 | W30: 556991 | X30: 503021 | Y30: 458003 | Z30: 504950 | AA30: 509444 | AB30: 481944 | AC30: 489390 | AD30: 449442 | AE30: 490937 | AF30: 536773 | AG30: 662781 | AH30: 676677 | AI30: 572727 | AJ30: 485633 | AK30: 447892 | AL30: 517890 | AM30: 525149 | AN30: 465777 | AO30: 483571 | AP30: 447160 | AQ30: 471481 | AR30: 546272 | AS30: 670588 | AT30: 673526 | AU30: 537187 | AV30: 464901 | AW30: 394556 | AX30: 472388 | AY30: 508270 | AZ30: 468877 | BA30: 486041 | BB30: 423065 | BC30: 446044 | BD30: 487523 | BE30: 646355 | BF30: 629958 | BG30: 520188 | BH30: 452369 | BI30: 404205 | BJ30: 475275 | BK30: 488751 | BL30: 437712 | BM30: 456825 | BN30: 393214 | BO30: 461219 | BP30: =SUM(BP24,BP27:BP29) -> 500791 | BQ30: 596643 | BR30: 641285 | BS30: 552088 | BT30: 441708 | BU30: 368657 | BV30: 411833 | BW30: 458395 | BX30: 481950 | BY30: 394885 | BZ30: 363685 | CA30: 410697 | CB30: 493938 | CC30: 567752 | CD30: 600608 | CE30: 434202 | CF30: 378218 | CG30: 301945 | CH30: 320350 | CI30: 335071 | CJ30: 333781 | CK30: 334816 | CL30: 304481 | CM30: 351507 | CN30: 352038 | CO30: 468057 | CP30: 467768 | CQ30: 385884 | CR30: 349247 | CS30: 307269 | CT30: 347591
B31: Consumos generación | C31: -27842 | D31: -24795 | E31: -27491 | F31: -25171 | G31: -27502 | H31: -28813 | I31: -33298 | J31: -33423 | K31: -30412 | L31: -23663 | M31: -22664 | N31: -26457 | O31: -29146 | P31: -25771 | Q31: -26451 | R31: -28320 | S31: -27538 | T31: -29987 | U31: -36851 | V31: -36943 | W31: -32926 | X31: -29775 | Y31: -26207 | Z31: -30748 | AA31: -31354 | AB31: -29589 | AC31: -31119 | AD31: -27482 | AE31: -30042 | AF31: -31499 | AG31: -36836 | AH31: -37540 | AI31: -33922 | AJ31: -30222 | AK31: -26601 | AL31: -27494 | AM31: -28293 | AN31: -27561 | AO31: -29380 | AP31: -28739 | AQ31: -30925 | AR31: -32145 | AS31: -36550 | AT31: -37390 | AU31: -32222 | AV31: -30470 | AW31: -27873 | AX31: -31602 | AY31: -32373 | AZ31: -28385 | BA31: -31806 | BB31: -29641 | BC31: -30161 | BD31: -31841 | BE31: -38025 | BF31: -38346 | BG31: -34759 | BH31: -28648 | BI31: -24993 | BJ31: -28475 | BK31: -32024 | BL31: -28217 | BM31: -24560 | BN31: -28048 | BO31: -30352 | BP31: -32255 | BQ31: -37324 | BR31: -42462 | BS31: -36592 | BT31: -29532 | BU31: -25696 | BV31: -28648 | BW31: -31265 | BX31: -29233 | BY31: -28551 | BZ31: -27401 | CA31: -30313 | CB31: -30423 | CC31: -35438 | CD31: -35632 | CE31: -29955 | CF31: -25154 | CG31: -21571 | CH31: -24082 | CI31: -25161 | CJ31: -23302 | CK31: -24241 | CL31: -23118 | CM31: -25506 | CN31: -25129 | CO31: -32022 | CP31: -31916 | CQ31: -28288 | CR31: -25423 | CS31: -23778 | CT31: -25214 | CU31: -23518 | CV31: -21305 | CW31: -14406 | CX31: - | CY31: - | CZ31: - | DA31: - | DB31: - | DC31: - | DD31: - | DE31: - | DF31: -
B32: Eólica | C32: 514.35 | D32: 371.374 | E32: 548.188 | F32: 366.096 | G32: 438.988 | H32: 366.65 | I32: 202.55 | J32: 548.332 | K32: 264.468 | L32: 347.647 | M32: 407.408 | N32: 501.305 | O32: 402 | P32: 480 | Q32: 585 | R32: 246 | S32: 392 | T32: 334 | U32: 358 | V32: 444 | W32: 320 | X32: 541 | Y32: 784 | Z32: 770 | AA32: 415 | AB32: 420 | AC32: 575 | AD32: 741 | AE32: 212 | AF32: 290 | AG32: 272 | AH32: 328 | AI32: 462 | AJ32: 470 | AK32: 620 | AL32: 692 | AM32: 472 | AN32: 688 | AO32: 529 | AP32: 482 | AQ32: 477 | AR32: 383 | AS32: 126 | AT32: 147 | AU32: 346 | AV32: 531 | AW32: 538 | AX32: 824 | AY32: 599 | AZ32: 689 | BA32: 590 | BB32: 377 | BC32: 312 | BD32: 275 | BE32: 322 | BF32: 395 | BG32: 303 | BH32: 477 | BI32: 529 | BJ32: 703 | BK32: 472 | BL32: 638 | BM32: 627 | BN32: 553 | BO32: 435 | BP32: 359 | BQ32: 432 | BR32: 356 | BS32: 229 | BT32: 587 | BU32: 549 | BV32: 592 | BW32: 479 | BX32: 1092 | BY32: 557 | BZ32: 570 | CA32: 377 | CB32: 358 | CC32: 430 | CD32: 261 | CE32: 663 | CF32: 421 | CG32: 535 | CH32: 751 | CI32: 687 | CJ32: 674 | CK32: 767 | CL32: 552 | CM32: 439 | CN32: 391 | CO32: 196 | CP32: 340 | CQ32: 342 | CR32: 476 | CS32: 771 | CT32: 480 | CU32: 581 | CV32: 629 | CW32: 650 | CX32: - | CY32: - | CZ32: - | DA32: - | DB32: - | DC32: - | DD32: - | DE32: - | DF32: -
B33: Solar fotovoltaica | C33: 43.973 | D33: 50.86 | E33: 83.446 | F33: 87.707 | G33: 102.911 | H33: 110.639 | I33: 126.145 | J33: 120.868 | K33: 111.756 | L33: 105.835 | M33: 84.201 | N33: 72.454 | O33: 95 | P33: 122 | Q33: 165 | R33: 156 | S33: 211 | T33: 207 | U33: 226 | V33: 209 | W33: 180 | X33: 139 | Y33: 119 | Z33: 123 | AA33: 134 | AB33: 194 | AC33: 416 | AD33: 664 | AE33: 955 | AF33: 1807 | AG33: 2659 | AH33: 4719 | AI33: 4821 | AJ33: 4337 | AK33: 3391 | AL33: 4283 | AM33: 3838 | AN33: 5190 | AO33: 7556 | AP33: 7099 | AQ33: 8802 | AR33: 9040 | AS33: 8898 | AT33: 8709 | AU33: 6680 | AV33: 6538 | AW33: 5096 | AX33: 3487 | AY33: 3845 | AZ33: 4810 | BA33: 6958 | BB33: 8061 | BC33: 9047 | BD33: 8957 | BE33: 10437 | BF33: 10003 | BG33: 8360 | BH33: 6793 | BI33: 5600 | BJ33: 4886 | BK33: 5358 | BL33: 6378 | BM33: 8047 | BN33: 9928 | BO33: 10914 | BP33: 10324 | BQ33: 10211 | BR33: 11535 | BS33: 9702 | BT33: 8434 | BU33: 4998 | BV33: 5392 | BW33: 5976 | BX33: 6824 | BY33: 9968 | BZ33: 10062 | CA33: 12287 | CB33: 11684 | CC33: 11656 | CD33: 12311 | CE33: 10200 | CF33: 9373 | CG33: 5935 | CH33: 6611 | CI33: 7273 | CJ33: 7404 | CK33: 11494 | CL33: 11198 | CM33: 12629 | CN33: 13804 | CO33: 14311 | CP33: 12861 | CQ33: 10747 | CR33: 8780 | CS33: 5604 | CT33: 6094 | CU33: 5801 | CV33: 8300 | CW33: 10872.681 | CX33: - | CY33: - | CZ33: - | DA33: - | DB33: - | DC33: - | DD33: - | DE33: - | DF33: -
B34: Térmica renovable | C34: - | D34: - | E34: - | F34: - | G34: - | H34: - | I34: - | J34: - | K34: - | L34: - | M34: - | N34: - | O34: - | P34: - | Q34: - | R34: - | S34: - | T34: - | U34: - | V34: - | W34: - | X34: - | Y34: - | Z34: - | AA34: - | AB34: - | AC34: - | AD34: - | AE34: - | AF34: - | AG34: - | AH34: - | AI34: - | AJ34: - | AK34: - | AL34: - | AM34: - | AN34: - | AO34: - | AP34: - | AQ34: - | AR34: - | AS34: - | AT34: - | AU34: - | AV34: - | AW34: - | AX34: - | AY34: - | AZ34: - | BA34: - | BB34: - | BC34: - | BD34: - | BE34: - | BF34: - | BG34: - | BH34: - | BI34: - | BJ34: - | BK34: 0 | BL34: 0 | BM34: 0 | BN34: 0 | BO34: 0 | BP34: 0 | BQ34: 0 | BR34: 0 | BS34: 0 | BT34: 0 | BU34: 0 | BV34: 0 | BW34: 45 | BX34: 23 | BY34: 79 | BZ34: 49 | CA34: 42 | CB34: 39 | CC34: 36 | CD34: 47 | CE34: 53 | CF34: 57 | CG34: 55 | CH34: 44 | CI34: 73 | CJ34: 47 | CK34: 75 | CL34: 93 | CM34: 16 | CN34: 73 | CO34: 75 | CP34: 30 | CQ34: 44 | CR34: 65 | CS34: 60 | CT34: 92 | CU34: 123 | CV34: 172 | CW34: 229 | CX34: - | CY34: - | CZ34: - | DA34: - | DB34: - | DC34: - | DD34: - | DE34: - | DF34: -
B35: Cogeneración y resto | C35: 13134.677 | D35: 11651.766 | E35: 12757.366 | F35: 12126.197 | G35: 9241.101 | H35: 11667.711 | I35: 11282.305 | J35: 11336.8 | K35: 10957.776 | L35: 11996.518 | M35: 10537.391 | N35: 12423.241 | O35: 10231 | P35: 11272 | Q35: 12861 | R35: 12018 | S35: 8170 | T35: 9987 | U35: 8947 | V35: 9642 | W35: 9504 | X35: 1019 | Y35: 8067 | Z35: 12215 | AA35: 11005 | AB35: 12227 | AC35: 12415 | AD35: 11349 | AE35: 11758 | AF35: 11450 | AG35: 11883 | AH35: 11405 | AI35: 10678 | AJ35: 11820 | AK35: 11914 | AL35: 12428 | AM35: 12679 | AN35: 9600 | AO35: 972 | AP35: 11178 | AQ35: 12259 | AR35: 11199 | AS35: 11190 | AT35: 10723 | AU35: 11294 | AV35: 11475 | AW35: 11970 | AX35: 12503 | AY35: 10815 | AZ35: 9246 | BA35: 11253 | BB35: 11204 | BC35: 10903 | BD35: 10391 | BE35: 11522 | BF35: 22957 | BG35: 25904 | BH35: 13766 | BI35: 17545 | BJ35: 20738 | BK35: 15300 | BL35: 13950 | BM35: 13834 | BN35: 17844 | BO35: 12581 | BP35: 24337 | BQ35: 27559 | BR35: 28922 | BS35: 29380 | BT35: 27852 | BU35: 22326 | BV35: 26863 | BW35: 23054 | BX35: 18809 | BY35: 21713 | BZ35: 18602 | CA35: 25063 | CB35: 22209 | CC35: 29852 | CD35: 28907 | CE35: 23443 | CF35: 16725 | CG35: 16004 | CH35: 27592 | CI35: 19631 | CJ35: 14416 | CK35: 18168 | CL35: 15890 | CM35: 19024 | CN35: 26233 | CO35: 24865 | CP35: 25589 | CQ35: 30297 | CR35: 19897 | CS35: 17598 | CT35: 20007 | CU35: 17963 | CV35: 14698 | CW35: 19928 | CX35: - | CY35: - | CZ35: - | DA35: - | DB35: - | DC35: - | DD35: - | DE35: - | DF35: -
B36: Régimen especial | C36: =SUM(C32:C35) -> 13693 | D36: =SUM(D32:D35) -> 12074 | E36: 13389 | F36: 12580 | G36: 9783 | H36: 12145 | I36: 11611 | J36: 12006 | K36: 11334 | L36: 12450 | M36: 11029 | N36: 12997 | O36: 10728 | P36: 11874 | Q36: 13611 | R36: 12420 | S36: 8773 | T36: 10528 | U36: 9531 | V36: 10295 | W36: 10004 | X36: 1699 | Y36: 8970 | Z36: 13108 | AA36: 11554 | AB36: 12841 | AC36: 13406 | AD36: 12754 | AE36: 12925 | AF36: 13547 | AG36: 14814 | AH36: 16452 | AI36: 15961 | AJ36: 16627 | AK36: 15925 | AL36: 17403 | AM36: 16989 | AN36: 15478 | AO36: 9057 | AP36: 18759 | AQ36: 21538 | AR36: 20622 | AS36: 20214 | AT36: 19579 | AU36: 18320 | AV36: 18544 | AW36: 17604 | AX36: 16814 | AY36: 15259 | AZ36: 14745 | BA36: 18801 | BB36: 19642 | BC36: 20262 | BD36: 19623 | BE36: 22281 | BF36: 33355 | BG36: 34567 | BH36: 21036 | BI36: 23674 | BJ36: 26327 | BK36: 21130 | BL36: 20966 | BM36: 22508 | BN36: 28325 | BO36: 23930 | BP36: =SUM(BP32:BP35) -> 35020 | BQ36: 38202 | BR36: 40813 | BS36: 39311 | BT36: 36873 | BU36: 27873 | BV36: 32847 | BW36: 29554 | BX36: 26748 | BY36: 32317 | BZ36: 29283 | CA36: 37769 | CB36: 34290 | CC36: 41974 | CD36: 41526 | CE36: 34359 | CF36: 26576 | CG36: 22529 | CH36: 34998 | CI36: 27664 | CJ36: 22541 | CK36: 30504 | CL36: 27733 | CM36: 32108 | CN36: 40501 | CO36: 39447 | CP36: 38820 | CQ36: 41430 | CR36: 29218 | CS36: 24033 | CT36: 26673
B37: Generación neta | C37: =SUM(C30:C31,C36) -> 496567 | D37: =SUM(D30:D31,D36) -> 449996.435 | E37: 458805.139 | F37: 388823 | G37: 455896 | H37: 520880 | I37: 638122 | J37: 606836 | K37: 526085 | L37: 462250.952 | M37: 374289 | N37: 449073.22 | O37: 475242 | P37: 423691 | Q37: 462583 | R37: 431172 | S37: 471406 | T37: 532168 | U37: 621230 | V37: 624468 | W37: 534069 | X37: 474945 | Y37: 440766 | Z37: 487310 | AA37: 489644 | AB37: 465196 | AC37: 471677 | AD37: 434714 | AE37: 473820 | AF37: 518821 | AG37: 640759 | AH37: 655589 | AI37: 554766 | AJ37: 472038 | AK37: 437216 | AL37: 507799 | AM37: 513845 | AN37: 453694 | AO37: 463248 | AP37: 437180 | AQ37: 462094 | AR37: 534749 | AS37: 654252 | AT37: 655715 | AU37: 523285 | AV37: 452975 | AW37: 384287 | AX37: 457600 | AY37: 491156 | AZ37: 455237 | BA37: 473036 | BB37: 413066 | BC37: 436145 | BD37: 475305 | BE37: 630611 | BF37: 624967 | BG37: 519996 | BH37: 444757 | BI37: 402886 | BJ37: 473127 | BK37: 477857 | BL37: 430461 | BM37: 454773 | BN37: 393491 | BO37: 454797 | BP37: =SUM(BP30:BP31,BP36) -> 503556 | BQ37: 597521 | BR37: 639636 | BS37: 554807 | BT37: 449049 | BU37: 370834 | BV37: 416032 | BW37: 456684 | BX37: 479465 | BY37: 398651 | BZ37: 365567 | CA37: 418153 | CB37: 497805 | CC37: 574288 | CD37: 606502 | CE37: 438606 | CF37: 379640 | CG37: 302903 | CH37: 331266 | CI37: 337574 | CJ37: 333020 | CK37: 341079 | CL37: 309096 | CM37: 358109 | CN37: 367410 | CO37: 475482 | CP37: 474672 | CQ37: 399026 | CR37: 353042 | CS37: 307524 | CT37: 349050 | CU37: 327330 | CV37: 297850 | CW37: 322139 | CX37: - | CY37: - | CZ37: - | DA37: - | DB37: - | DC37: - | DD37: - | DE37: - | DF37: -
B38: Enlace Península-Baleares | C38: - | D38: - | E38: - | F38: - | G38: - | H38: - | I38: - | J38: - | K38: - | L38: - | M38: - | N38: - | O38: - | P38: - | Q38: - | R38: - | S38: - | T38: - | U38: - | V38: - | W38: - | X38: - | Y38: - | Z38: - | AA38: - | AB38: - | AC38: - | AD38: - | AE38: - | AF38: - | AG38: - | AH38: - | AI38: - | AJ38: - | AK38: - | AL38: - | AM38: - | AN38: - | AO38: - | AP38: - | AQ38: - | AR38: - | AS38: - | AT38: - | AU38: - | AV38: - | AW38: - | AX38: - | AY38: - | AZ38: - | BA38: - | BB38: - | BC38: - | BD38: - | BE38: - | BF38: - | BG38: - | BH38: - | BI38: - | BJ38: - | BK38: - | BL38: - | BM38: - | BN38: - | BO38: - | BP38: - | BQ38: - | BR38: - | BS38: - | BT38: - | BU38: -43.891 | BV38: 520.3 | BW38: 2681 | BX38: 25376 | BY38: 36695 | BZ38: 35113 | CA38: 27255 | CB38: 35803 | CC38: 36379 | CD38: 68014 | CE38: 74016 | CF38: 70231 | CG38: 67437 | CH38: 91247 | CI38: 108823 | CJ38: 90838 | CK38: 84297 | CL38: 88234 | CM38: 83694 | CN38: 112811 | CO38: 145596 | CP38: 157388 | CQ38: 113879 | CR38: 108857 | CS38: 86136 | CT38: 87955 | CU38: 98644 | CV38: 86919 | CW38: 88564 | CX38: - | CY38: - | CZ38: - | DA38: - | DB38: - | DC38: - | DD38: - | DE38: - | DF38: -
B39: Demanda transporte (b.c.) | C39: =SUM(C37:C38) -> 496567 | D39: =SUM(D37:D38) -> 449996.435 | E39: 458805.139 | F39: 388823 | G39: 455896 | H39: 520880 | I39: 638122 | J39: 606836 | K39: 526085 | L39: 462250.952 | M39: 374289 | N39: 449073.22 | O39: 475242 | P39: 423691 | Q39: 462583 | R39: 431172 | S39: 471406 | T39: 532168 | U39: 621230 | V39: 624468 | W39: 534069 | X39: 474945 | Y39: 440766 | Z39: 487310 | AA39: 489644 | AB39: 465196 | AC39: 471677 | AD39: 434714 | AE39: 473820 | AF39: 518821 | AG39: 640759 | AH39: 655589 | AI39: 554766 | AJ39: 472038 | AK39: 437216 | AL39: 507799 | AM39: 513845 | AN39: 453694 | AO39: 463248 | AP39: 437180 | AQ39: 462094 | AR39: 534749 | AS39: 654252 | AT39: 655715 | AU39: 523285 | AV39: 452975 | AW39: 384287 | AX39: 457600 | AY39: 491156 | AZ39: 455237 | BA39: 473036 | BB39: 413066 | BC39: 436145 | BD39: 475305 | BE39: 630611 | BF39: 624967 | BG39: 519996 | BH39: 444757 | BI39: 402886 | BJ39: 473127 | BK39: 477857 | BL39: 430461 | BM39: 454773 | BN39: 393491 | BO39: 454797 | BP39: =SUM(BP37:BP38) -> 503556 | BQ39: 597521 | BR39: 639636 | BS39: 554807 | BT39: 449049 | BU39: 370790.109 | BV39: 416552.3 | BW39: 459365 | BX39: 504841 | BY39: 435346 | BZ39: 400680 | CA39: 445408 | CB39: 533608 | CC39: 610667 | CD39: 674516 | CE39: 512622 | CF39: 449871 | CG39: 370340 | CH39: 422513 | CI39: 446397 | CJ39: 423858 | CK39: 425376 | CL39: 397330 | CM39: 441803 | CN39: 480221 | CO39: 621078 | CP39: 632060 | CQ39: 512905 | CR39: 461899 | CS39: 393660 | CT39: 437005 | CU39: 425974 | CV39: 384769 | CW39: 410703 | CX39: - | CY39: - | CZ39: - | DA39: - | DB39: - | DC39: - | DD39: - | DE39: - | DF39: -
B41: Balance eléctrico Islas Canarias (MWh) | C41: 2006-01-01 | D41: 2006-02-01 | E41: 2006-03-01 | F41: 2006-04-01 | G41: 2006-05-01 | H41: 2006-06-01 | I41: 2006-07-01 | J41: 2006-08-01 | K41: 2006-09-01 | L41: 2006-10-01 | M41: 2006-11-01 | N41: 2006-12-01 | O41: 2007-01-01 | P41: 2007-02-01 | Q41: 2007-03-01 | R41: 2007-04-01 | S41: 2007-05-01 | T41: 2007-06-01 | U41: 2007-07-01 | V41: 2007-08-01 | W41: 2007-09-01 | X41: 2007-10-01 | Y41: 2007-11-01 | Z41: 2007-12-01 | AA41: 2008-01-01 | AB41: 2008-02-01 | AC41: 2008-03-01 | AD41: 2008-04-01 | AE41: 2008-05-01 | AF41: 2008-06-01 | AG41: 2008-07-01 | AH41: 2008-08-01 | AI41: 2008-09-01 | AJ41: 2008-10-01 | AK41: 2008-11-01 | AL41: 2008-12-01 | AM41: 2009-01-01 | AN41: 2009-02-01 | AO41: 2009-03-01 | AP41: 2009-04-01 | AQ41: 2009-05-01 | AR41: 2009-06-01 | AS41: 2009-07-01 | AT41: 2009-08-01 | AU41: 2009-09-01 | AV41: 2009-10-01 | AW41: 2009-11-01 | AX41: 2009-12-01 | AY41: 2010-01-01 | AZ41: 2010-02-01 | BA41: 2010-03-01 | BB41: 2010-04-01 | BC41: 2010-05-01 | BD41: 2010-06-01 | BE41: 2010-07-01 | BF41: 2010-08-01 | BG41: 2010-09-01 | BH41: 2010-10-01 | BI41: 2010-11-01 | BJ41: 2010-12-01 | BK41: 2011-01-01 | BL41: 2011-02-01 | BM41: 2011-03-01 | BN41: 2011-04-01 | BO41: 2011-05-01 | BP41: 2011-06-01 | BQ41: 2011-07-01 | BR41: 2011-08-01 | BS41: 2011-09-01 | BT41: 2011-10-01 | BU41: 2011-11-01 | BV41: 2011-12-01 | BW41: 2012-01-01 | BX41: 2012-02-01 | BY41: 2012-03-01 | BZ41: 2012-04-01 | CA41: 2012-05-01 | CB41: 2012-06-01 | CC41: 2012-07-01 | CD41: 2012-08-01 | CE41: 2012-09-01 | CF41: 2012-10-01 | CG41: 2012-11-01 | CH41: 2012-12-01 | CI41: 2013-01-01 | CJ41: 2013-02-01 | CK41: 2013-03-01 | CL41: 2013-04-01 | CM41: 2013-05-01 | CN41: 2013-06-01 | CO41: 2013-07-01 | CP41: 2013-08-01 | CQ41: 2013-09-01 | CR41: 2013-10-01 | CS41: 2013-11-01 | CT41: 2013-12-01 | CU41: 2014-01-01 | CV41: 2014-02-01 | CW41: 2014-03-01 | CX41: 2014-04-01 | CY41: 2014-05-01 | CZ41: 2014-06-01 | DA41: 2014-07-01 | DB41: 2014-08-01 | DC41: 2014-09-01 | DD41: 2014-10-01 | DE41: 2014-11-01 | DF41: 2014-12-01
B42: Hidráulica | C42: 0 | D42: 0 | E42: 0 | F42: 0 | G42: 0 | H42: 0 | I42: 0 | J42: 0 | K42: 0 | L42: 0 | M42: 0 | N42: 0 | O42: 0 | P42: 0 | Q42: 0 | R42: 0 | S42: 0 | T42: 0 | U42: 0 | V42: 0 | W42: 0 | X42: 0 | Y42: 0 | Z42: 0 | AA42: 0 | AB42: 0 | AC42: 0 | AD42: 0 | AE42: 0 | AF42: 0 | AG42: 0 | AH42: 0 | AI42: 0 | AJ42: 0 | AK42: 0 | AL42: 0 | AM42: 0 | AN42: 0 | AO42: 0 | AP42: 0 | AQ42: 0 | AR42: 0 | AS42: 0 | AT42: 0 | AU42: 0 | AV42: 0 | AW42: 0 | AX42: 0 | AY42: 0 | AZ42: 0 | BA42: 0 | BB42: 0 | BC42: 0 | BD42: 0 | BE42: 0 | BF42: 0 | BG42: 0 | BH42: 0 | BI42: 0 | BJ42: 0 | BK42: 0 | BL42: 0 | BM42: 0 | BN42: 0 | BO42: 0 | BP42: 0 | BQ42: 0 | BR42: 0 | BS42: 0 | BT42: 0 | BU42: 0 | BV42: 0 | BW42: 0 | BX42: 0 | BY42: 0 | BZ42: 0 | CA42: 0 | CB42: 0 | CC42: 0 | CD42: 0 | CE42: 0 | CF42: 0 | CG42: 0 | CH42: 0 | CI42: 0 | CJ42: 0 | CK42: 0 | CL42: 0 | CM42: 0 | CN42: 0 | CO42: 0 | CP42: 0 | CQ42: 0 | CR42: 0 | CS42: 0 | CT42: 0 | CU42: 0 | CV42: 0 | CW42: 0 | CX42: - | CY42: - | CZ42: - | DA42: - | DB42: - | DC42: - | DD42: - | DE42: - | DF42: -
B43: Motores diesel | C43: 174272 | D43: 156265 | E43: 164925 | F43: 151552 | G43: 180167 | H43: 187228 | I43: 185807 | J43: 189437 | K43: 192228 | L43: 189787 | M43: 166965 | N43: 179457 | O43: 197672 | P43: 161847 | Q43: 179690 | R43: 167663 | S43: 169895 | T43: 176907 | U43: 192692 | V43: 188802 | W43: 179232 | X43: 181371 | Y43: 179943 | Z43: 178981 | AA43: 179607 | AB43: 179415 | AC43: 174164 | AD43: 181447 | AE43: 194740 | AF43: 180367 | AG43: 190033 | AH43: 191351 | AI43: 194367 | AJ43: 186659 | AK43: 179072 | AL43: 188955 | AM43: 184879 | AN43: 170019 | AO43: 177344 | AP43: 170660 | AQ43: 184581 | AR43: 186807 | AS43: 192022 | AT43: 194057 | AU43: 194928 | AV43: 203651 | AW43: 192935 | AX43: 205227 | AY43: 198123 | AZ43: 176377 | BA43: 198441 | BB43: 183086 | BC43: 171411 | BD43: 174231 | BE43: 191432 | BF43: 209264 | BG43: 200393 | BH43: 211241 | BI43: 194996 | BJ43: 195717 | BK43: 198853 | BL43: 179318 | BM43: 197991 | BN43: 186938 | BO43: 180008 | BP43: 189562 | BQ43: 197865 | BR43: 196331 | BS43: 198544 | BT43: 188812 | BU43: 183072 | BV43: 188638 | BW43: 189749 | BX43: 186560 | BY43: 190125 | BZ43: 188392 | CA43: 190135 | CB43: 173570 | CC43: 182699 | CD43: 209079 | CE43: 182150 | CF43: 185194 | CG43: 173638 | CH43: 181318 | CI43: 190400 | CJ43: 175579 | CK43: 189469 | CL43: 165396 | CM43: 176083 | CN43: 170732 | CO43: 176365 | CP43: 192358 | CQ43: 180417 | CR43: 188981 | CS43: 189700 | CT43: 194402 | CU43: 192252 | CV43: 175927 | CW43: 196807 | CX43: - | CY43: - | CZ43: - | DA43: - | DB43: - | DC43: - | DD43: - | DE43: - | DF43: -
B44: Turbina de gas | C44: 53871 | D44: 59467 | E44: 92789 | F44: 62125 | G44: 58784 | H44: 76104 | I44: 68372 | J44: 69954 | K44: 77816 | L44: 84642 | M44: 75257 | N44: 59155 | O44: 65312 | P44: 64919 | Q44: 70048 | R44: 64891 | S44: 63040 | T44: 51185 | U44: 48733 | V44: 57400 | W44: 63877 | X44: 58355 | Y44: 56169 | Z44: 48537 | AA44: 50180 | AB44: 39367 | AC44: 29401 | AD44: 33372 | AE44: 41220 | AF44: 48019 | AG44: 48131 | AH44: 43015 | AI44: 52153 | AJ44: 37850 | AK44: 30282 | AL44: 31072 | AM44: 35701 | AN44: 22346 | AO44: 30851 | AP44: 11760 | AQ44: 39585 | AR44: 38566 | AS44: 26253 | AT44: 30479 | AU44: 40861 | AV44: 32141 | AW44: 26055 | AX44: 17854 | AY44: 14041 | AZ44: 19355 | BA44: 20739 | BB44: 14477 | BC44: 31852 | BD44: 32884 | BE44: 30675 | BF44: 25771 | BG44: 29279 | BH44: 47879 | BI44: 46042 | BJ44: 40745 | BK44: 35548 | BL44: 38129 | BM44: 50319 | BN44: 31020 | BO44: 34679 | BP44: 30047 | BQ44: 47302 | BR44: 45415 | BS44: 58658 | BT44: 59026 | BU44: 60028 | BV44: 55573 | BW44: 51650 | BX44: 48431 | BY44: 52807 | BZ44: 44737 | CA44: 44793 | CB44: 43197 | CC44: 43271 | CD44: 51810 | CE44: 61751 | CF44: 65397 | CG44: 49616 | CH44: 42649 | CI44: 35145 | CJ44: 29185 | CK44: 33003 | CL44: 37340 | CM44: 27175 | CN44: 23862 | CO44: 32719 | CP44: 33937 | CQ44: 28664 | CR44: 35870 | CS44: 33135 | CT44: 30054 | CU44: 27123 | CV44: 34292 | CW44: 16049 | CX44: - | CY44: - | CZ44: - | DA44: - | DB44: - | DC44: - | DD44: - | DE44: - | DF44: -
B45: Turbina de vapor | C45: 376112 | D45: 330339 | E45: 378479 | F45: 323188 | G45: 297962 | H45: 271142 | I45: 277744 | J45: 290266 | K45: 307097 | L45: 284504 | M45: 294800 | N45: 288934 | O45: 292676 | P45: 267095 | Q45: 295372 | R45: 319921 | S45: 243071 | T45: 303383 | U45: 277264 | V45: 326094 | W45: 314312 | X45: 322714 | Y45: 305535 | Z45: 329909 | AA45: 353284 | AB45: 337726 | AC45: 315090 | AD45: 295845 | AE45: 310123 | AF45: 249677 | AG45: 298434 | AH45: 297867 | AI45: 309850 | AJ45: 324439 | AK45: 307762 | AL45: 315112 | AM45: 309340 | AN45: 268568 | AO45: 302351 | AP45: 274729 | AQ45: 314566 | AR45: 275957 | AS45: 291402 | AT45: 306790 | AU45: 305797 | AV45: 323217 | AW45: 272173 | AX45: 288997 | AY45: 299749 | AZ45: 261074 | BA45: 281674 | BB45: 256723 | BC45: 277433 | BD45: 278447 | BE45: 269509 | BF45: 289110 | BG45: 278937 | BH45: 238013 | BI45: 241333 | BJ45: 269683 | BK45: 260204 | BL45: 243727 | BM45: 286731 | BN45: 248384 | BO45: 240941 | BP45: 198597 | BQ45: 248671 | BR45: 236116 | BS45: 226369 | BT45: 252631 | BU45: 200968 | BV45: 230067 | BW45: 255418 | BX45: 217507 | BY45: 247595 | BZ45: 223942 | CA45: 216365 | CB45: 241014 | CC45: 258029 | CD45: 254168 | CE45: 242047 | CF45: 256626 | CG45: 265170 | CH45: 246375 | CI45: 212962 | CJ45: 213000 | CK45: 237810 | CL45: 225089 | CM45: 214340 | CN45: 193750 | CO45: 234056 | CP45: 233760 | CQ45: 222696 | CR45: 242988 | CS45: 225268 | CT45: 240600 | CU45: 237022 | CV45: 194104 | CW45: 150873 | CX45: - | CY45: - | CZ45: - | DA45: - | DB45: - | DC45: - | DD45: - | DE45: - | DF45: -
B46: Fuel + Gas | C46: =SUM(C43:C45) -> 604255 | D46: =SUM(D43:D45) -> 546071 | E46: 636193 | F46: 536865 | G46: 536913 | H46: 534474 | I46: 531923 | J46: 549657 | K46: 577141 | L46: 558933 | M46: 537022 | N46: 527546 | O46: 555660 | P46: 493861 | Q46: 545110 | R46: 552475 | S46: 476006 | T46: 531475 | U46: 518689 | V46: 572296 | W46: 557421 | X46: 562440 | Y46: 541647 | Z46: 557427 | AA46: 583071 | AB46: 556508 | AC46: 518655 | AD46: 510664 | AE46: 546083 | AF46: 478063 | AG46: 536598 | AH46: 532233 | AI46: 556370 | AJ46: 548948 | AK46: 517116 | AL46: 535139 | AM46: 529920 | AN46: 460933 | AO46: 510546 | AP46: 457149 | AQ46: 538732 | AR46: 501330 | AS46: 509677 | AT46: 531326 | AU46: 541586 | AV46: 559009 | AW46: 491163 | AX46: 512078 | AY46: 511913 | AZ46: 456806 | BA46: 500854 | BB46: 454286 | BC46: 480696 | BD46: 485562 | BE46: 491616 | BF46: 524145 | BG46: 508609 | BH46: 497133 | BI46: 482371 | BJ46: 506145 | BK46: 494605 | BL46: 461174 | BM46: 535041 | BN46: 466342 | BO46: 455628 | BP46: =SUM(BP43:BP45) -> 418206 | BQ46: 493838 | BR46: 477862 | BS46: 483571 | BT46: 500469 | BU46: 444068 | BV46: 474278 | BW46: 496817 | BX46: 452498 | BY46: 490527 | BZ46: 457071 | CA46: 451293 | CB46: 457781 | CC46: 483999 | CD46: 515057 | CE46: 485948 | CF46: 507217 | CG46: 488424 | CH46: 470342 | CI46: 438507 | CJ46: 417764 | CK46: 460282 | CL46: 427825 | CM46: 417598 | CN46: 388344 | CO46: 443140 | CP46: 460055 | CQ46: 431777 | CR46: 467839 | CS46: 448103 | CT46: 465056 | CU46: 456397 | CV46: 404323 | CW46: 363729 | CX46: - | CY46: - | CZ46: - | DA46: - | DB46: - | DC46: - | DD46: - | DE46: - | DF46: -
B47: Ciclo combinado | C47: 131271 | D47: 115143 | E47: 82597 | F47: 144791 | G47: 160746 | H47: 173692 | I47: 194470 | J47: 212603 | K47: 206606.12 | L47: 222755 | M47: 210816 | N47: 224006 | O47: 210641 | P47: 176435 | Q47: 206001 | R47: 157568 | S47: 252075 | T47: 191794 | U47: 237173 | V47: 195891 | W47: 202136 | X47: 237728 | Y47: 233737 | Z47: 223487 | AA47: 206702 | AB47: 173413 | AC47: 226628 | AD47: 222789 | AE47: 200663 | AF47: 248554 | AG47: 227552 | AH47: 228951 | AI47: 236148 | AJ47: 225858 | AK47: 226246 | AL47: 237804 | AM47: 225205 | AN47: 209785 | AO47: 227732 | AP47: 203237 | AQ47: 151980 | AR47: 207528 | AS47: 239767 | AT47: 216804 | AU47: 206301 | AV47: 236969 | AW47: 246609 | AX47: 240516 | AY47: 237029 | AZ47: 209195 | BA47: 235470 | BB47: 223193 | BC47: 199746 | BD47: 196628 | BE47: 225689 | BF47: 231363 | BG47: 242841 | BH47: 275963 | BI47: 261818 | BJ47: 255809 | BK47: 261451 | BL47: 196239 | BM47: 193977 | BN47: 220456 | BO47: 254733 | BP47: 284703 | BQ47: 229979 | BR47: 261274 | BS47: 264631 | BT47: 276993 | BU47: 299193 | BV47: 272455 | BW47: 267032 | BX47: 242549 | BY47: 236102 | BZ47: 218961 | CA47: 258764 | CB47: 236424 | CC47: 240574 | CD47: 240874 | CE47: 281545 | CF47: 262202 | CG47: 236795 | CH47: 251872 | CI47: 287936 | CJ47: 229036 | CK47: 251964 | CL47: 250876 | CM47: 256984 | CN47: 251364 | CO47: 270195 | CP47: 277212 | CQ47: 277343 | CR47: 270973 | CS47: 252812 | CT47: 257719 | CU47: 255129 | CV47: 234399 | CW47: 307706 | CX47: - | CY47: - | CZ47: - | DA47: - | DB47: - | DC47: - | DD47: - | DE47: - | DF47: -
B48: Generación auxiliar | C48: 0 | D48: 0 | E48: 0 | F48: 0 | G48: 0 | H48: 0 | I48: 0 | J48: 0 | K48: 0 | L48: 0 | M48: 0 | N48: 0 | O48: 12592 | P48: 12035 | Q48: 12167 | R48: 12158 | S48: 10919 | T48: 9439 | U48: 10686 | V48: 12462 | W48: 11326 | X48: 11935 | Y48: 10056 | Z48: 9039 | AA48: 10202 | AB48: 9659 | AC48: 10861 | AD48: 10032 | AE48: 6829 | AF48: 6410 | AG48: 7670 | AH48: 7858 | AI48: 5141 | AJ48: 4729 | AK48: 5487 | AL48: 4869 | AM48: 4385 | AN48: 3909 | AO48: 4661 | AP48: 2586 | AQ48: 2823 | AR48: 3208 | AS48: 5305 | AT48: 3351 | AU48: 1682.542 | AV48: 811 | AW48: 899.512 | AX48: 170 | AY48: 0 | AZ48: 0 | BA48: 0.484 | BB48: 0 | BC48: 0 | BE48: 0 | BF48: 0 | BG48: 0 | BH48: 0 | BI48: 0 | BJ48: 0 | BK48: 0 | BL48: 0 | BM48: 0 | BN48: 0 | BO48: 0 | BP48: 0 | BQ48: 0 | BR48: 0 | BS48: 0 | BT48: 0 | BU48: 0 | BV48: 0 | BW48: 0 | BX48: 0 | BY48: 0 | BZ48: 0 | CA48: 0 | CB48: 0 | CC48: 0 | CD48: 0 | CE48: 0 | CF48: 0 | CG48: 0 | CH48: 0 | CI48: 0 | CJ48: 0 | CK48: 0 | CL48: 0 | CM48: 0 | CN48: 0 | CO48: 0 | CP48: 0 | CQ48: 0 | CR48: 0 | CS48: 0 | CT48: 0 | CU48: 0 | CV48: 0 | CW48: 0 | CX48: - | CY48: - | CZ48: - | DA48: - | DB48: - | DC48: - | DD48: - | DE48: - | DF48: -
B49: Régimen ordinario | C49: =SUM(C42,C46:C48) -> 735526 | D49: =SUM(D42,D46:D48) -> 661214 | E49: 718790 | F49: 681656 | G49: 697659 | H49: 708166 | I49: 726393 | J49: 762260 | K49: 783747.12 | L49: 781688 | M49: 747838 | N49: 751552 | O49: 778893 | P49: 682331 | Q49: 763278 | R49: 722201 | S49: 739000 | T49: 732708 | U49: 766548 | V49: 780649 | W49: 770883 | X49: 812103 | Y49: 785440 | Z49: 789953 | AA49: 799975 | AB49: 739580 | AC49: 756144 | AD49: 743485 | AE49: 753575 | AF49: 733027 | AG49: 771820 | AH49: 769042 | AI49: 797659 | AJ49: 779535 | AK49: 748849 | AL49: 777812 | AM49: 759510 | AN49: 674627 | AO49: 742939 | AP49: 662972 | AQ49: 693535 | AR49: 712066 | AS49: 754749 | AT49: 751481 | AU49: 749569.542 | AV49: 796789 | AW49: 738671.512 | AX49: 752764 | AY49: 748942 | AZ49: 666001 | BA49: 736324.484 | BB49: 677479 | BC49: 680442 | BD49: 682190 | BE49: 717305 | BF49: 755508 | BG49: 751450 | BH49: 773096 | BI49: 744189 | BJ49: 761954 | BK49: 756056 | BL49: 657413 | BM49: 729018 | BN49: 686798 | BO49: 710361 | BP49: =SUM(BP42,BP46:BP48) -> 702909 | BQ49: 723817 | BR49: 739136 | BS49: 748202 | BT49: 777462 | BU49: 743261 | BV49: 746733 | BW49: 763849 | BX49: 695047 | BY49: 726629 | BZ49: 676032 | CA49: 710057 | CB49: 694205 | CC49: 724573 | CD49: 755931 | CE49: 767493 | CF49: 769419 | CG49: 725219 | CH49: 722214 | CI49: 726443 | CJ49: 646800 | CK49: 712246 | CL49: 678701 | CM49: 674582 | CN49: 639708 | CO49: 713335 | CP49: 737267 | CQ49: 709120 | CR49: 738812 | CS49: 700915 | CT49: 722775
B50: Consumos generación | C50: -42858 | D50: -40733 | E50: -40446 | F50: -39517 | G50: -40003 | H50: -37459 | I50: -40656 | J50: -42237 | K50: -39875 | L50: -41475 | M50: -40572 | N50: -41175 | O50: -43672 | P50: -38950 | Q50: -42172 | R50: -40598 | S50: -38351 | T50: -39860 | U50: -41543 | V50: -44331 | W50: -41547 | X50: -42470 | Y50: -42644 | Z50: -43457 | AA50: -45404 | AB50: -42357 | AC50: -43343 | AD50: -43012 | AE50: -41513 | AF50: -40255 | AG50: -44504 | AH50: -43186 | AI50: -43171 | AJ50: -43862 | AK50: -42038 | AL50: -43261 | AM50: -42832 | AN50: -36007 | AO50: -40195 | AP50: -38790 | AQ50: -39063 | AR50: -37259 | AS50: -40627 | AT50: -40941 | AU50: -40012 | AV50: -41816 | AW50: -38465 | AX50: -41051 | AY50: -42257 | AZ50: -38179 | BA50: -41788 | BB50: -39753 | BC50: -39538 | BD50: -39501 | BE50: -41072 | BF50: -43103 | BG50: -42177 | BH50: -40127 | BI50: -38986 | BJ50: -40755 | BK50: -40974 | BL50: -34960 | BM50: -40422 | BN50: -38748 | BO50: -40322 | BP50: -38705 | BQ50: -40597 | BR50: -40144 | BS50: -39478 | BT50: -40979 | BU50: -37435 | BV50: -39379 | BW50: -41071 | BX50: -37843 | BY50: -40831 | BZ50: -37230 | CA50: -39790 | CB50: -37648 | CC50: -39935 | CD50: -41405 | CE50: -41617 | CF50: -41918 | CG50: -38662 | CH50: -28300 | CI50: -40547 | CJ50: -34355 | CK50: -36880 | CL50: -36711 | CM50: -35899 | CN50: -34303 | CO50: -36899 | CP50: -36965 | CQ50: -35281 | CR50: -36991 | CS50: -35274 | CT50: -37789 | CU50: -37527 | CV50: -33919 | CW50: -29753 | CX50: - | CY50: - | CZ50: - | DA50: - | DB50: - | DC50: - | DD50: - | DE50: - | DF50: -
B51: Hidráulica | C51: 0 | D51: 0 | E51: 0 | F51: 0 | G51: 0 | H51: 0 | I51: 0 | J51: 0 | K51: 0 | L51: 0 | M51: 0 | N51: 0 | O51: 0 | P51: 0 | Q51: 0 | R51: 0 | S51: 0 | T51: 0 | U51: 82 | V51: 190 | W51: 247 | X51: 92 | Y51: 278 | Z51: 287 | AA51: 287 | AB51: 244 | AC51: 240 | AD51: 0 | AE51: 185 | AF51: 315 | AG51: 305 | AH51: 97 | AI51: 0 | AJ51: 0 | AK51: 0 | AL51: 0 | AM51: 9 | AN51: 164 | AO51: 175 | AP51: 50 | AQ51: 0 | AR51: 0 | AS51: 0 | AT51: 0 | AU51: 0 | AV51: 0 | AW51: 0 | AX51: 0 | AY51: 0 | AZ51: 0 | BA51: 0 | BB51: 0 | BC51: 0 | BD51: 0 | BE51: 0 | BF51: 0 | BG51: 0 | BH51: 0 | BI51: 0 | BJ51: 0 | BK51: 0 | BL51: 0 | BM51: 2 | BN51: 239 | BO51: 165 | BP51: 131 | BQ51: 245 | BR51: 179 | BS51: 201 | BT51: 238 | BU51: 164 | BV51: 111 | BW51: 116 | BX51: 0 | BY51: 163 | BZ51: 247 | CA51: 219 | CB51: 207 | CC51: 63 | CD51: 231 | CE51: 222 | CF51: 206 | CG51: 40 | CH51: 77 | CI51: 225 | CJ51: 205 | CK51: 137 | CL51: 137 | CM51: 292 | CN51: 286 | CO51: 286 | CP51: 286 | CQ51: 292 | CR51: 304 | CS51: 293 | CT51: 306 | CU51: 305 | CV51: 276 | CW51: 420 | CX51: - | CY51: - | CZ51: - | DA51: - | DB51: - | DC51: - | DD51: - | DE51: - | DF51: -
B52: Eólica | C52: 17431.845 | D52: 18906.552 | E52: 22433.485 | F52: 28613.578 | G52: 35233.5 | H52: 25590.253 | I52: 56231.544 | J52: 38386.534 | K52: 22680.768 | L52: 19552.139 | M52: 15309.171 | N52: 25694.21 | O52: 17536 | P52: 22919 | Q52: 37045 | R52: 26057 | S52: 34949 | T52: 31706 | U52: 57951 | V52: 48557 | W52: 26273 | X52: 19181 | Y52: 16085 | Z52: 18581 | AA52: 12697 | AB52: 16352 | AC52: 39237 | AD52: 36025 | AE52: 31842 | AF52: 39889 | AG52: 59648 | AH52: 61491 | AI52: 17713 | AJ52: 33991 | AK52: 22016 | AL52: 25574 | AM52: 23706 | AN52: 17290 | AO52: 24349 | AP52: 46455 | AQ52: 32116 | AR52: 20734 | AS52: 55995 | AT52: 57105 | AU52: 22914 | AV52: 12762 | AW52: 24732 | AX52: 20549 | AY52: 11740 | AZ52: 14778 | BA52: 23015 | BB52: 32147 | BC52: 36251 | BD52: 38838 | BE52: 47304 | BF52: 42622 | BG52: 35769 | BH52: 14015 | BI52: 17956 | BJ52: 16928 | BK52: 11345 | BL52: 24277 | BM52: 22847 | BN52: 23944 | BO52: 19554 | BP52: 37648 | BQ52: 55422 | BR52: 51939 | BS52: 31495 | BT52: 25599 | BU52: 15790 | BV52: 34295 | BW52: 18964 | BX52: 33726 | BY52: 33682 | BZ52: 30021 | CA52: 26775 | CB52: 44057 | CC52: 57535 | CD52: 54601 | CE52: 12827 | CF52: 17107 | CG52: 16923 | CH52: 15540 | CI52: 24542 | CJ52: 28387 | CK52: 13294 | CL52: 27648 | CM52: 38088 | CN52: 48326 | CO52: 41483 | CP52: 42318 | CQ52: 24610 | CR52: 24183 | CS52: 27764 | CT52: 23073 | CU52: 30987 | CV52: 34303 | CW52: 45473 | CX52: - | CY52: - | CZ52: - | DA52: - | DB52: - | DC52: - | DD52: - | DE52: - | DF52: -
B53: Solar fotovoltaica | C53: 36.402 | D53: 46.196 | E53: 66.179 | F53: 67.328 | G53: 76.62 | H53: 77.053 | I53: 98.995 | J53: 430.708 | K53: 484.04 | L53: 533.362 | M53: 462.502 | N53: 536.165 | O53: 610 | P53: 833 | Q53: 1268 | R53: 1459 | S53: 1737 | T53: 1692 | U53: 2046 | V53: 2433 | W53: 2017 | X53: 2022 | Y53: 1635 | Z53: 1621 | AA53: 2022 | AB53: 2658 | AC53: 3713 | AD53: 4145 | AE53: 4312 | AF53: 4894 | AG53: 5548 | AH53: 5693 | AI53: 6152 | AJ53: 9825 | AK53: 7689 | AL53: 6849 | AM53: 8709 | AN53: 10847 | AO53: 12492 | AP53: 16156 | AQ53: 16219 | AR53: 16256 | AS53: 17530 | AT53: 17568 | AU53: 12555 | AV53: 13377 | AW53: 11497 | AX53: 9124 | AY53: 10698 | AZ53: 10306 | BA53: 16328 | BB53: 16499 | BC53: 19138 | BD53: 19607 | BE53: 22480 | BF53: 21526 | BG53: 17621 | BH53: 15830 | BI53: 12519 | BJ53: 12614 | BK53: 15178 | BL53: 16843 | BM53: 19656 | BN53: 19729 | BO53: 20773 | BP53: 23349 | BQ53: 23817 | BR53: 24739 | BS53: 20929 | BT53: 17684 | BU53: 14494 | BV53: 14948 | BW53: 15775 | BX53: 17812 | BY53: 22971 | BZ53: 20588 | CA53: 24922 | CB53: 24995 | CC53: 26401 | CD53: 26274 | CE53: 22978 | CF53: 19036 | CG53: 15836 | CH53: 17793 | CI53: 20253 | CJ53: 19458 | CK53: 23739 | CL53: 27142 | CM53: 27705 | CN53: 30692 | CO53: 30982 | CP53: 27021 | CQ53: 24092 | CR53: 22163 | CS53: 17678 | CT53: 15206 | CU53: 18547 | CV53: 19879 | CW53: 26997.775 | CX53: - | CY53: - | CZ53: - | DA53: - | DB53: - | DC53: - | DD53: - | DE53: - | DF53: -
B54: Térmica renovable | C54: 8687.566 | D54: 11201.252 | E54: 21105.336 | F54: 20726.094 | G54: 19570.88 | H54: 20816.694 | I54: 21169.461 | J54: 19156.758 | K54: 13239.192 | L54: 22026.499 | M54: 17532.327 | N54: 22967.625 | O54: 21162 | P54: 19576 | Q54: 5693 | R54: 17196 | S54: 15807 | T54: 15288 | U54: 19273 | V54: 20695 | W54: 19120 | X54: 18295 | Y54: 18031 | Z54: 23147 | AA54: 22239 | AB54: 19665 | AC54: 20200 | AD54: 19685 | AE54: 21462 | AF54: 14780 | AG54: 144 | AH54: 21585 | AI54: 13957 | AJ54: 17447 | AK54: 22889 | AL54: 23166 | AM54: 23472 | AN54: 22220 | AO54: 12230 | AP54: 24755 | AQ54: 22920 | AR54: 23920 | AS54: 24575 | AT54: 24604 | AU54: 23900 | AV54: 22497 | AW54: 23578 | AX54: 24384 | AY54: 23902 | AZ54: 18935 | BA54: 16313 | BB54: 24282 | BC54: 25112 | BD54: 19550 | BE54: 10072 | BF54: 5987 | BG54: 5025 | BH54: 5016 | BI54: 3979 | BJ54: 2388 | BK54: 3274 | BL54: 5746 | BM54: 5969 | BN54: 5585 | BO54: 6959 | BP54: 1329 | BQ54: 735 | BR54: 722 | BS54: 702 | BT54: 703 | BU54: 749 | BV54: 675 | BW54: 612 | BX54: 490 | BY54: 585 | BZ54: 683 | CA54: 648 | CB54: 646 | CC54: 717 | CD54: 724 | CE54: 743 | CF54: 760 | CG54: 586 | CH54: 461 | CI54: 629 | CJ54: 698 | CK54: 800 | CL54: 748 | CM54: 799 | CN54: 698 | CO54: 799 | CP54: 712 | CQ54: 629 | CR54: 722 | CS54: 511 | CT54: 644 | CU54: 787 | CV54: 707 | CW54: 695 | CX54: - | CY54: - | CZ54: - | DA54: - | DB54: - | DC54: - | DD54: - | DE54: - | DF54: -
B55: Cogeneración y resto | C55: 2832.187 | D55: 0 | E55: 0 | F55: 0 | G55: 0 | H55: 0 | I55: 0 | J55: 0 | K55: 0 | L55: 0 | M55: 0 | N55: 0 | O55: 0 | P55: 0 | Q55: 0 | R55: 0 | S55: 0 | T55: 0 | U55: 0 | V55: 0 | W55: 0 | X55: 0 | Y55: 0 | Z55: 0 | AA55: 0 | AB55: 0 | AC55: 0 | AD55: 0 | AE55: 0 | AF55: 0 | AG55: 0 | AH55: 0 | AI55: 0 | AJ55: 0 | AK55: 0 | AL55: 0 | AM55: 0 | AN55: 0 | AO55: 0 | AP55: 0 | AQ55: 10 | AR55: 10 | AS55: 0 | AT55: 0 | AU55: 0 | AV55: 0 | AW55: 0 | AX55: 0 | AY55: 0 | AZ55: 0 | BA55: 0 | BB55: 0 | BC55: 0 | BD55: 0 | BE55: 0 | BF55: 0 | BG55: 0 | BH55: 0 | BI55: 0 | BJ55: 0 | BK55: 0 | BL55: 0 | BM55: 0 | BN55: 0 | BO55: 0 | BP55: 0 | BQ55: 0 | BR55: 0 | BS55: 0 | BT55: 0 | BU55: 0 | BV55: 0 | BW55: 0 | BX55: 0 | BY55: 0 | BZ55: 0 | CA55: 0 | CB55: 0 | CC55: 0 | CD55: 0 | CE55: 0 | CF55: 0 | CG55: 0 | CH55: 0 | CI55: 0 | CJ55: 0 | CK55: 0 | CL55: 0 | CM55: 0 | CN55: 0 | CO55: 0 | CP55: 0 | CQ55: 0 | CR55: 0 | CS55: 0 | CT55: 0 | CU55: 0 | CV55: 0 | CW55: 0 | CX55: - | CY55: - | CZ55: - | DA55: - | DB55: - | DC55: - | DD55: - | DE55: - | DF55: -
B56: Régimen especial | C56: =SUM(C51:C55) -> 28988 | D56: =SUM(D51:D55) -> 30154 | E56: 43605 | F56: 49407 | G56: 54881 | H56: 46484 | I56: 77500 | J56: 57974 | K56: 36404 | L56: 42112 | M56: 33304 | N56: 49198 | O56: 39308 | P56: 43328 | Q56: 44006 | R56: 44712 | S56: 52493 | T56: 48686 | U56: 79352 | V56: 71875 | W56: 47657 | X56: 39590 | Y56: 36029 | Z56: 43636 | AA56: 37245 | AB56: 38919 | AC56: 63390 | AD56: 59855 | AE56: 57801 | AF56: 59878 | AG56: 65645 | AH56: 88866 | AI56: 37822 | AJ56: 61263 | AK56: 52594 | AL56: 55589 | AM56: 55896 | AN56: 50521 | AO56: 49246 | AP56: 87416 | AQ56: 71265 | AR56: 60920 | AS56: 98100 | AT56: 99277 | AU56: 59369 | AV56: 48636 | AW56: 59807 | AX56: 54057 | AY56: 46340 | AZ56: 44019 | BA56: 55656 | BB56: 72928 | BC56: 80501 | BD56: 77995 | BE56: 79856 | BF56: 70135 | BG56: 58415 | BH56: 34861 | BI56: 34454 | BJ56: 31930 | BK56: 29797 | BL56: 46866 | BM56: 48474 | BN56: 49497 | BO56: 47451 | BP56: =SUM(BP51:BP55) -> 62457 | BQ56: 80219 | BR56: 77579 | BS56: 53327 | BT56: 44224 | BU56: 31197 | BV56: 50029 | BW56: 35467 | BX56: 52028 | BY56: 57401 | BZ56: 51539 | CA56: 52564 | CB56: 69905 | CC56: 84716 | CD56: 81830 | CE56: 36770 | CF56: 37109 | CG56: 33385 | CH56: 33871 | CI56: 45649 | CJ56: 48748 | CK56: 37970 | CL56: 55675 | CM56: 66884 | CN56: 80002 | CO56: 73550 | CP56: 70337 | CQ56: 49623 | CR56: 47372 | CS56: 46246 | CT56: 39229
B57: Generación neta | C57: =SUM(C49:C50,C56) -> 721656 | D57: =SUM(D49:D50,D56) -> 650635 | E57: 721949 | F57: 691546 | G57: 712537 | H57: 717191 | I57: 763237 | J57: 777997 | K57: 780276.12 | L57: 782325 | M57: 740570 | N57: 759575 | O57: 774529 | P57: 686709 | Q57: 765112 | R57: 726315 | S57: 753142 | T57: 741534 | U57: 804357 | V57: 808193 | W57: 776993 | X57: 809223 | Y57: 778825 | Z57: 790132 | AA57: 791816 | AB57: 736142 | AC57: 776191 | AD57: 760328 | AE57: 769863 | AF57: 752650 | AG57: 792961 | AH57: 814722 | AI57: 792310 | AJ57: 796936 | AK57: 759405 | AL57: 790140 | AM57: 772574 | AN57: 689141 | AO57: 751990 | AP57: 711598 | AQ57: 725737 | AR57: 735727 | AS57: 812222 | AT57: 809817 | AU57: 768926.542 | AV57: 803609 | AW57: 760013.512 | AX57: 765770 | AY57: 753025 | AZ57: 671841 | BA57: 750192.484 | BB57: 710654 | BC57: 721405 | BD57: 720684 | BE57: 756089 | BF57: 782540 | BG57: 767688 | BH57: 767830 | BI57: 739657 | BJ57: 753129 | BK57: 744879 | BL57: 669319 | BM57: 737070 | BN57: 697547 | BO57: 717490 | BP57: =SUM(BP49:BP50,BP56) -> 726661 | BQ57: 763439 | BR57: 776571 | BS57: 762051 | BT57: 780707 | BU57: 737023 | BV57: 757383 | BW57: 758245 | BX57: 709232 | BY57: 743199 | BZ57: 690341 | CA57: 722831 | CB57: 726462 | CC57: 769354 | CD57: 796356 | CE57: 762646 | CF57: 764610 | CG57: 719942 | CH57: 727785 | CI57: 731545 | CJ57: 661193 | CK57: 713336 | CL57: 697665 | CM57: 705567 | CN57: 685407 | CO57: 749986 | CP57: 770639 | CQ57: 723462 | CR57: 749193 | CS57: 711887 | CT57: 724215 | CU57: 724625 | CV57: 659968 | CW57: 715268 | CX57: - | CY57: - | CZ57: - | DA57: - | DB57: - | DC57: - | DD57: - | DE57: - | DF57: -
B58: Demanda transporte (b.c.) | C58: =C57 -> 721656 | D58: =D57 -> 650635 | E58: 721949 | F58: 691546 | G58: 712537 | H58: 717191 | I58: 763237 | J58: 777997 | K58: 780276.12 | L58: 782325 | M58: 740570 | N58: 759575 | O58: 774529 | P58: 686709 | Q58: 765112 | R58: 726315 | S58: 753142 | T58: 741534 | U58: 804357 | V58: 808193 | W58: 776993 | X58: 809223 | Y58: 778825 | Z58: 790132 | AA58: 791816 | AB58: 736142 | AC58: 776191 | AD58: 760328 | AE58: 769863 | AF58: 752650 | AG58: 792961 | AH58: 814722 | AI58: 792310 | AJ58: 796936 | AK58: 759405 | AL58: 790140 | AM58: 772574 | AN58: 689141 | AO58: 751990 | AP58: 711598 | AQ58: 725737 | AR58: 735727 | AS58: 812222 | AT58: 809817 | AU58: 768926.542 | AV58: 803609 | AW58: 760013.512 | AX58: 765770 | AY58: 753025 | AZ58: 671841 | BA58: 750192.484 | BB58: 710654 | BC58: 721405 | BD58: 720684 | BE58: 756089 | BF58: 782540 | BG58: 767688 | BH58: 767830 | BI58: 739657 | BJ58: 753129 | BK58: 744879 | BL58: 669319 | BM58: 737070 | BN58: 697547 | BO58: 717490 | BP58: =BP57 -> 726661 | BQ58: 763439 | BR58: 776571 | BS58: 762051 | BT58: 780707 | BU58: 737023 | BV58: 757383 | BW58: 758245 | BX58: 709232 | BY58: 743199 | BZ58: 690341 | CA58: 722831 | CB58: 726462 | CC58: 769354 | CD58: 796356 | CE58: 762646 | CF58: 764610 | CG58: 719942 | CH58: 727785 | CI58: 731545 | CJ58: 661193 | CK58: 713336 | CL58: 697665 | CM58: 705567 | CN58: 685407 | CO58: 749986 | CP58: 770639 | CQ58: 723462 | CR58: 749193 | CS58: 711887 | CT58: 724215 | CU58: 724625 | CV58: 659968 | CW58: 715268 | CX58: - | CY58: - | CZ58: - | DA58: - | DB58: - | DC58: - | DD58: - | DE58: - | DF58: -
B60: Balance eléctrico Ceuta (MWh) | C60: 2007-01-01 | D60: 2007-02-01 | E60: 2007-03-01 | F60: 2007-04-01 | G60: 2007-05-01 | H60: 2007-06-01 | I60: 2007-07-01 | J60: 2007-08-01 | K60: 2007-09-01 | L60: 2007-10-01 | M60: 2007-11-01 | N60: 2007-12-01 | O60: 2008-01-01 | P60: 2008-02-01 | Q60: 2008-03-01 | R60: 2008-04-01 | S60: 2008-05-01 | T60: 2008-06-01 | U60: 2008-07-01 | V60: 2008-08-01 | W60: 2008-09-01 | X60: 2008-10-01 | Y60: 2008-11-01 | Z60: 2008-12-01 | AA60: 2009-01-01 | AB60: 2009-02-01 | AC60: 2009-03-01 | AD60: 2009-04-01 | AE60: 2009-05-01 | AF60: 2009-06-01 | AG60: 2009-07-01 | AH60: 2009-08-01 | AI60: 2009-09-01 | AJ60: 2009-10-01 | AK60: 2009-11-01 | AL60: 2009-12-01 | AM60: 2010-01-01 | AN60: 2010-02-01 | AO60: 2010-03-01 | AP60: 2010-04-01 | AQ60: 2010-05-01 | AR60: 2010-06-01 | AS60: 2010-07-01 | AT60: 2010-08-01 | AU60: 2010-09-01 | AV60: 2010-10-01 | AW60: 2010-11-01 | AX60: 2010-12-01 | AY60: 2011-01-01 | AZ60: 2011-02-01 | BA60: 2011-03-01 | BB60: 2011-04-01 | BC60: 2011-05-01 | BD60: 2011-06-01 | BE60: 2011-07-01 | BF60: 2011-08-01 | BG60: 2011-09-01 | BH60: 2011-10-01 | BI60: 2011-11-01 | BJ60: 2011-12-01 | BK60: 2012-01-01 | BL60: 2012-02-01 | BM60: 2012-03-01 | BN60: 2012-04-01 | BO60: 2012-05-01 | BP60: 2012-06-01 | BQ60: 2012-07-01 | BR60: 2012-08-01 | BS60: 2012-09-01 | BT60: 2012-10-01 | BU60: 2012-11-01 | BV60: 2012-12-01 | BW60: 2013-01-01 | BX60: 2013-02-01 | BY60: 2013-03-01 | BZ60: 2013-04-01 | CA60: 2013-05-01 | CB60: 2013-06-01 | CC60: 2013-07-01 | CD60: 2013-08-01 | CE60: 2013-09-01 | CF60: 2013-10-01 | CG60: 2013-11-01 | CH60: 2013-12-01 | CI60: 2014-01-01 | CJ60: 2014-02-01 | CK60: 2014-03-01 | CL60: 2014-04-01 | CM60: 2014-05-01 | CN60: 2014-06-01 | CO60: 2014-07-01 | CP60: 2014-08-01 | CQ60: 2014-09-01 | CR60: 2014-10-01 | CS60: 2014-11-01 | CT60: 2014-12-01
B61: Motores diesel | C61: 18527 | D61: 16552 | E61: 17212 | F61: 16873 | G61: 17616 | H61: 17504 | I61: 18778 | J61: 18803 | K61: 18157 | L61: 18723 | M61: 18225 | N61: 19269 | O61: 19875 | P61: 18586 | Q61: 18099 | R61: 17661 | S61: 18102 | T61: 18057 | U61: 19554 | V61: 19606 | W61: 18886 | X61: 18628 | Y61: 18978 | Z61: 21129 | AA61: 21127 | AB61: 18292 | AC61: 18762 | AD61: 16869 | AE61: 17770 | AF61: 18966 | AG61: 20534 | AH61: 18417 | AI61: 19653 | AJ61: 19878 | AK61: 17660 | AL61: 19824 | AM61: 18451 | AN61: 18508 | AO61: 19175 | AP61: 17772 | AQ61: 18981 | AR61: 19504 | AS61: 21261 | AT61: 22195 | AU61: 20726 | AV61: 20212 | AW61: 19535 | AX61: 19007 | AY61: 18309 | AZ61: 16676 | BA61: 18014 | BB61: 16456 | BC61: 17572 | BD61: 19042 | BE61: 20412 | BF61: 20182 | BG61: 18275 | BH61: 19428 | BI61: 18353 | BJ61: 19467 | BK61: 20238 | BL61: 19530 | BM61: 19216 | BN61: 18331 | BO61: 19077 | BP61: 19153 | BQ61: 19484 | BR61: 20318 | BS61: 18798 | BT61: 19379 | BU61: 18974 | BV61: 19394 | BW61: 19479 | BX61: 16982 | BY61: 16964 | BZ61: 16005 | CA61: 17143 | CB61: 17269 | CC61: 19498 | CD61: 20633 | CE61: 18883 | CF61: 18493 | CG61: 19000 | CH61: 20031 | CI61: 20378 | CJ61: 18663 | CK61: 19729 | CL61: - | CM61: - | CN61: - | CO61: - | CP61: - | CQ61: - | CR61: - | CS61: - | CT61: -
B62: Turbina de gas | C62: 0 | D62: 0 | E62: 0 | F62: 0 | G62: 0 | H62: 0 | I62: 0 | J62: 0 | K62: 0 | L62: 0 | M62: 0 | N62: 0 | O62: 0 | P62: 0 | Q62: 0 | R62: 0 | S62: 0 | T62: 0 | U62: 0 | V62: 0 | W62: 0 | X62: 0 | Y62: 0 | Z62: 0 | AA62: 0 | AB62: 0 | AC62: 0 | AD62: 0 | AE62: 0 | AF62: 0 | AG62: 160 | AH62: 1866 | AI62: 0 | AJ62: 0 | AK62: 1030 | AL62: 210 | AM62: 2052 | AN62: 556 | AO62: 0 | AP62: 148 | AQ62: 122 | AR62: 0 | AS62: 0 | AT62: 0 | AU62: 0 | AV62: 0 | AW62: 0 | AX62: 3 | AY62: 27 | AZ62: 32 | BA62: 0 | BB62: 0 | BC62: 175 | BD62: 32 | BE62: 21 | BF62: 1 | BG62: 0 | BH62: 4 | BI62: 7 | BJ62: 8 | BK62: 0 | BL62: 144 | BM62: 110 | BN62: 10 | BO62: 136 | BP62: 25 | BQ62: 17 | BR62: 40 | BS62: 2 | BT62: 58 | BU62: 20 | BV62: 0 | BW62: 36 | BX62: 42 | BY62: 0 | BZ62: 33 | CA62: 118 | CB62: 9 | CC62: 0 | CD62: 0 | CE62: 0 | CF62: 0 | CG62: 11 | CH62: 11 | CI62: 3 | CJ62: 0 | CK62: 83 | CL62: - | CM62: - | CN62: - | CO62: - | CP62: - | CQ62: - | CR62: - | CS62: - | CT62: -
B63: Fuel + Gas | C63: =SUM(C61:C62) -> 18527 | D63: =SUM(D61:D62) -> 16552 | E63: 17212 | F63: 16873 | G63: 17616 | H63: 17504 | I63: 18778 | J63: 18803 | K63: 18157 | L63: 18723 | M63: 18225 | N63: 19269 | O63: 19875 | P63: 18586 | Q63: 18099 | R63: 17661 | S63: 18102 | T63: 18057 | U63: 19554 | V63: 19606 | W63: 18886 | X63: 18628 | Y63: 18978 | Z63: 21129 | AA63: 21127 | AB63: 18292 | AC63: 18762 | AD63: 16869 | AE63: 17770 | AF63: 18966 | AG63: 20694 | AH63: 20283 | AI63: 19653 | AJ63: 19878 | AK63: 18690 | AL63: 20034 | AM63: 20503 | AN63: 19064 | AO63: 19175 | AP63: 17920 | AQ63: 19103 | AR63: 19504 | AS63: 21261 | AT63: 22195 | AU63: 20726 | AV63: 20212 | AW63: 19535 | AX63: 19010 | AY63: 18336 | AZ63: 16708 | BA63: 18014 | BB63: 16456 | BC63: 17747 | BD63: 19074 | BE63: 20433 | BF63: 20183 | BG63: 18275 | BH63: 19432 | BI63: 18360 | BJ63: 19475 | BK63: 20238 | BL63: 19674 | BM63: 19326 | BN63: 18341 | BO63: 19213 | BP63: 19178 | BQ63: 19501 | BR63: 20358 | BS63: 18800 | BT63: 19437 | BU63: 18994 | BV63: 19394 | BW63: 19515 | BX63: 17024 | BY63: 16964 | BZ63: 16038 | CA63: 17261 | CB63: 17278 | CC63: 19498 | CD63: 20633 | CE63: 18883 | CF63: 18493 | CG63: 19011 | CH63: 20042 | CI63: 20381 | CJ63: 18663 | CK63: 19812 | CL63: - | CM63: - | CN63: - | CO63: - | CP63: - | CQ63: - | CR63: - | CS63: - | CT63: -
B64: Régimen ordinario | C64: =C63 -> 18527 | D64: =D63 -> 16552 | E64: 17212 | F64: 16873 | G64: 17616 | H64: 17504 | I64: 18778 | J64: 18803 | K64: 18157 | L64: 18723 | M64: 18225 | N64: 19269 | O64: 19875 | P64: 18586 | Q64: 18099 | R64: 17661 | S64: 18102 | T64: 18057 | U64: 19554 | V64: 19606 | W64: 18886 | X64: 18628 | Y64: 18978 | Z64: 21129 | AA64: 21127 | AB64: 18292 | AC64: 18762 | AD64: 16869 | AE64: 17770 | AF64: 18966 | AG64: 20694 | AH64: 20283 | AI64: 19653 | AJ64: 19878 | AK64: 18690 | AL64: 20034 | AM64: 20503 | AN64: 19064 | AO64: 19175 | AP64: 17920 | AQ64: 19103 | AR64: 19504 | AS64: 21261 | AT64: 22195 | AU64: 20726 | AV64: 20212 | AW64: 19535 | AX64: 19010 | AY64: 18336 | AZ64: 16708 | BA64: 18014 | BB64: 16456 | BC64: 17747 | BD64: 19074 | BE64: 20433 | BF64: 20183 | BG64: 18275 | BH64: 19432 | BI64: 18360 | BJ64: 19475 | BK64: 20238 | BL64: 19674 | BM64: 19326 | BN64: 18341 | BO64: 19213 | BP64: 19178 | BQ64: 19501 | BR64: 20358 | BS64: 18800 | BT64: 19437 | BU64: 18994 | BV64: 19394 | BW64: 19515 | BX64: 17024 | BY64: 16964 | BZ64: 16038 | CA64: 17261 | CB64: 17278 | CC64: 19498 | CD64: 20633 | CE64: 18883 | CF64: 18493 | CG64: 19011 | CH64: 20042
B65: Consumos generación | C65: -540 | D65: -483 | E65: -502 | F65: -1195 | G65: -1250 | H65: -1279 | I65: -1357 | J65: -1392 | K65: -1345 | L65: -1444 | M65: -1378 | N65: -1430 | O65: -1524 | P65: -1405 | Q65: -1362 | R65: -1348 | S65: -1389 | T65: -1395 | U65: -1478 | V65: -1484 | W65: -1480 | X65: -1460 | Y65: -1507 | Z65: -1658 | AA65: -1650 | AB65: -1473 | AC65: -1549 | AD65: -1433 | AE65: -1524 | AF65: -1655 | AG65: -1819 | AH65: -1709 | AI65: -1705 | AJ65: -1694 | AK65: -1569 | AL65: -1669 | AM65: -1625 | AN65: -1582 | AO65: -1731 | AP65: -1539 | AQ65: -1663 | AR65: -1740 | AS65: -1867 | AT65: -1974 | AU65: -1815 | AV65: -1777 | AW65: -1696 | AX65: -1666 | AY65: -1582 | AZ65: -1461 | BA65: -1584 | BB65: -1482 | BC65: -1620 | BD65: -1717 | BE65: -1785 | BF65: -1727 | BG65: -1587 | BH65: -1707 | BI65: -1602 | BJ65: -1662 | BK65: -1718 | BL65: -1637 | BM65: -1697 | BN65: -1667 | BO65: -1713 | BP65: -1689 | BQ65: -1745 | BR65: -1801 | BS65: -1676 | BT65: -1748 | BU65: -1636 | BV65: -1652 | BW65: -1610 | BX65: -1468 | BY65: -1551 | BZ65: -1466 | CA65: -1559 | CB65: -1514 | CC65: -1632 | CD65: -1680 | CE65: -1558 | CF65: -1549 | CG65: -1525 | CH65: -1569 | CI65: -1575 | CJ65: -1447 | CK65: -1171 | CL65: - | CM65: - | CN65: - | CO65: - | CP65: - | CQ65: - | CR65: - | CS65: - | CT65: -
B66: Generación neta | C66: =SUM(C64:C65) -> 17987 | D66: =SUM(D64:D65) -> 16069 | E66: 16710 | F66: 15678 | G66: 16366 | H66: 16225 | I66: 17421 | J66: 17411 | K66: 16812 | L66: 17279 | M66: 16847 | N66: 17839 | O66: 18351 | P66: 17181 | Q66: 16737 | R66: 16313 | S66: 16713 | T66: 16662 | U66: 18076 | V66: 18122 | W66: 17406 | X66: 17168 | Y66: 17471 | Z66: 19471 | AA66: 19477 | AB66: 16819 | AC66: 17213 | AD66: 15436 | AE66: 16246 | AF66: 17311 | AG66: 18875 | AH66: 18574 | AI66: 17948 | AJ66: 18184 | AK66: 17121 | AL66: 18365 | AM66: 18878 | AN66: 17482 | AO66: 17444 | AP66: 16381 | AQ66: 17440 | AR66: 17764 | AS66: 19394 | AT66: 20221 | AU66: 18911 | AV66: 18435 | AW66: 17839 | AX66: 17344 | AY66: 16754 | AZ66: 15247 | BA66: 16430 | BB66: 14974 | BC66: 16127 | BD66: 17357 | BE66: 18648 | BF66: 18456 | BG66: 16688 | BH66: 17725 | BI66: 16758 | BJ66: 17813 | BK66: 18520 | BL66: 18037 | BM66: 17629 | BN66: 16674 | BO66: 17500 | BP66: 17489 | BQ66: 17756 | BR66: 18557 | BS66: 17124 | BT66: 17689 | BU66: 17358 | BV66: 17742 | BW66: 17905 | BX66: 15556 | BY66: 15413 | BZ66: 14572 | CA66: 15702 | CB66: 15764 | CC66: 17866 | CD66: 18953 | CE66: 17325 | CF66: 16944 | CG66: 17486 | CH66: 18473 | CI66: 18806 | CJ66: 17216 | CK66: 18641 | CL66: - | CM66: - | CN66: - | CO66: - | CP66: - | CQ66: - | CR66: - | CS66: - | CT66: -
B67: Demanda transporte (b.c.) | C67: =C66 -> 17987 | D67: =D66 -> 16069 | E67: 16710 | F67: 15678 | G67: 16366 | H67: 16225 | I67: 17421 | J67: 17411 | K67: 16812 | L67: 17279 | M67: 16847 | N67: 17839 | O67: 18351 | P67: 17181 | Q67: 16737 | R67: 16313 | S67: 16713 | T67: 16662 | U67: 18076 | V67: 18122 | W67: 17406 | X67: 17168 | Y67: 17471 | Z67: 19471 | AA67: 19477 | AB67: 16819 | AC67: 17213 | AD67: 15436 | AE67: 16246 | AF67: 17311 | AG67: 18875 | AH67: 18574 | AI67: 17948 | AJ67: 18184 | AK67: 17121 | AL67: 18365 | AM67: 18878 | AN67: 17482 | AO67: 17444 | AP67: 16381 | AQ67: 17440 | AR67: 17764 | AS67: 19394 | AT67: 20221 | AU67: 18911 | AV67: 18435 | AW67: 17839 | AX67: 17344 | AY67: 16754 | AZ67: 15247 | BA67: 16430 | BB67: 14974 | BC67: 16127 | BD67: 17357 | BE67: 18648 | BF67: 18456 | BG67: 16688 | BH67: 17725 | BI67: 16758 | BJ67: 17813 | BK67: 18520 | BL67: 18037 | BM67: 17629 | BN67: 16674 | BO67: 17500 | BP67: 17489 | BQ67: 17756 | BR67: 18557 | BS67: 17124 | BT67: 17689 | BU67: 17358 | BV67: 17742 | BW67: 17905 | BX67: 15556 | BY67: 15413 | BZ67: 14572 | CA67: 15702 | CB67: 15764 | CC67: 17866 | CD67: 18953 | CE67: 17325 | CF67: 16944 | CG67: 17486 | CH67: 18473 | CI67: 18806 | CJ67: 17216 | CK67: 18641 | CL67: - | CM67: - | CN67: - | CO67: - | CP67: - | CQ67: - | CR67: - | CS67: - | CT67: -
B69: Balance eléctrico Melilla (MWh) | C69: 2007-01-01 | D69: 2007-02-01 | E69: 2007-03-01 | F69: 2007-04-01 | G69: 2007-05-01 | H69: 2007-06-01 | I69: 2007-07-01 | J69: 2007-08-01 | K69: 2007-09-01 | L69: 2007-10-01 | M69: 2007-11-01 | N69: 2007-12-01 | O69: 2008-01-01 | P69: 2008-02-01 | Q69: 2008-03-01 | R69: 2008-04-01 | S69: 2008-05-01 | T69: 2008-06-01 | U69: 2008-07-01 | V69: 2008-08-01 | W69: 2008-09-01 | X69: 2008-10-01 | Y69: 2008-11-01 | Z69: 2008-12-01 | AA69: 2009-01-01 | AB69: 2009-02-01 | AC69: 2009-03-01 | AD69: 2009-04-01 | AE69: 2009-05-01 | AF69: 2009-06-01 | AG69: 2009-07-01 | AH69: 2009-08-01 | AI69: 2009-09-01 | AJ69: 2009-10-01 | AK69: 2009-11-01 | AL69: 2009-12-01 | AM69: 2010-01-01 | AN69: 2010-02-01 | AO69: 2010-03-01 | AP69: 2010-04-01 | AQ69: 2010-05-01 | AR69: 2010-06-01 | AS69: 2010-07-01 | AT69: 2010-08-01 | AU69: 2010-09-01 | AV69: 2010-10-01 | AW69: 2010-11-01 | AX69: 2010-12-01 | AY69: 2011-01-01 | AZ69: 2011-02-01 | BA69: 2011-03-01 | BB69: 2011-04-01 | BC69: 2011-05-01 | BD69: 2011-06-01 | BE69: 2011-07-01 | BF69: 2011-08-01 | BG69: 2011-09-01 | BH69: 2011-10-01 | BI69: 2011-11-01 | BJ69: 2011-12-01 | BK69: 2012-01-01 | BL69: 2012-02-01 | BM69: 2012-03-01 | BN69: 2012-04-01 | BO69: 2012-05-01 | BP69: 2012-06-01 | BQ69: 2012-07-01 | BR69: 2012-08-01 | BS69: 2012-09-01 | BT69: 2012-10-01 | BU69: 2012-11-01 | BV69: 2012-12-01 | BW69: 2013-01-01 | BX69: 2013-02-01 | BY69: 2013-03-01 | BZ69: 2013-04-01 | CA69: 2013-05-01 | CB69: 2013-06-01 | CC69: 2013-07-01 | CD69: 2013-08-01 | CE69: 2013-09-01 | CF69: 2013-10-01 | CG69: 2013-11-01 | CH69: 2013-12-01 | CI69: 2014-01-01 | CJ69: 2014-02-01 | CK69: 2014-03-01 | CL69: 2014-04-01 | CM69: 2014-05-01 | CN69: 2014-06-01 | CO69: 2014-07-01 | CP69: 2014-08-01 | CQ69: 2014-09-01 | CR69: 2014-10-01 | CS69: 2014-11-01 | CT69: 2014-12-01
B70: Motores diesel | C70: 14694 | D70: 13024 | E70: 13918 | F70: 14325 | G70: 15554 | H70: 16248 | I70: 18463 | J70: 17772 | K70: 16723 | L70: 16935 | M70: 14995 | N70: 16556 | O70: 16498 | P70: 15461 | Q70: 15261 | R70: 15415 | S70: 15973 | T70: 17041 | U70: 19212 | V70: 20395 | W70: 17939 | X70: 16737 | Y70: 16380 | Z70: 18762 | AA70: 18828 | AB70: 16142 | AC70: 16501 | AD70: 15152 | AE70: 16289 | AF70: 17247 | AG70: 19978 | AH70: 20566 | AI70: 17505 | AJ70: 18417 | AK70: 16429 | AL70: 17192 | AM70: 18036 | AN70: 16219 | AO70: 17497 | AP70: 16096 | AQ70: 16783 | AR70: 17877 | AS70: 20156 | AT70: 21875 | AU70: 19003 | AV70: 17949 | AW70: 17924 | AX70: 18781 | AY70: 18314 | AZ70: 16710 | BA70: 17498 | BB70: 16000 | BC70: 17394 | BD70: 18556 | BE70: 19991 | BF70: 21461 | BG70: 19210 | BH70: 18691 | BI70: 18039 | BJ70: 19586 | BK70: 20201 | BL70: 19637 | BM70: 18799 | BN70: 17123 | BO70: 18315 | BP70: 19556 | BQ70: 21399 | BR70: 22303 | BS70: 18906 | BT70: 18683 | BU70: 16741 | BV70: 17824 | BW70: 18335 | BX70: 16623 | BY70: 17002 | BZ70: 16231 | CA70: 17180 | CB70: 16896 | CC70: 19401 | CD70: 21004 | CE70: 18900 | CF70: 18002 | CG70: 17795 | CH70: 18195 | CI70: 18284 | CJ70: 16212 | CK70: 17756 | CL70: - | CM70: - | CN70: - | CO70: - | CP70: - | CQ70: - | CR70: - | CS70: - | CT70: -
B71: Turbina de gas | C71: 541 | D71: 350 | E71: 416 | F71: 111 | G71: 69 | H71: 1 | I71: 131 | J71: 246 | K71: 40 | L71: 52 | M71: 516 | N71: 494 | O71: 891 | P71: 465 | Q71: 520 | R71: 182 | S71: 48 | T71: 145 | U71: 218 | V71: 81 | W71: 227 | X71: 266 | Y71: 249 | Z71: 9 | AA71: 10 | AB71: 11 | AC71: 82 | AD71: 56 | AE71: 2 | AF71: 67 | AG71: 0 | AH71: 64 | AI71: 82 | AJ71: 7 | AK71: 133 | AL71: 61 | AM71: 18 | AN71: 23 | AO71: 3 | AP71: 26 | AQ71: 37 | AR71: 98 | AS71: 113 | AT71: 36 | AU71: 40 | AV71: 36 | AW71: 57 | AX71: 42 | AY71: 34 | AZ71: 2 | BA71: 6 | BB71: 45 | BC71: 25 | BD71: 37 | BE71: 143 | BF71: 37 | BG71: 11 | BH71: 133 | BI71: 49 | BJ71: 11 | BK71: 5 | BL71: 0 | BM71: 0 | BN71: 2 | BO71: 5 | BP71: 9 | BQ71: 23 | BR71: 0 | BS71: 74 | BT71: 4 | BU71: 2 | BV71: 18 | BW71: 4 | BX71: 1 | BY71: 0 | BZ71: 0 | CA71: 2 | CB71: 0 | CC71: 0 | CD71: 0 | CE71: 0 | CF71: 71 | CG71: 0 | CH71: 16 | CI71: 3 | CJ71: 47 | CK71: 5 | CL71: - | CM71: - | CN71: - | CO71: - | CP71: - | CQ71: - | CR71: - | CS71: - | CT71: -
B72: Fuel + gas | C72: =SUM(C70:C71) -> 15235 | D72: =SUM(D70:D71) -> 13374 | E72: 14334 | F72: 14436 | G72: 15623 | H72: 16249 | I72: 18594 | J72: 18018 | K72: 16763 | L72: 16987 | M72: 15511 | N72: 17050 | O72: 17389 | P72: 15926 | Q72: 15781 | R72: 15597 | S72: 16021 | T72: 17186 | U72: 19430 | V72: 20476 | W72: 18166 | X72: 17003 | Y72: 16629 | Z72: 18771 | AA72: 18838 | AB72: 16153 | AC72: 16583 | AD72: 15208 | AE72: 16291 | AF72: 17314 | AG72: 19978 | AH72: 20630 | AI72: 17587 | AJ72: 18424 | AK72: 16562 | AL72: 17253 | AM72: 18054 | AN72: 16242 | AO72: 17500 | AP72: 16122 | AQ72: 16820 | AR72: 17975 | AS72: 20269 | AT72: 21911 | AU72: 19043 | AV72: 17985 | AW72: 17981 | AX72: 18823 | AY72: 18348 | AZ72: 16712 | BA72: 17504 | BB72: 16045 | BC72: 17419 | BD72: 18593 | BE72: 20134 | BF72: 21498 | BG72: 19221 | BH72: 18824 | BI72: 18088 | BJ72: 19597 | BK72: 20206 | BL72: 19637 | BM72: 18799 | BN72: 17125 | BO72: 18320 | BP72: 19565 | BQ72: 21422 | BR72: 22303 | BS72: 18980 | BT72: 18687 | BU72: 16743 | BV72: 17842 | BW72: 18339 | BX72: 16624 | BY72: 17002 | BZ72: 16231 | CA72: 17182 | CB72: 16896 | CC72: 19401 | CD72: 21004 | CE72: 18900 | CF72: 18073 | CG72: 17795 | CH72: 18211 | CI72: 18287 | CJ72: 16259 | CK72: 17761 | CL72: - | CM72: - | CN72: - | CO72: - | CP72: - | CQ72: - | CR72: - | CS72: - | CT72: -
B73: Régimen ordinario | C73: =C72 -> 15235 | D73: =D72 -> 13374 | E73: 14334 | F73: 14436 | G73: 15623 | H73: 16249 | I73: 18594 | J73: 18018 | K73: 16763 | L73: 16987 | M73: 15511 | N73: 17050 | O73: 17389 | P73: 15926 | Q73: 15781 | R73: 15597 | S73: 16021 | T73: 17186 | U73: 19430 | V73: 20476 | W73: 18166 | X73: 17003 | Y73: 16629 | Z73: 18771 | AA73: 18838 | AB73: 16153 | AC73: 16583 | AD73: 15208 | AE73: 16291 | AF73: 17314 | AG73: 19978 | AH73: 20630 | AI73: 17587 | AJ73: 18424 | AK73: 16562 | AL73: 17253 | AM73: 18054 | AN73: 16242 | AO73: 17500 | AP73: 16122 | AQ73: 16820 | AR73: 17975 | AS73: 20269 | AT73: 21911 | AU73: 19043 | AV73: 17985 | AW73: 17981 | AX73: 18823 | AY73: 18348 | AZ73: 16712 | BA73: 17504 | BB73: 16045 | BC73: 17419 | BD73: 18593 | BE73: 20134 | BF73: 21498 | BG73: 19221 | BH73: 18824 | BI73: 18088 | BJ73: 19597 | BK73: 20206 | BL73: 19637 | BM73: 18799 | BN73: 17125 | BO73: 18320 | BP73: 19565 | BQ73: 21422 | BR73: 22303 | BS73: 18980 | BT73: 18687 | BU73: 16743 | BV73: 17842 | BW73: 18339 | BX73: 16624 | BY73: 17002 | BZ73: 16231 | CA73: 17182 | CB73: 16896 | CC73: 19401 | CD73: 21004 | CE73: 18900 | CF73: 18073 | CG73: 17795 | CH73: 18211
B74: Consumos generación | C74: -596 | D74: -580 | E74: -618 | F74: -596 | G74: -524 | H74: -531 | I74: -680 | J74: -751 | K74: -492 | L74: -766 | M74: -828 | N74: -932 | O74: -1015 | P74: -870 | Q74: -938 | R74: -932 | S74: -1004 | T74: -1021 | U74: -1131 | V74: -1174 | W74: -1073 | X74: -996 | Y74: -954 | Z74: -1061 | AA74: -1075 | AB74: -953 | AC74: -1047 | AD74: -979 | AE74: -1067 | AF74: -1068 | AG74: -1171 | AH74: -1190 | AI74: -1067 | AJ74: -1054 | AK74: -1008 | AL74: -1044 | AM74: -1085 | AN74: -963 | AO74: -1109 | AP74: -1089 | AQ74: -1101 | AR74: -1103 | AS74: -1195 | AT74: -1288 | AU74: -1164 | AV74: -1130 | AW74: -1132 | AX74: -1145 | AY74: -1162 | AZ74: -1024 | BA74: -1163 | BB74: -1111 | BC74: -1168 | BD74: -1182 | BE74: -1257 | BF74: -1312 | BG74: -1188 | BH74: -1219 | BI74: -1180 | BJ74: -1227 | BK74: -1219 | BL74: -1198 | BM74: -1200 | BN74: -1115 | BO74: -1244 | BP74: -1277 | BQ74: -1354 | BR74: -1328 | BS74: -1215 | BT74: -1229 | BU74: -1106 | BV74: -1183 | BW74: -1224 | BX74: -1092 | BY74: -1191 | BZ74: -1084 | CA74: -1145 | CB74: -1135 | CC74: -1223 | CD74: -1311 | CE74: -1236 | CF74: -1187 | CG74: -1140 | CH74: -1143 | CI74: -1165 | CJ74: -1014 | CK74: -1049 | CL74: - | CM74: - | CN74: - | CO74: - | CP74: - | CQ74: - | CR74: - | CS74: - | CT74: -
B75: Solar fotovoltaica | C75: 0 | D75: 0 | E75: 0 | F75: 0 | G75: 0 | H75: 0 | I75: 0 | J75: 0 | K75: 0 | L75: 0 | M75: 0 | N75: 0 | O75: 1 | P75: 0 | Q75: 0 | R75: 0 | S75: 0 | T75: 1 | U75: 1 | V75: 1 | W75: 1 | X75: 0 | Y75: 1 | Z75: 0 | AA75: 8 | AB75: 17 | AC75: 22 | AD75: 28 | AE75: 9 | AF75: 8 | AG75: 8 | AH75: 8 | AI75: 7 | AJ75: 6 | AK75: 0 | AL75: 1 | AM75: 1 | AN75: 5 | AO75: 6 | AP75: 7 | AQ75: 9 | AR75: 1 | AS75: 8 | AT75: 9 | AU75: 7 | AV75: 6 | AW75: 5 | AX75: 3 | AY75: 4 | AZ75: 7 | BA75: 7 | BB75: 7 | BC75: 8 | BD75: 8 | BE75: 7 | BF75: 6 | BG75: 5 | BH75: 5 | BI75: 4 | BJ75: 4 | BK75: 5 | BL75: 7 | BM75: 7 | BN75: 9 | BO75: 9 | BP75: 9 | BQ75: 9 | BR75: 8 | BS75: 7 | BT75: 6 | BU75: 4 | BV75: 4 | BW75: 5 | BX75: 5 | BY75: 7 | BZ75: 7 | CA75: 9 | CB75: 9 | CC75: 0 | CD75: 0 | CE75: 0 | CF75: 0 | CG75: 0 | CH75: 0 | CI75: 0 | CJ75: 0 | CK75: 0 | CL75: - | CM75: - | CN75: - | CO75: - | CP75: - | CQ75: - | CR75: - | CS75: - | CT75: -
B76: Térmica no renovable | C76: 747 | D76: 694 | E76: 836 | F76: 656 | G76: 886 | H76: 845 | I76: 733 | J76: 805 | K76: 275 | L76: 611 | M76: 799 | N76: 853 | O76: 937 | P76: 797 | Q76: 849 | R76: 810 | S76: 755 | T76: 694 | U76: 0 | V76: 0 | W76: 0 | X76: 0 | Y76: 0 | Z76: 0 | AA76: 819 | AB76: 726 | AC76: 782 | AD76: 888 | AE76: 819 | AF76: 747 | AG76: 783 | AH76: 727 | AI76: 707 | AJ76: 1 | AK76: 0 | AL76: 736 | AM76: 699 | AN76: 606 | AO76: 781 | AP76: 808 | AQ76: 921 | AR76: 710 | AS76: 772 | AT76: 797 | AU76: 897 | AV76: 486 | AW76: 0 | AX76: 551 | AY76: 929 | AZ76: 796 | BA76: 861 | BB76: 747 | BC76: 674 | BD76: 670 | BE76: 765 | BF76: 676 | BG76: 693 | BH76: 209 | BI76: 16 | BJ76: 0 | BK76: 0 | BL76: 0 | BM76: 0 | BN76: 63 | BO76: 0 | BP76: 0 | BQ76: 0 | BR76: 171 | BS76: 552 | BT76: 47 | BU76: 672 | BV76: 804 | BW76: 781 | BX76: 648 | BY76: 605 | BZ76: 726 | CA76: 627 | CB76: 794 | CC76: 818 | CD76: 818 | CE76: 748 | CF76: 820 | CG76: 136 | CH76: 727 | CI76: 818 | CJ76: 739 | CK76: 816 | CL76: - | CM76: - | CN76: - | CO76: - | CP76: - | CQ76: - | CR76: - | CS76: - | CT76: -
B77: Régimen especial | C77: =SUM(C75:C76) -> 747 | D77: =SUM(D75:D76) -> 694 | E77: 836 | F77: 656 | G77: 886 | H77: 845 | I77: 733 | J77: 805 | K77: 275 | L77: 611 | M77: 799 | N77: 853 | O77: 938 | P77: 797 | Q77: 849 | R77: 810 | S77: 755 | T77: 695 | U77: 1 | V77: 1 | W77: 1 | X77: 0 | Y77: 1 | Z77: 0 | AA77: 827 | AB77: 743 | AC77: 804 | AD77: 916 | AE77: 828 | AF77: 755 | AG77: 791 | AH77: 735 | AI77: 714 | AJ77: 7 | AK77: 0 | AL77: 737 | AM77: 700 | AN77: 611 | AO77: 787 | AP77: 815 | AQ77: 930 | AR77: 711 | AS77: 780 | AT77: 806 | AU77: 904 | AV77: 492 | AW77: 5 | AX77: 554 | AY77: 933 | AZ77: 803 | BA77: 868 | BB77: 754 | BC77: 682 | BD77: 678 | BE77: 772 | BF77: 682 | BG77: 698 | BH77: 214 | BI77: 20 | BJ77: 4 | BK77: 5 | BL77: 7 | BM77: 7 | BN77: 72 | BO77: 9 | BP77: 9 | BQ77: 9 | BR77: 179 | BS77: 559 | BT77: 53 | BU77: 676 | BV77: 808 | BW77: 786 | BX77: 653 | BY77: 612 | BZ77: 733 | CA77: 636 | CB77: 803 | CC77: 818 | CD77: 818 | CE77: 748 | CF77: 820 | CG77: 136 | CH77: 727 | CI77: 818 | CJ77: 739 | CK77: 816
B78: Generación neta | C78: =SUM(C73:C74,C77) -> 15386 | D78: =SUM(D73:D74,D77) -> 13488 | E78: 14552 | F78: 14496 | G78: 15985 | H78: 16563 | I78: 18647 | J78: 18072 | K78: 16546 | L78: 16832 | M78: 15482 | N78: 16971 | O78: 17312 | P78: 15853 | Q78: 15692 | R78: 15475 | S78: 15772 | T78: 16860 | U78: 18300 | V78: 19303 | W78: 17094 | X78: 16007 | Y78: 15676 | Z78: 17710 | AA78: 18590 | AB78: 15943 | AC78: 16340 | AD78: 15145 | AE78: 16052 | AF78: 17001 | AG78: 19598 | AH78: 20175 | AI78: 17234 | AJ78: 17377 | AK78: 15554 | AL78: 16946 | AM78: 17669 | AN78: 15890 | AO78: 17178 | AP78: 15848 | AQ78: 16649 | AR78: 17583 | AS78: 19854 | AT78: 21429 | AU78: 18783 | AV78: 17347 | AW78: 16854 | AX78: 18232 | AY78: 18119 | AZ78: 16491 | BA78: 17209 | BB78: 15688 | BC78: 16933 | BD78: 18089 | BE78: 19649 | BF78: 20868 | BG78: 18731 | BH78: 17819 | BI78: 16928 | BJ78: 18374 | BK78: 18992 | BL78: 18446 | BM78: 17606 | BN78: 16082 | BO78: 17085 | BP78: 18297 | BQ78: 20077 | BR78: 21154 | BS78: 18324 | BT78: 17511 | BU78: 16313 | BV78: 17467 | BW78: 17901 | BX78: 16185 | BY78: 16423 | BZ78: 15880 | CA78: 16673 | CB78: 16564 | CC78: 18996 | CD78: 20511 | CE78: 18412 | CF78: 17706 | CG78: 16791 | CH78: 17795 | CI78: 17940 | CJ78: 15984 | CK78: 17528 | CL78: - | CM78: - | CN78: - | CO78: - | CP78: - | CQ78: - | CR78: - | CS78: - | CT78: -
B79: Demanda transporte (b.c.) | C79: =C78 -> 15386 | D79: =D78 -> 13488 | E79: 14552 | F79: 14496 | G79: 15985 | H79: 16563 | I79: 18647 | J79: 18072 | K79: 16546 | L79: 16832 | M79: 15482 | N79: 16971 | O79: 17312 | P79: 15853 | Q79: 15692 | R79: 15475 | S79: 15772 | T79: 16860 | U79: 18300 | V79: 19303 | W79: 17094 | X79: 16007 | Y79: 15676 | Z79: 17710 | AA79: 18590 | AB79: 15943 | AC79: 16340 | AD79: 15145 | AE79: 16052 | AF79: 17001 | AG79: 19598 | AH79: 20175 | AI79: 17234 | AJ79: 17377 | AK79: 15554 | AL79: 16946 | AM79: 17669 | AN79: 15890 | AO79: 17178 | AP79: 15848 | AQ79: 16649 | AR79: 17583 | AS79: 19854 | AT79: 21429 | AU79: 18783 | AV79: 17347 | AW79: 16854 | AX79: 18232 | AY79: 18119 | AZ79: 16491 | BA79: 17209 | BB79: 15688 | BC79: 16933 | BD79: 18089 | BE79: 19649 | BF79: 20868 | BG79: 18731 | BH79: 17819 | BI79: 16928 | BJ79: 18374 | BK79: 18992 | BL79: 18446 | BM79: 17606 | BN79: 16082 | BO79: 17085 | BP79: 18297 | BQ79: 20077 | BR79: 21154 | BS79: 18324 | BT79: 17511 | BU79: 16313 | BV79: 17467 | BW79: 17901 | BX79: 16185 | BY79: 16423 | BZ79: 15880 | CA79: 16673 | CB79: 16564 | CC79: 18996 | CD79: 20511 | CE79: 18412 | CF79: 17706 | CG79: 16791 | CH79: 17795 | CI79: 17940 | CJ79: 15984 | CK79: 17528 | CL79: - | CM79: - | CN79: - | CO79: - | CP79: - | CQ79: - | CR79: - | CS79: - | CT79: -

Sheet Año (hidden)
B2: 1990
B3: 1991
B4: 1992
B5: 1993
B6: 1994
B7: 1995
B8: 1996
B9: 1997
B10: 1998
B11: 1999
B12: 2000
B13: 2001
B14: 2002
B15: 2003
B16: 2004
B17: 2005
B18: 2006
B19: 2007
B20: 2008
B21: 2009
B22: 2010
B23: 2011
B24: 2012
B25: 2013
B26: 2014
